Body Name,Body,Service Label,Service Code,CIPFA Detailed Expenditure Type,CIPFA Detailed Expenditure Code,Date,Transaction Number,Net Amount,Supplier Name,
Nottinghamshire County Council,1111/1001,Surplus or Deficit from Trading Undertak,TRADING,Supplies & Services,DDA,02/08/2018,05-10001,575.6,Antalis Ltd,
Nottinghamshire County Council,1111/1001,Surplus or Deficit from Trading Undertak,TRADING,Supplies & Services,DDA,02/08/2018,05-10001,500.8,Allen Glenold Ltd,
Nottinghamshire County Council,1111/1001,Surplus or Deficit from Trading Undertak,TRADING,Supplies & Services,DDA,02/08/2018,05-10001,761.76,Allen Glenold Ltd,
Nottinghamshire County Council,1111/1001,Surplus or Deficit from Trading Undertak,TRADING,Premises Related,BJA,02/08/2018,05-10001,522.96,Henkel Ltd,
Nottinghamshire County Council,1111/1001,Surplus or Deficit from Trading Undertak,TRADING,Premises Related,BJA,02/08/2018,05-10001,535.5,Monarch Education Furniture,
Nottinghamshire County Council,1111/1001,Surplus or Deficit from Trading Undertak,TRADING,Premises Related,BJA,02/08/2018,05-10001,788.1,Morleys (Bicester) Ltd,
Nottinghamshire County Council,1111/1001,Surplus or Deficit from Trading Undertak,TRADING,Supplies & Services,DDA,02/08/2018,05-10001,991.26,Slater Harrison & Company Ltd,
Nottinghamshire County Council,1111/1001,Surplus or Deficit from Trading Undertak,TRADING,Premises Related,BJA,02/08/2018,05-10001,600,Kb Packaging,
Nottinghamshire County Council,1111/1001,Surplus or Deficit from Trading Undertak,TRADING,Premises Related,BJA,02/08/2018,05-10001,"2,200.00",Spaceright Europe Ltd,
Nottinghamshire County Council,1111/1001,Surplus or Deficit from Trading Undertak,TRADING,Premises Related,BJA,02/08/2018,05-10001,"1,078.06",Kimberly Clark European Services Lt,
Nottinghamshire County Council,1111/1001,Surplus or Deficit from Trading Undertak,TRADING,Premises Related,BJA,02/08/2018,05-10001,"1,020.00",Greenspeed Nv/Sa,
Nottinghamshire County Council,1111/1001,Surplus or Deficit from Trading Undertak,TRADING,Premises Related,BJA,02/08/2018,05-10001,709.16,Jla Ltd,
Nottinghamshire County Council,1111/1001,Surplus or Deficit from Trading Undertak,TRADING,Premises Related,BJA,02/08/2018,05-10001,"1,301.18",Metalliform Holdings Ltd,
Nottinghamshire County Council,1111/1001,Surplus or Deficit from Trading Undertak,TRADING,Employee Related,ABA,02/08/2018,05-10001,572.3,Your Recruiter Ltd,
Nottinghamshire County Council,1111/1001,Surplus or Deficit from Trading Undertak,TRADING,Premises Related,BJA,03/08/2018,05-10001,"1,049.64",Creativity International Ltd,
Nottinghamshire County Council,1111/1001,Surplus or Deficit from Trading Undertak,TRADING,Premises Related,BJA,03/08/2018,05-10001,786.01,Creativity International Ltd,
Nottinghamshire County Council,1111/1001,Surplus or Deficit from Trading Undertak,TRADING,Premises Related,BJA,22/08/2018,05-10001,551,Flexifom Business Furniture Ltd,
Nottinghamshire County Council,1111/1001,Surplus or Deficit from Trading Undertak,TRADING,Supplies & Services,DDA,22/08/2018,05-10001,814.24,Banner Group Limited,
Nottinghamshire County Council,1111/1001,Surplus or Deficit from Trading Undertak,TRADING,Premises Related,BJA,22/08/2018,05-10001,"1,665.16",Office Innovations,
Nottinghamshire County Council,1111/1001,Surplus or Deficit from Trading Undertak,TRADING,Premises Related,BJA,22/08/2018,05-10001,"1,223.64",Leafield Environmental Ltd,
Nottinghamshire County Council,1111/1001,Surplus or Deficit from Trading Undertak,TRADING,Premises Related,BJA,22/08/2018,05-10001,"1,206.00",Hille Educational Products Ltd,
Nottinghamshire County Council,1111/1001,Surplus or Deficit from Trading Undertak,TRADING,Premises Related,BJA,22/08/2018,05-10001,566.1,Hille Educational Products Ltd,
Nottinghamshire County Council,1111/1001,Surplus or Deficit from Trading Undertak,TRADING,Premises Related,BJA,22/08/2018,05-10001,748,G & S Corporate Supplies,
Nottinghamshire County Council,1111/1001,Surplus or Deficit from Trading Undertak,TRADING,Premises Related,BAA,22/08/2018,05-10001,"1,145.00",Stearn Electric Company Ltd,
Nottinghamshire County Council,1111/1001,Surplus or Deficit from Trading Undertak,TRADING,Supplies & Services,DFA,22/08/2018,05-10001,605,Cbc Computer Systems Ltd,
Nottinghamshire County Council,1111/1001,Surplus or Deficit from Trading Undertak,TRADING,Premises Related,BJA,22/08/2018,05-10001,910.5,Willowbrook Education Ltd,
Nottinghamshire County Council,1111/1001,Surplus or Deficit from Trading Undertak,TRADING,Premises Related,BJA,22/08/2018,05-10001,529.2,Ww (Uk) Ltd T/A Tc Group,
Nottinghamshire County Council,1111/1001,Surplus or Deficit from Trading Undertak,TRADING,Premises Related,BJA,24/08/2018,05-10001,"4,124.56",Essity Uk Ltd,
Nottinghamshire County Council,1111/1001,Surplus or Deficit from Trading Undertak,TRADING,Premises Related,BJA,24/08/2018,05-10001,"7,614.94",Essity Uk Ltd,
Nottinghamshire County Council,1111/1001,Surplus or Deficit from Trading Undertak,TRADING,Premises Related,BJA,24/08/2018,05-10001,"1,828.53",Essity Uk Ltd,
Nottinghamshire County Council,1111/1001,Surplus or Deficit from Trading Undertak,TRADING,Premises Related,BJA,24/08/2018,05-10001,"1,838.40",Newell Rubbermaid Uk Ltd,
Nottinghamshire County Council,1111/1001,Surplus or Deficit from Trading Undertak,TRADING,Premises Related,BJA,24/08/2018,05-10001,"10,260.03",Spaceright Europe Ltd,
Nottinghamshire County Council,1111/1001,Surplus or Deficit from Trading Undertak,TRADING,Supplies & Services,DAA,24/08/2018,05-10001,"2,234.40",Deco-Pak Ltd,
Nottinghamshire County Council,1111/1001,Surplus or Deficit from Trading Undertak,TRADING,Premises Related,BJA,24/08/2018,05-10001,750.72,Metalliform Holdings Ltd,
Nottinghamshire County Council,1111/1001,Surplus or Deficit from Trading Undertak,TRADING,Supplies & Services,DFA,29/08/2018,05-10001,649.81,Royal Mail,
Nottinghamshire County Council,1111/1001,Children and Young People,CYP,Premises Related,BAA,06/08/2018,05-11083,9214.78,ARC Property Services Partnership L,
Nottinghamshire County Council,1111/1001,Children and Young People,CYP,Premises Related,BAA,09/08/2018,05-13028,9170.64,ARC Property Services Partnership L,
Nottinghamshire County Council,1111/1001,Children and Young People,CYP,Premises Related,BAA,20/08/2018,05-14644,"3,444.91",ARC Property Services Partnership L,
Nottinghamshire County Council,1111/1001,Children and Young People,CYP,Premises Related,BAA,23/08/2018,05-15862,13607.59,ARC Property Services Partnership L,
Nottinghamshire County Council,1111/1001,Children and Young People,CYP,Premises Related,BCA,02/08/2018,05-18098,1139.25,Certas Energy UK Ltd T/A Pace Fuelc,
Nottinghamshire County Council,1111/1001,Children and Young People,CYP,Premises Related,BCA,30/08/2018,05-13524,225.00,Siemens Infra & Cities Mobility & L,
Nottinghamshire County Council,1111/1001,Children and Young People,CYP,Premises Related,BDA,01/08/2018,05-10001,840.00,High Peak Borough Council,
Nottinghamshire County Council,1111/1001,Children and Young People,CYP,Premises Related,BDA,01/08/2018,05-10002,631.00,Derbyshire Dales District Council,
Nottinghamshire County Council,1111/1001,Children and Young People,CYP,Premises Related,BDA,01/08/2018,05-10005,575,Jillings Estates Ltd,
Nottinghamshire County Council,1111/1001,Children and Young People,CYP,Premises Related,BDA,01/08/2018,05-10006,565,Bairstow Eves Nottingham T/A Countr,
Nottinghamshire County Council,1111/1001,Children and Young People,CYP,Premises Related,BDA,02/08/2018,05-18052,659.30,Woodhead Enterprises Ltd,
Nottinghamshire County Council,1111/1001,Children and Young People,CYP,Premises Related,BDA,15/08/2018,05-18163,"2,719.74",SLM Fitness & Health Ltd (Everyone,
Nottinghamshire County Council,1111/1001,Children and Young People,CYP,Premises Related,BEA,28/08/2018,05-15951,"322,071.00",Att Of Earn/Bus Rates Bassetlaw D C,
Nottinghamshire County Council,1111/1001,Children and Young People,CYP,Premises Related,BEA,29/08/2018,05-15942,"314,835.00",Ashfield District Council,
Nottinghamshire County Council,1111/1001,Children and Young People,CYP,Premises Related,BEA,29/08/2018,05-15947,"308,744.00",Mansfield District Council,
Nottinghamshire County Council,1111/1001,Children and Young People,CYP,Transport Related,CAA,03/08/2018,05-10053,2516.87,Via East Midlands Ltd,
Nottinghamshire County Council,1111/1001,Children and Young People,CYP,Transport Related,CAA,03/08/2018,05-10058,340.83,Via East Midlands Ltd,
Nottinghamshire County Council,1111/1001,Children and Young People,CYP,Transport Related,CCA,03/08/2018,05-10058,"8,042.38",Via East Midlands Ltd,
Nottinghamshire County Council,1111/1001,Children and Young People,CYP,Transport Related,CCA,10/08/2018,05-13043,2907,Taxicover Uk Ltd,
Nottinghamshire County Council,1111/1001,Children and Young People,CYP,Transport Related,CCA,10/08/2018,05-13044,3604,Taxicover Uk Ltd,
Nottinghamshire County Council,1111/1001,Children and Young People,CYP,Transport Related,CCA,10/08/2018,05-13045,854.46,Taxicover Uk Ltd,
Nottinghamshire County Council,1111/1001,Children and Young People,CYP,Transport Related,CCA,10/08/2018,05-13046,"1,695.00",Taxicover Uk Ltd,
Nottinghamshire County Council,1111/1001,Children and Young People,CYP,Transport Related,CCA,10/08/2018,05-13047,2083.2,Taxicover Uk Ltd,
Nottinghamshire County Council,1111/1001,Children and Young People,CYP,Transport Related,CCA,10/08/2018,05-13048,"1,260.00",Taxicover Uk Ltd,
Nottinghamshire County Council,1111/1001,Children and Young People,CYP,Transport Related,CCA,10/08/2018,05-13049,"2,671.00",Taxicover Uk Ltd,
Nottinghamshire County Council,1111/1001,Children and Young People,CYP,Transport Related,CCA,10/08/2018,05-13050,"1,996.00",Taxicover Uk Ltd,
Nottinghamshire County Council,1111/1001,Children and Young People,CYP,Transport Related,CCA,10/08/2018,05-13051,3580.56,Taxicover Uk Ltd,
Nottinghamshire County Council,1111/1001,Children and Young People,CYP,Transport Related,CCA,10/08/2018,05-13052,"2,743.20",Taxicover Uk Ltd,
Nottinghamshire County Council,1111/1001,Children and Young People,CYP,Transport Related,CCA,10/08/2018,05-13053,"2,917.62",Taxicover Uk Ltd,
Nottinghamshire County Council,1111/1001,Children and Young People,CYP,Transport Related,CCA,10/08/2018,05-13054,"3,103.20",Taxicover Uk Ltd,
Nottinghamshire County Council,1111/1001,Children and Young People,CYP,Transport Related,CCA,10/08/2018,05-13055,"3,378.60",Taxicover Uk Ltd,
Nottinghamshire County Council,1111/1001,Children and Young People,CYP,Transport Related,CCA,10/08/2018,05-13056,"2,943.00",Taxicover Uk Ltd,
Nottinghamshire County Council,1111/1001,Children and Young People,CYP,Transport Related,CCA,10/08/2018,05-13057,3399.96,Taxicover Uk Ltd,
Nottinghamshire County Council,1111/1001,Children and Young People,CYP,Transport Related,CCA,10/08/2018,05-13058,2721.49,Taxicover Uk Ltd,
Nottinghamshire County Council,1111/1001,Children and Young People,CYP,Transport Related,CCA,10/08/2018,05-13059,2739,Taxicover Uk Ltd,
Nottinghamshire County Council,1111/1001,Children and Young People,CYP,Transport Related,CCA,10/08/2018,05-13060,2860.38,Taxicover Uk Ltd,
Nottinghamshire County Council,1111/1001,Children and Young People,CYP,Transport Related,CCA,10/08/2018,05-13061,3351,Taxicover Uk Ltd,
Nottinghamshire County Council,1111/1001,Children and Young People,CYP,Transport Related,CCA,10/08/2018,05-13063,"2,408.74",Sharpes Of Nottingham,
Nottinghamshire County Council,1111/1001,Children and Young People,CYP,Transport Related,CCA,10/08/2018,05-13064,2522.79,Sharpes Of Nottingham,
Nottinghamshire County Council,1111/1001,Children and Young People,CYP,Transport Related,CCA,10/08/2018,05-13065,2615.79,Sharpes Of Nottingham,
Nottinghamshire County Council,1111/1001,Children and Young People,CYP,Transport Related,CCA,10/08/2018,05-13066,2380.14,Sharpes Of Nottingham,
Nottinghamshire County Council,1111/1001,Children and Young People,CYP,Transport Related,CCA,10/08/2018,05-13067,2529.59,Sharpes Of Nottingham,
Nottinghamshire County Council,1111/1001,Children and Young People,CYP,Transport Related,CCA,10/08/2018,05-13068,2769.66,Sharpes Of Nottingham,
Nottinghamshire County Council,1111/1001,Children and Young People,CYP,Transport Related,CCA,10/08/2018,05-13069,4874.69,Sharpes Of Nottingham,
Nottinghamshire County Council,1111/1001,Children and Young People,CYP,Transport Related,CCA,10/08/2018,05-13070,2542.79,Sharpes Of Nottingham,
Nottinghamshire County Council,1111/1001,Children and Young People,CYP,Transport Related,CCA,10/08/2018,05-13071,2301.8,Sharpes Of Nottingham,
Nottinghamshire County Council,1111/1001,Children and Young People,CYP,Transport Related,CCA,10/08/2018,05-13072,2769.66,Sharpes Of Nottingham,
Nottinghamshire County Council,1111/1001,Children and Young People,CYP,Transport Related,CCA,10/08/2018,05-13073,2649.78,Sharpes Of Nottingham,
Nottinghamshire County Council,1111/1001,Children and Young People,CYP,Transport Related,CCA,10/08/2018,05-13075,"1,598.00",Southside Cars,
Nottinghamshire County Council,1111/1001,Children and Young People,CYP,Transport Related,CCA,10/08/2018,05-13076,660.00,Southside Cars,
Nottinghamshire County Council,1111/1001,Children and Young People,CYP,Transport Related,CCA,10/08/2018,05-13077,900.00,Southside Cars,
Nottinghamshire County Council,1111/1001,Children and Young People,CYP,Transport Related,CCA,10/08/2018,05-13078,693.48,Southside Cars,
Nottinghamshire County Council,1111/1001,Children and Young People,CYP,Transport Related,CCA,10/08/2018,05-13079,"1,410.00",Southside Cars,
Nottinghamshire County Council,1111/1001,Children and Young People,CYP,Transport Related,CCA,10/08/2018,05-13080,915.00,Southside Cars,
Nottinghamshire County Council,1111/1001,Children and Young People,CYP,Transport Related,CCA,10/08/2018,05-13081,"2,545.20",Southside Cars,
Nottinghamshire County Council,1111/1001,Children and Young People,CYP,Transport Related,CCA,10/08/2018,05-13084,1105,6 Five 2s,
Nottinghamshire County Council,1111/1001,Children and Young People,CYP,Transport Related,CCA,10/08/2018,05-13085,720.00,6 Five 2s,
Nottinghamshire County Council,1111/1001,Children and Young People,CYP,Transport Related,CCA,10/08/2018,05-13086,1615,6 Five 2s,
Nottinghamshire County Council,1111/1001,Children and Young People,CYP,Transport Related,CCA,10/08/2018,05-13087,"1,170.00",6 Five 2s,
Nottinghamshire County Council,1111/1001,Children and Young People,CYP,Transport Related,CCA,10/08/2018,05-13088,2162.4,6 Five 2s,
Nottinghamshire County Council,1111/1001,Children and Young People,CYP,Transport Related,CCA,10/08/2018,05-13089,1870,6 Five 2s,
Nottinghamshire County Council,1111/1001,Children and Young People,CYP,Transport Related,CCA,10/08/2018,05-13090,"1,700.00",6 Five 2s,
Nottinghamshire County Council,1111/1001,Children and Young People,CYP,Transport Related,CCA,10/08/2018,05-13091,"1,598.00",6 Five 2s,
Nottinghamshire County Council,1111/1001,Children and Young People,CYP,Transport Related,CCA,10/08/2018,05-13092,1789.93,6 Five 2s,
Nottinghamshire County Council,1111/1001,Children and Young People,CYP,Transport Related,CCA,10/08/2018,05-13093,"2,250.00",All Wayz Travel,
Nottinghamshire County Council,1111/1001,Children and Young People,CYP,Transport Related,CCA,10/08/2018,05-13094,1636.2,All Wayz Travel,
Nottinghamshire County Council,1111/1001,Children and Young People,CYP,Transport Related,CCA,10/08/2018,05-13095,750,All Wayz Travel,
Nottinghamshire County Council,1111/1001,Children and Young People,CYP,Transport Related,CCA,10/08/2018,05-13096,2210,All Wayz Travel,
Nottinghamshire County Council,1111/1001,Children and Young People,CYP,Transport Related,CCA,10/08/2018,05-13097,2104.02,F4Control Ltd (t/a First4care),
Nottinghamshire County Council,1111/1001,Children and Young People,CYP,Transport Related,CCA,10/08/2018,05-13098,"2,126.88",F4Control Ltd (t/a First4care),
Nottinghamshire County Council,1111/1001,Children and Young People,CYP,Transport Related,CCA,10/08/2018,05-13099,2308.68,F4Control Ltd (t/a First4care),
Nottinghamshire County Council,1111/1001,Children and Young People,CYP,Transport Related,CCA,10/08/2018,05-13100,2157.12,F4Control Ltd (t/a First4care),
Nottinghamshire County Council,1111/1001,Children and Young People,CYP,Transport Related,CCA,10/08/2018,05-13101,2162.52,F4Control Ltd (t/a First4care),
Nottinghamshire County Council,1111/1001,Children and Young People,CYP,Transport Related,CCA,10/08/2018,05-13106,"16,740.75",Johnson Bros Tours Ltd,
Nottinghamshire County Council,1111/1001,Children and Young People,CYP,Transport Related,CCA,10/08/2018,05-13107,"4,636.60",Johnson Bros Tours Ltd,
Nottinghamshire County Council,1111/1001,Children and Young People,CYP,Transport Related,CCA,10/08/2018,05-13108,4194.2,Johnson Bros Tours Ltd,
Nottinghamshire County Council,1111/1001,Children and Young People,CYP,Transport Related,CCA,10/08/2018,05-13109,19734.1,Johnson Bros Tours Ltd,
Nottinghamshire County Council,1111/1001,Children and Young People,CYP,Transport Related,CCA,10/08/2018,05-13110,"2,694.50",Martins Travel,
Nottinghamshire County Council,1111/1001,Children and Young People,CYP,Transport Related,CCA,10/08/2018,05-13111,1652.58,Wrights Coaches,
Nottinghamshire County Council,1111/1001,Children and Young People,CYP,Transport Related,CCA,10/08/2018,05-13114,1190,200 Cars Ltd,
Nottinghamshire County Council,1111/1001,Children and Young People,CYP,Transport Related,CCA,10/08/2018,05-13115,600.95,200 Cars Ltd,
Nottinghamshire County Council,1111/1001,Children and Young People,CYP,Transport Related,CCA,10/08/2018,05-13117,1545.12,Ace Of Mansfield Ltd,
Nottinghamshire County Council,1111/1001,Children and Young People,CYP,Transport Related,CCA,10/08/2018,05-13118,930,Ace Of Mansfield Ltd,
Nottinghamshire County Council,1111/1001,Children and Young People,CYP,Transport Related,CCA,10/08/2018,05-13119,"1,860.00",Ace Of Mansfield Ltd,
Nottinghamshire County Council,1111/1001,Children and Young People,CYP,Transport Related,CCA,10/08/2018,05-13120,2545.2,Arnold Acorn Travel,
Nottinghamshire County Council,1111/1001,Children and Young People,CYP,Transport Related,CCA,10/08/2018,05-13122,"1,373.60",Acorn Contracts,
Nottinghamshire County Council,1111/1001,Children and Young People,CYP,Transport Related,CCA,10/08/2018,05-13125,1428,Alpha Cars,
Nottinghamshire County Council,1111/1001,Children and Young People,CYP,Transport Related,CCA,10/08/2018,05-13126,1530,Alpha Cars,
Nottinghamshire County Council,1111/1001,Children and Young People,CYP,Transport Related,CCA,10/08/2018,05-13127,"1,428.00",Alpha Cars,
Nottinghamshire County Council,1111/1001,Children and Young People,CYP,Transport Related,CCA,10/08/2018,05-13128,"2,508.00",Alpha Cars,
Nottinghamshire County Council,1111/1001,Children and Young People,CYP,Transport Related,CCA,10/08/2018,05-13129,1602,Alpha Cars,
Nottinghamshire County Council,1111/1001,Children and Young People,CYP,Transport Related,CCA,10/08/2018,05-13130,840.00,Alpha Cars,
Nottinghamshire County Council,1111/1001,Children and Young People,CYP,Transport Related,CCA,10/08/2018,05-13131,"1,362.00",Amvale Medical Transport Ltd,
Nottinghamshire County Council,1111/1001,Children and Young People,CYP,Transport Related,CCA,10/08/2018,05-13132,2272.5,Arrow Specialised Transport Ltd,
Nottinghamshire County Council,1111/1001,Children and Young People,CYP,Transport Related,CCA,10/08/2018,05-13133,"1,512.81",Arrow Specialised Transport Ltd,
Nottinghamshire County Council,1111/1001,Children and Young People,CYP,Transport Related,CCA,10/08/2018,05-13135,"3,048.12",Arrow Specialised Transport Ltd,
Nottinghamshire County Council,1111/1001,Children and Young People,CYP,Transport Related,CCA,10/08/2018,05-13136,2858.76,Arrow Specialised Transport Ltd,
Nottinghamshire County Council,1111/1001,Children and Young People,CYP,Transport Related,CCA,10/08/2018,05-13137,"2,662.38",Arrow Specialised Transport Ltd,
Nottinghamshire County Council,1111/1001,Children and Young People,CYP,Transport Related,CCA,10/08/2018,05-13138,3029.76,Arrow Specialised Transport Ltd,
Nottinghamshire County Council,1111/1001,Children and Young People,CYP,Transport Related,CCA,10/08/2018,05-13139,2537.1,Arrow Specialised Transport Ltd,
Nottinghamshire County Council,1111/1001,Children and Young People,CYP,Transport Related,CCA,10/08/2018,05-13140,2485.26,Arrow Specialised Transport Ltd,
Nottinghamshire County Council,1111/1001,Children and Young People,CYP,Transport Related,CCA,10/08/2018,05-13141,2592,Arrow Specialised Transport Ltd,
Nottinghamshire County Council,1111/1001,Children and Young People,CYP,Transport Related,CCA,10/08/2018,05-13142,"1,964.70",Arrow Specialised Transport Ltd,
Nottinghamshire County Council,1111/1001,Children and Young People,CYP,Transport Related,CCA,10/08/2018,05-13143,1926,Arrow Specialised Transport Ltd,
Nottinghamshire County Council,1111/1001,Children and Young People,CYP,Transport Related,CCA,10/08/2018,05-13144,"2,613.75",Arrow Specialised Transport Ltd,
Nottinghamshire County Council,1111/1001,Children and Young People,CYP,Transport Related,CCA,10/08/2018,05-13145,2592.5,Arrow Specialised Transport Ltd,
Nottinghamshire County Council,1111/1001,Children and Young People,CYP,Transport Related,CCA,10/08/2018,05-13146,3379.26,Arrow Specialised Transport Ltd,
Nottinghamshire County Council,1111/1001,Children and Young People,CYP,Transport Related,CCA,10/08/2018,05-13147,"2,014.50",Arrow Specialised Transport Ltd,
Nottinghamshire County Council,1111/1001,Children and Young People,CYP,Transport Related,CCA,10/08/2018,05-13148,"1,654.20",Arrow Specialised Transport Ltd,
Nottinghamshire County Council,1111/1001,Children and Young People,CYP,Transport Related,CCA,10/08/2018,05-13149,3078,Arrow Specialised Transport Ltd,
Nottinghamshire County Council,1111/1001,Children and Young People,CYP,Transport Related,CCA,10/08/2018,05-13150,2620.8,Arrow Specialised Transport Ltd,
Nottinghamshire County Council,1111/1001,Children and Young People,CYP,Transport Related,CCA,10/08/2018,05-13151,"2,005.20",Arrow Specialised Transport Ltd,
Nottinghamshire County Council,1111/1001,Children and Young People,CYP,Transport Related,CCA,10/08/2018,05-13152,"2,822.40",Arrow Specialised Transport Ltd,
Nottinghamshire County Council,1111/1001,Children and Young People,CYP,Transport Related,CCA,10/08/2018,05-13153,"2,931.84",Arrow Specialised Transport Ltd,
Nottinghamshire County Council,1111/1001,Children and Young People,CYP,Transport Related,CCA,10/08/2018,05-13154,"1,187.67",Arrow Specialised Transport Ltd,
Nottinghamshire County Council,1111/1001,Children and Young People,CYP,Transport Related,CCA,10/08/2018,05-13156,"2,817.00",Arrow Specialised Transport Ltd,
Nottinghamshire County Council,1111/1001,Children and Young People,CYP,Transport Related,CCA,10/08/2018,05-13157,2034,Arrow Specialised Transport Ltd,
Nottinghamshire County Council,1111/1001,Children and Young People,CYP,Transport Related,CCA,10/08/2018,05-13158,3179.34,Arrow Specialised Transport Ltd,
Nottinghamshire County Council,1111/1001,Children and Young People,CYP,Transport Related,CCA,10/08/2018,05-13159,"2,156.76",Arrow Specialised Transport Ltd,
Nottinghamshire County Council,1111/1001,Children and Young People,CYP,Transport Related,CCA,10/08/2018,05-13160,3270.24,Arrow Specialised Transport Ltd,
Nottinghamshire County Council,1111/1001,Children and Young People,CYP,Transport Related,CCA,10/08/2018,05-13161,2997.54,Arrow Specialised Transport Ltd,
Nottinghamshire County Council,1111/1001,Children and Young People,CYP,Transport Related,CCA,10/08/2018,05-13162,1906.74,Arrow Specialised Transport Ltd,
Nottinghamshire County Council,1111/1001,Children and Young People,CYP,Transport Related,CCA,10/08/2018,05-13163,2166.84,Arrow Specialised Transport Ltd,
Nottinghamshire County Council,1111/1001,Children and Young People,CYP,Transport Related,CCA,10/08/2018,05-13164,1751.58,Arrow Specialised Transport Ltd,
Nottinghamshire County Council,1111/1001,Children and Young People,CYP,Transport Related,CCA,10/08/2018,05-13165,2252.16,Arrow Specialised Transport Ltd,
Nottinghamshire County Council,1111/1001,Children and Young People,CYP,Transport Related,CCA,10/08/2018,05-13166,1895.22,Arrow Specialised Transport Ltd,
Nottinghamshire County Council,1111/1001,Children and Young People,CYP,Transport Related,CCA,10/08/2018,05-13167,"1,688.10",Arrow Specialised Transport Ltd,
Nottinghamshire County Council,1111/1001,Children and Young People,CYP,Transport Related,CCA,10/08/2018,05-13168,2286,Arrow Specialised Transport Ltd,
Nottinghamshire County Council,1111/1001,Children and Young People,CYP,Transport Related,CCA,10/08/2018,05-13169,2025,Arrow Specialised Transport Ltd,
Nottinghamshire County Council,1111/1001,Children and Young People,CYP,Transport Related,CCA,10/08/2018,05-13170,"1,818.00",Arrow Specialised Transport Ltd,
Nottinghamshire County Council,1111/1001,Children and Young People,CYP,Transport Related,CCA,10/08/2018,05-13171,"2,088.00",Arrow Specialised Transport Ltd,
Nottinghamshire County Council,1111/1001,Children and Young People,CYP,Transport Related,CCA,10/08/2018,05-13172,"2,066.40",Arrow Specialised Transport Ltd,
Nottinghamshire County Council,1111/1001,Children and Young People,CYP,Transport Related,CCA,10/08/2018,05-13173,2034,Arrow Specialised Transport Ltd,
Nottinghamshire County Council,1111/1001,Children and Young People,CYP,Transport Related,CCA,10/08/2018,05-13174,2515.5,Arrow Specialised Transport Ltd,
Nottinghamshire County Council,1111/1001,Children and Young People,CYP,Transport Related,CCA,10/08/2018,05-13175,"2,412.00",Arrow Specialised Transport Ltd,
Nottinghamshire County Council,1111/1001,Children and Young People,CYP,Transport Related,CCA,10/08/2018,05-13176,"2,615.22",Arrow Specialised Transport Ltd,
Nottinghamshire County Council,1111/1001,Children and Young People,CYP,Transport Related,CCA,10/08/2018,05-13177,"2,107.08",Arrow Specialised Transport Ltd,
Nottinghamshire County Council,1111/1001,Children and Young People,CYP,Transport Related,CCA,10/08/2018,05-13178,"2,156.40",Arrow Specialised Transport Ltd,
Nottinghamshire County Council,1111/1001,Children and Young People,CYP,Transport Related,CCA,10/08/2018,05-13179,"2,348.82",Arrow Specialised Transport Ltd,
Nottinghamshire County Council,1111/1001,Children and Young People,CYP,Transport Related,CCA,10/08/2018,05-13180,2696.04,Arrow Specialised Transport Ltd,
Nottinghamshire County Council,1111/1001,Children and Young People,CYP,Transport Related,CCA,10/08/2018,05-13181,2534.22,Arrow Specialised Transport Ltd,
Nottinghamshire County Council,1111/1001,Children and Young People,CYP,Transport Related,CCA,10/08/2018,05-13183,"1,358.40",Arrow Specialised Transport Ltd,
Nottinghamshire County Council,1111/1001,Children and Young People,CYP,Transport Related,CCA,10/08/2018,05-13184,1513.01,Arrow Specialised Transport Ltd,
Nottinghamshire County Council,1111/1001,Children and Young People,CYP,Transport Related,CCA,10/08/2018,05-13186,954.81,Arrow Specialised Transport Ltd,
Nottinghamshire County Council,1111/1001,Children and Young People,CYP,Transport Related,CCA,10/08/2018,05-13187,979.30,Arrow Specialised Transport Ltd,
Nottinghamshire County Council,1111/1001,Children and Young People,CYP,Transport Related,CCA,10/08/2018,05-13188,"6,006.47",Arrow Specialised Transport Ltd,
Nottinghamshire County Council,1111/1001,Children and Young People,CYP,Transport Related,CCA,10/08/2018,05-13189,2741.89,Arrow Specialised Transport Ltd,
Nottinghamshire County Council,1111/1001,Children and Young People,CYP,Transport Related,CCA,10/08/2018,05-13190,"3,036.06",Arrow Specialised Transport Ltd,
Nottinghamshire County Council,1111/1001,Children and Young People,CYP,Transport Related,CCA,10/08/2018,05-13191,"4,313.16",Arrow Specialised Transport Ltd,
Nottinghamshire County Council,1111/1001,Children and Young People,CYP,Transport Related,CCA,10/08/2018,05-13192,"3,313.26",Arrow Specialised Transport Ltd,
Nottinghamshire County Council,1111/1001,Children and Young People,CYP,Transport Related,CCA,10/08/2018,05-13193,1928.7,Arrow Specialised Transport Ltd,
Nottinghamshire County Council,1111/1001,Children and Young People,CYP,Transport Related,CCA,10/08/2018,05-13194,"1,421.79",Arrow Specialised Transport Ltd,
Nottinghamshire County Council,1111/1001,Children and Young People,CYP,Transport Related,CCA,10/08/2018,05-13196,"1,020.78",Arrow Specialised Transport Ltd,
Nottinghamshire County Council,1111/1001,Children and Young People,CYP,Transport Related,CCA,10/08/2018,05-13198,"1,349.40",Arrow Specialised Transport Ltd,
Nottinghamshire County Council,1111/1001,Children and Young People,CYP,Transport Related,CCA,10/08/2018,05-13199,"2,711.50",Arrow Specialised Transport Ltd,
Nottinghamshire County Council,1111/1001,Children and Young People,CYP,Transport Related,CCA,10/08/2018,05-13200,"2,201.50",Arrow Specialised Transport Ltd,
Nottinghamshire County Council,1111/1001,Children and Young People,CYP,Transport Related,CCA,10/08/2018,05-13201,2527.02,Arrow Specialised Transport Ltd,
Nottinghamshire County Council,1111/1001,Children and Young People,CYP,Transport Related,CCA,10/08/2018,05-13203,3431.62,Arrow Specialised Transport Ltd,
Nottinghamshire County Council,1111/1001,Children and Young People,CYP,Transport Related,CCA,10/08/2018,05-13204,1710.37,Arrow Specialised Transport Ltd,
Nottinghamshire County Council,1111/1001,Children and Young People,CYP,Transport Related,CCA,10/08/2018,05-13205,2099.5,Arrow Specialised Transport Ltd,
Nottinghamshire County Council,1111/1001,Children and Young People,CYP,Transport Related,CCA,10/08/2018,05-13206,2159.51,Arrow Specialised Transport Ltd,
Nottinghamshire County Council,1111/1001,Children and Young People,CYP,Transport Related,CCA,10/08/2018,05-13207,"2,068.22",Arrow Specialised Transport Ltd,
Nottinghamshire County Council,1111/1001,Children and Young People,CYP,Transport Related,CCA,10/08/2018,05-13208,2592.16,Arrow Specialised Transport Ltd,
Nottinghamshire County Council,1111/1001,Children and Young People,CYP,Transport Related,CCA,10/08/2018,05-13209,1975.23,Arrow Specialised Transport Ltd,
Nottinghamshire County Council,1111/1001,Children and Young People,CYP,Transport Related,CCA,10/08/2018,05-13210,2334.1,Arrow Specialised Transport Ltd,
Nottinghamshire County Council,1111/1001,Children and Young People,CYP,Transport Related,CCA,10/08/2018,05-13211,2286.5,Arrow Specialised Transport Ltd,
Nottinghamshire County Council,1111/1001,Children and Young People,CYP,Transport Related,CCA,10/08/2018,05-13216,1659.87,Bridges Transport Ltd,
Nottinghamshire County Council,1111/1001,Children and Young People,CYP,Transport Related,CCA,10/08/2018,05-13218,1818,Bridges Transport Ltd,
Nottinghamshire County Council,1111/1001,Children and Young People,CYP,Transport Related,CCA,10/08/2018,05-13219,1675.62,Bridges Transport Ltd,
Nottinghamshire County Council,1111/1001,Children and Young People,CYP,Transport Related,CCA,10/08/2018,05-13220,1838.16,Bridges Transport Ltd,
Nottinghamshire County Council,1111/1001,Children and Young People,CYP,Transport Related,CCA,10/08/2018,05-13221,1124.85,Bridges Transport Ltd,
Nottinghamshire County Council,1111/1001,Children and Young People,CYP,Transport Related,CCA,10/08/2018,05-13222,2293.81,Bridges Transport Ltd,
Nottinghamshire County Council,1111/1001,Children and Young People,CYP,Transport Related,CCA,10/08/2018,05-13223,"1,828.65",Bridges Transport Ltd,
Nottinghamshire County Council,1111/1001,Children and Young People,CYP,Transport Related,CCA,10/08/2018,05-13224,"2,019.75",Bridges Transport Ltd,
Nottinghamshire County Council,1111/1001,Children and Young People,CYP,Transport Related,CCA,10/08/2018,05-13225,981.72,Bridges Transport Ltd,
Nottinghamshire County Council,1111/1001,Children and Young People,CYP,Transport Related,CCA,10/08/2018,05-13226,2833.05,Bridges Transport Ltd,
Nottinghamshire County Council,1111/1001,Children and Young People,CYP,Transport Related,CCA,10/08/2018,05-13228,"13,611.96",Erewash Community Transport,
Nottinghamshire County Council,1111/1001,Children and Young People,CYP,Transport Related,CCA,10/08/2018,05-13229,"1,666.50",Fozcabs Newark Taxis,
Nottinghamshire County Council,1111/1001,Children and Young People,CYP,Transport Related,CCA,10/08/2018,05-13230,977.50,Fozcabs Newark Taxis,
Nottinghamshire County Council,1111/1001,Children and Young People,CYP,Transport Related,CCA,10/08/2018,05-13231,1500,Fozcabs Newark Taxis,
Nottinghamshire County Council,1111/1001,Children and Young People,CYP,Transport Related,CCA,10/08/2018,05-13233,600.00,Galaxy Cabs Ltd,
Nottinghamshire County Council,1111/1001,Children and Young People,CYP,Transport Related,CCA,10/08/2018,05-13235,1666.5,Galaxy Cabs Ltd,
Nottinghamshire County Council,1111/1001,Children and Young People,CYP,Transport Related,CCA,10/08/2018,05-13236,"1,090.80",Galaxy Cabs Ltd,
Nottinghamshire County Council,1111/1001,Children and Young People,CYP,Transport Related,CCA,10/08/2018,05-13237,1125,Galaxy Cabs Ltd,
Nottinghamshire County Council,1111/1001,Children and Young People,CYP,Transport Related,CCA,10/08/2018,05-13239,1440,Galaxy Cabs Ltd,
Nottinghamshire County Council,1111/1001,Children and Young People,CYP,Transport Related,CCA,10/08/2018,05-13241,"1,181.50",Headland Taxi Services,
Nottinghamshire County Council,1111/1001,Children and Young People,CYP,Transport Related,CCA,10/08/2018,05-13242,"2,368.00",Ng11 Cars,
Nottinghamshire County Council,1111/1001,Children and Young People,CYP,Transport Related,CCA,10/08/2018,05-13244,858.5,Ng11 Cars,
Nottinghamshire County Council,1111/1001,Children and Young People,CYP,Transport Related,CCA,10/08/2018,05-13245,765.00,Ng11 Cars,
Nottinghamshire County Council,1111/1001,Children and Young People,CYP,Transport Related,CCA,10/08/2018,05-13247,715.53,Ng11 Cars,
Nottinghamshire County Council,1111/1001,Children and Young People,CYP,Transport Related,CCA,10/08/2018,05-13248,909,Ng11 Cars,
Nottinghamshire County Council,1111/1001,Children and Young People,CYP,Transport Related,CCA,10/08/2018,05-13249,1813.8,Shelleys Taxis Ltd,
Nottinghamshire County Council,1111/1001,Children and Young People,CYP,Transport Related,CCA,10/08/2018,05-13250,757.5,Shelleys Taxis Ltd,
Nottinghamshire County Council,1111/1001,Children and Young People,CYP,Transport Related,CCA,10/08/2018,05-13252,"1,581.60",Shelleys Taxis Ltd,
Nottinghamshire County Council,1111/1001,Children and Young People,CYP,Transport Related,CCA,10/08/2018,05-13253,545.4,Shelleys Taxis Ltd,
Nottinghamshire County Council,1111/1001,Children and Young People,CYP,Transport Related,CCA,10/08/2018,05-13254,1060.5,Shelleys Taxis Ltd,
Nottinghamshire County Council,1111/1001,Children and Young People,CYP,Transport Related,CCA,10/08/2018,05-13255,1781.64,Shelleys Taxis Ltd,
Nottinghamshire County Council,1111/1001,Children and Young People,CYP,Transport Related,CCA,10/08/2018,05-13256,"1,620.00",Shelleys Taxis Ltd,
Nottinghamshire County Council,1111/1001,Children and Young People,CYP,Transport Related,CCA,10/08/2018,05-13257,"1,050.00",Shelleys Taxis Ltd,
Nottinghamshire County Council,1111/1001,Children and Young People,CYP,Transport Related,CCA,10/08/2018,05-13258,1650,Shelleys Taxis Ltd,
Nottinghamshire County Council,1111/1001,Children and Young People,CYP,Transport Related,CCA,10/08/2018,05-13259,1560,Shelleys Taxis Ltd,
Nottinghamshire County Council,1111/1001,Children and Young People,CYP,Transport Related,CCA,10/08/2018,05-13260,840.00,Shelleys Taxis Ltd,
Nottinghamshire County Council,1111/1001,Children and Young People,CYP,Transport Related,CCA,10/08/2018,05-13261,1260,Shelleys Taxis Ltd,
Nottinghamshire County Council,1111/1001,Children and Young People,CYP,Transport Related,CCA,10/08/2018,05-13262,1799.46,Sprays Transport Ltd,
Nottinghamshire County Council,1111/1001,Children and Young People,CYP,Transport Related,CCA,10/08/2018,05-13263,1999.8,Sprays Transport Ltd,
Nottinghamshire County Council,1111/1001,Children and Young People,CYP,Transport Related,CCA,10/08/2018,05-13264,1600,Sprays Transport Ltd,
Nottinghamshire County Council,1111/1001,Children and Young People,CYP,Transport Related,CCA,10/08/2018,05-13265,2264.42,Sprays Transport Ltd,
Nottinghamshire County Council,1111/1001,Children and Young People,CYP,Transport Related,CCA,10/08/2018,05-13266,"2,318.00",Sprays Transport Ltd,
Nottinghamshire County Council,1111/1001,Children and Young People,CYP,Transport Related,CCA,10/08/2018,05-13267,3075.12,Sprays Transport Ltd,
Nottinghamshire County Council,1111/1001,Children and Young People,CYP,Transport Related,CCA,10/08/2018,05-13268,"2,122.74",Sprays Transport Ltd,
Nottinghamshire County Council,1111/1001,Children and Young People,CYP,Transport Related,CCA,10/08/2018,05-13269,1848.3,Sprays Transport Ltd,
Nottinghamshire County Council,1111/1001,Children and Young People,CYP,Transport Related,CCA,10/08/2018,05-13270,2553.66,Sprays Transport Ltd,
Nottinghamshire County Council,1111/1001,Children and Young People,CYP,Transport Related,CCA,10/08/2018,05-13271,"2,145.24",Sprays Transport Ltd,
Nottinghamshire County Council,1111/1001,Children and Young People,CYP,Transport Related,CCA,10/08/2018,05-13273,"1,807.78",Sprays Transport Ltd,
Nottinghamshire County Council,1111/1001,Children and Young People,CYP,Transport Related,CCA,10/08/2018,05-13274,1809.92,Sprays Transport Ltd,
Nottinghamshire County Council,1111/1001,Children and Young People,CYP,Transport Related,CCA,10/08/2018,05-13275,"2,034.00",Sprays Transport Ltd,
Nottinghamshire County Council,1111/1001,Children and Young People,CYP,Transport Related,CCA,10/08/2018,05-13277,"3,026.00",Vallances Coaches,
Nottinghamshire County Council,1111/1001,Children and Young People,CYP,Transport Related,CCA,10/08/2018,05-13278,2958,Vallances Coaches,
Nottinghamshire County Council,1111/1001,Children and Young People,CYP,Transport Related,CCA,10/08/2018,05-13280,"3,026.00",Vallances Coaches,
Nottinghamshire County Council,1111/1001,Children and Young People,CYP,Transport Related,CCA,10/08/2018,05-13281,685.44,Elkingtons Park Garage,
Nottinghamshire County Council,1111/1001,Children and Young People,CYP,Transport Related,CCA,10/08/2018,05-13282,1718.01,F4Control Ltd (t/a First4care),
Nottinghamshire County Council,1111/1001,Children and Young People,CYP,Transport Related,CCA,10/08/2018,05-13284,"2,410.20",F4Control Ltd (t/a First4care),
Nottinghamshire County Council,1111/1001,Children and Young People,CYP,Transport Related,CCA,10/08/2018,05-13286,2413.44,F4Control Ltd (t/a First4care),
Nottinghamshire County Council,1111/1001,Children and Young People,CYP,Transport Related,CCA,10/08/2018,05-13287,2316.78,F4Control Ltd (t/a First4care),
Nottinghamshire County Council,1111/1001,Children and Young People,CYP,Transport Related,CCA,10/08/2018,05-13288,2365.92,F4Control Ltd (t/a First4care),
Nottinghamshire County Council,1111/1001,Children and Young People,CYP,Transport Related,CCA,10/08/2018,05-13289,1763.52,F4Control Ltd (t/a First4care),
Nottinghamshire County Council,1111/1001,Children and Young People,CYP,Transport Related,CCA,10/08/2018,05-13290,"1,977.84",F4Control Ltd (t/a First4care),
Nottinghamshire County Council,1111/1001,Children and Young People,CYP,Transport Related,CCA,10/08/2018,05-13291,3046.14,F4Control Ltd (t/a First4care),
Nottinghamshire County Council,1111/1001,Children and Young People,CYP,Transport Related,CCA,10/08/2018,05-13292,"1,818.90",F4Control Ltd (t/a First4care),
Nottinghamshire County Council,1111/1001,Children and Young People,CYP,Transport Related,CCA,10/08/2018,05-13293,2135.68,F4Control Ltd (t/a First4care),
Nottinghamshire County Council,1111/1001,Children and Young People,CYP,Transport Related,CCA,10/08/2018,05-13294,3607.74,BN Gibson Ltd,
Nottinghamshire County Council,1111/1001,Children and Young People,CYP,Transport Related,CCA,10/08/2018,05-13295,"4,210.56",BN Gibson Ltd,
Nottinghamshire County Council,1111/1001,Children and Young People,CYP,Transport Related,CCA,10/08/2018,05-13296,"4,297.86",BN Gibson Ltd,
Nottinghamshire County Council,1111/1001,Children and Young People,CYP,Transport Related,CCA,10/08/2018,05-13297,1954.66,BN Gibson Ltd,
Nottinghamshire County Council,1111/1001,Children and Young People,CYP,Transport Related,CCA,10/08/2018,05-13298,1658.52,BN Gibson Ltd,
Nottinghamshire County Council,1111/1001,Children and Young People,CYP,Transport Related,CCA,10/08/2018,05-13299,647.62,BN Gibson Ltd,
Nottinghamshire County Council,1111/1001,Children and Young People,CYP,Transport Related,CCA,10/08/2018,05-13301,"1,954.66",BN Gibson Ltd,
Nottinghamshire County Council,1111/1001,Children and Young People,CYP,Transport Related,CCA,10/08/2018,05-13302,"2,369.29",BN Gibson Ltd,
Nottinghamshire County Council,1111/1001,Children and Young People,CYP,Transport Related,CCA,10/08/2018,05-13303,"2,567.68",BN Gibson Ltd,
Nottinghamshire County Council,1111/1001,Children and Young People,CYP,Transport Related,CCA,10/08/2018,05-13304,"1,895.33",BN Gibson Ltd,
Nottinghamshire County Council,1111/1001,Children and Young People,CYP,Transport Related,CCA,10/08/2018,05-13305,2177.19,BN Gibson Ltd,
Nottinghamshire County Council,1111/1001,Children and Young People,CYP,Transport Related,CCA,10/08/2018,05-13306,4662.22,BN Gibson Ltd,
Nottinghamshire County Council,1111/1001,Children and Young People,CYP,Transport Related,CCA,10/08/2018,05-13307,"2,662.74",BN Gibson Ltd,
Nottinghamshire County Council,1111/1001,Children and Young People,CYP,Transport Related,CCA,10/08/2018,05-13308,3520.62,BN Gibson Ltd,
Nottinghamshire County Council,1111/1001,Children and Young People,CYP,Transport Related,CCA,10/08/2018,05-13309,3234.06,BN Gibson Ltd,
Nottinghamshire County Council,1111/1001,Children and Young People,CYP,Transport Related,CCA,10/08/2018,05-13310,2911.86,BN Gibson Ltd,
Nottinghamshire County Council,1111/1001,Children and Young People,CYP,Transport Related,CCA,10/08/2018,05-13311,2383.2,BN Gibson Ltd,
Nottinghamshire County Council,1111/1001,Children and Young People,CYP,Transport Related,CCA,10/08/2018,05-13313,3473.28,BN Gibson Ltd,
Nottinghamshire County Council,1111/1001,Children and Young People,CYP,Transport Related,CCA,10/08/2018,05-13314,3186.54,BN Gibson Ltd,
Nottinghamshire County Council,1111/1001,Children and Young People,CYP,Transport Related,CCA,10/08/2018,05-13315,3391.92,BN Gibson Ltd,
Nottinghamshire County Council,1111/1001,Children and Young People,CYP,Transport Related,CCA,10/08/2018,05-13316,"2,939.04",BN Gibson Ltd,
Nottinghamshire County Council,1111/1001,Children and Young People,CYP,Transport Related,CCA,10/08/2018,05-13317,3908.11,BN Gibson Ltd,
Nottinghamshire County Council,1111/1001,Children and Young People,CYP,Transport Related,CCA,10/08/2018,05-13318,3589.48,BN Gibson Ltd,
Nottinghamshire County Council,1111/1001,Children and Young People,CYP,Transport Related,CCA,10/08/2018,05-13319,"3,101.18",BN Gibson Ltd,
Nottinghamshire County Council,1111/1001,Children and Young People,CYP,Transport Related,CCA,10/08/2018,05-13320,"2,447.77",BN Gibson Ltd,
Nottinghamshire County Council,1111/1001,Children and Young People,CYP,Transport Related,CCA,10/08/2018,05-13321,"2,280.57",BN Gibson Ltd,
Nottinghamshire County Council,1111/1001,Children and Young People,CYP,Transport Related,CCA,10/08/2018,05-13322,2190.13,BN Gibson Ltd,
Nottinghamshire County Council,1111/1001,Children and Young People,CYP,Transport Related,CCA,10/08/2018,05-13323,1478.1,BN Gibson Ltd,
Nottinghamshire County Council,1111/1001,Children and Young People,CYP,Transport Related,CCA,10/08/2018,05-13324,"2,260.05",BN Gibson Ltd,
Nottinghamshire County Council,1111/1001,Children and Young People,CYP,Transport Related,CCA,10/08/2018,05-13325,"3,532.10",BN Gibson Ltd,
Nottinghamshire County Council,1111/1001,Children and Young People,CYP,Transport Related,CCA,10/08/2018,05-13326,"1,717.00",BN Gibson Ltd,
Nottinghamshire County Council,1111/1001,Children and Young People,CYP,Transport Related,CCA,10/08/2018,05-13327,"1,584.40",BN Gibson Ltd,
Nottinghamshire County Council,1111/1001,Children and Young People,CYP,Transport Related,CCA,10/08/2018,05-13328,"1,810.84",BN Gibson Ltd,
Nottinghamshire County Council,1111/1001,Children and Young People,CYP,Transport Related,CCA,10/08/2018,05-13329,2328.32,BN Gibson Ltd,
Nottinghamshire County Council,1111/1001,Children and Young People,CYP,Transport Related,CCA,10/08/2018,05-13330,1754.23,BN Gibson Ltd,
Nottinghamshire County Council,1111/1001,Children and Young People,CYP,Transport Related,CCA,10/08/2018,05-13331,"1,810.84",BN Gibson Ltd,
Nottinghamshire County Council,1111/1001,Children and Young People,CYP,Transport Related,CCA,10/08/2018,05-13332,2429.55,BN Gibson Ltd,
Nottinghamshire County Council,1111/1001,Children and Young People,CYP,Transport Related,CCA,10/08/2018,05-13333,1020.5,BN Gibson Ltd,
Nottinghamshire County Council,1111/1001,Children and Young People,CYP,Transport Related,CCA,10/08/2018,05-13334,"1,055.70",BN Gibson Ltd,
Nottinghamshire County Council,1111/1001,Children and Young People,CYP,Transport Related,CCA,10/08/2018,05-13336,"2,484.12",BN Gibson Ltd,
Nottinghamshire County Council,1111/1001,Children and Young People,CYP,Transport Related,CCA,10/08/2018,05-13337,2220.88,BN Gibson Ltd,
Nottinghamshire County Council,1111/1001,Children and Young People,CYP,Transport Related,CCA,10/08/2018,05-13338,"2,176.17",BN Gibson Ltd,
Nottinghamshire County Council,1111/1001,Children and Young People,CYP,Transport Related,CCA,10/08/2018,05-13339,"2,116.50",K & S Coaches,
Nottinghamshire County Council,1111/1001,Children and Young People,CYP,Transport Related,CCA,10/08/2018,05-13340,"2,335.14",Midfield Travel,
Nottinghamshire County Council,1111/1001,Children and Young People,CYP,Transport Related,CCA,10/08/2018,05-13341,1150.7,Midfield Travel,
Nottinghamshire County Council,1111/1001,Children and Young People,CYP,Transport Related,CCA,10/08/2018,05-13342,"2,465.00",Skills Motor Coaches Ltd,
Nottinghamshire County Council,1111/1001,Children and Young People,CYP,Transport Related,CCA,10/08/2018,05-13343,"2,520.00",Skills Motor Coaches Ltd,
Nottinghamshire County Council,1111/1001,Children and Young People,CYP,Transport Related,CCA,10/08/2018,05-13344,"4,785.00",Skills Motor Coaches Ltd,
Nottinghamshire County Council,1111/1001,Children and Young People,CYP,Transport Related,CCA,10/08/2018,05-13345,815.59,D G Private Hire Ltd,
Nottinghamshire County Council,1111/1001,Children and Young People,CYP,Transport Related,CCA,10/08/2018,05-13346,"1,201.90",D G Private Hire Ltd,
Nottinghamshire County Council,1111/1001,Children and Young People,CYP,Transport Related,CCA,10/08/2018,05-13347,1200,D G Private Hire Ltd,
Nottinghamshire County Council,1111/1001,Children and Young People,CYP,Transport Related,CCA,10/08/2018,05-13348,1520,D G Private Hire Ltd,
Nottinghamshire County Council,1111/1001,Children and Young People,CYP,Transport Related,CCA,10/08/2018,05-13349,2352.29,D G Private Hire Ltd,
Nottinghamshire County Council,1111/1001,Children and Young People,CYP,Transport Related,CCA,10/08/2018,05-13350,1343.3,D G Private Hire Ltd,
Nottinghamshire County Council,1111/1001,Children and Young People,CYP,Transport Related,CCA,10/08/2018,05-13351,1454.4,D G Private Hire Ltd,
Nottinghamshire County Council,1111/1001,Children and Young People,CYP,Transport Related,CCA,10/08/2018,05-13352,"1,030.20",D G Private Hire Ltd,
Nottinghamshire County Council,1111/1001,Children and Young People,CYP,Transport Related,CCA,10/08/2018,05-13353,909,D G Private Hire Ltd,
Nottinghamshire County Council,1111/1001,Children and Young People,CYP,Transport Related,CCA,10/08/2018,05-13354,1620,D G Private Hire Ltd,
Nottinghamshire County Council,1111/1001,Children and Young People,CYP,Transport Related,CCA,10/08/2018,05-13355,1800,D G Private Hire Ltd,
Nottinghamshire County Council,1111/1001,Children and Young People,CYP,Transport Related,CCA,10/08/2018,05-13356,918.15,D G Private Hire Ltd,
Nottinghamshire County Council,1111/1001,Children and Young People,CYP,Transport Related,CCA,10/08/2018,05-13357,1170,D G Private Hire Ltd,
Nottinghamshire County Council,1111/1001,Children and Young People,CYP,Transport Related,CCA,10/08/2018,05-13359,2890.62,AOT Coaches,
Nottinghamshire County Council,1111/1001,Children and Young People,CYP,Transport Related,CCA,10/08/2018,05-13360,2461.2,AOT Coaches,
Nottinghamshire County Council,1111/1001,Children and Young People,CYP,Transport Related,CCA,10/08/2018,05-13361,2243.18,AOT Coaches,
Nottinghamshire County Council,1111/1001,Children and Young People,CYP,Transport Related,CCA,10/08/2018,05-13362,2552.1,AOT Coaches,
Nottinghamshire County Council,1111/1001,Children and Young People,CYP,Transport Related,CCA,10/08/2018,05-13364,2354.46,Garys Coaches Ltd,
Nottinghamshire County Council,1111/1001,Children and Young People,CYP,Transport Related,CCA,10/08/2018,05-13365,"2,242.20",Jb Tours Watnall Ltd,
Nottinghamshire County Council,1111/1001,Children and Young People,CYP,Transport Related,CCA,10/08/2018,05-13366,"2,008.85",Jb Tours Watnall Ltd,
Nottinghamshire County Council,1111/1001,Children and Young People,CYP,Transport Related,CCA,10/08/2018,05-13367,"2,629.68",Jb Tours Watnall Ltd,
Nottinghamshire County Council,1111/1001,Children and Young People,CYP,Transport Related,CCA,10/08/2018,05-13368,1918.2,Jb Tours Watnall Ltd,
Nottinghamshire County Council,1111/1001,Children and Young People,CYP,Transport Related,CCA,10/08/2018,05-13369,"2,017.98",K & R Cars,
Nottinghamshire County Council,1111/1001,Children and Young People,CYP,Transport Related,CCA,10/08/2018,05-13374,"2,006.68",Marshalls Of Sutton On Trent Ltd,
Nottinghamshire County Council,1111/1001,Children and Young People,CYP,Transport Related,CCA,10/08/2018,05-13376,"1,199.88",Meden Travel,
Nottinghamshire County Council,1111/1001,Children and Young People,CYP,Transport Related,CCA,10/08/2018,05-13377,680.75,Nunns Taxis Ltd,
Nottinghamshire County Council,1111/1001,Children and Young People,CYP,Transport Related,CCA,10/08/2018,05-13379,693.00,Travel Wright Ltd,
Nottinghamshire County Council,1111/1001,Children and Young People,CYP,Transport Related,CCA,10/08/2018,05-13380,10773,Travel Wright Ltd,
Nottinghamshire County Council,1111/1001,Children and Young People,CYP,Transport Related,CCA,10/08/2018,05-13381,"12,231.60",Travel Wright Ltd,
Nottinghamshire County Council,1111/1001,Children and Young People,CYP,Transport Related,CCA,10/08/2018,05-13382,2901.9,Travel Wright Ltd,
Nottinghamshire County Council,1111/1001,Children and Young People,CYP,Transport Related,CCA,10/08/2018,05-13383,2068.41,Travel Wright Ltd,
Nottinghamshire County Council,1111/1001,Children and Young People,CYP,Transport Related,CCA,10/08/2018,05-13385,"2,181.60",Travel Wright Ltd,
Nottinghamshire County Council,1111/1001,Children and Young People,CYP,Transport Related,CCA,10/08/2018,05-13390,"2,900.03",Travel Wright Ltd,
Nottinghamshire County Council,1111/1001,Children and Young People,CYP,Transport Related,CCA,10/08/2018,05-13391,2041.53,Travel Wright Ltd,
Nottinghamshire County Council,1111/1001,Children and Young People,CYP,Transport Related,CCA,10/08/2018,05-13392,"1,590.75",P & P Taxis,
Nottinghamshire County Council,1111/1001,Children and Young People,CYP,Transport Related,CCA,10/08/2018,05-13394,1908.9,P & P Taxis,
Nottinghamshire County Council,1111/1001,Children and Young People,CYP,Transport Related,CCA,10/08/2018,05-13395,7120.5,Wilfreda Beehive,
Nottinghamshire County Council,1111/1001,Children and Young People,CYP,Transport Related,CCA,10/08/2018,05-13397,2317.35,Freeway Coaches Ltd,
Nottinghamshire County Council,1111/1001,Children and Young People,CYP,Transport Related,CCA,10/08/2018,05-13398,2211.85,Freeway Coaches Ltd,
Nottinghamshire County Council,1111/1001,Children and Young People,CYP,Transport Related,CCA,10/08/2018,05-13399,"2,067.35",Freeway Coaches Ltd,
Nottinghamshire County Council,1111/1001,Children and Young People,CYP,Transport Related,CCA,10/08/2018,05-13400,7275.9,Freeway Coaches Ltd,
Nottinghamshire County Council,1111/1001,Children and Young People,CYP,Transport Related,CCA,10/08/2018,05-13401,1607.42,Freeway Coaches Ltd,
Nottinghamshire County Council,1111/1001,Children and Young People,CYP,Transport Related,CCA,10/08/2018,05-13402,3191.5,Freeway Coaches Ltd,
Nottinghamshire County Council,1111/1001,Children and Young People,CYP,Transport Related,CCA,10/08/2018,05-13404,"3,272.40",Kettlewell Retford Ltd,
Nottinghamshire County Council,1111/1001,Children and Young People,CYP,Transport Related,CCA,10/08/2018,05-13405,"3,305.16",Kettlewell Retford Ltd,
Nottinghamshire County Council,1111/1001,Children and Young People,CYP,Transport Related,CCA,10/08/2018,05-13406,2236.14,Kettlewell Retford Ltd,
Nottinghamshire County Council,1111/1001,Children and Young People,CYP,Transport Related,CCA,10/08/2018,05-13407,2499.75,Kettlewell Retford Ltd,
Nottinghamshire County Council,1111/1001,Children and Young People,CYP,Transport Related,CCA,10/08/2018,05-13408,"2,499.75",Kettlewell Retford Ltd,
Nottinghamshire County Council,1111/1001,Children and Young People,CYP,Transport Related,CCA,10/08/2018,05-13409,4054.63,Kettlewell Retford Ltd,
Nottinghamshire County Council,1111/1001,Children and Young People,CYP,Transport Related,CCA,10/08/2018,05-13411,6249.36,C W Moxon Ltd,
Nottinghamshire County Council,1111/1001,Children and Young People,CYP,Transport Related,CCA,10/08/2018,05-13412,7780.9,C W Moxon Ltd,
Nottinghamshire County Council,1111/1001,Children and Young People,CYP,Transport Related,CCA,10/08/2018,05-13414,3000,C W Moxon Ltd,
Nottinghamshire County Council,1111/1001,Children and Young People,CYP,Transport Related,CCA,10/08/2018,05-13417,1345.35,Rio Cabs,
Nottinghamshire County Council,1111/1001,Children and Young People,CYP,Transport Related,CCA,10/08/2018,05-13418,520.20,Rio Cabs,
Nottinghamshire County Council,1111/1001,Children and Young People,CYP,Transport Related,CCA,10/08/2018,05-13419,742.5,Rio Cabs,
Nottinghamshire County Council,1111/1001,Children and Young People,CYP,Transport Related,CCA,10/08/2018,05-13421,780.00,Rio Cabs,
Nottinghamshire County Council,1111/1001,Children and Young People,CYP,Transport Related,CCA,10/08/2018,05-13423,245,Cable Cars Taxis Nottm Ltd,
Nottinghamshire County Council,1111/1001,Children and Young People,CYP,Transport Related,CCA,10/08/2018,05-13427,2201.5,Ace Cars,
Nottinghamshire County Council,1111/1001,Children and Young People,CYP,Transport Related,CCA,10/08/2018,05-13428,"2,096.73",Ace Cars,
Nottinghamshire County Council,1111/1001,Children and Young People,CYP,Transport Related,CCA,10/08/2018,05-13430,"1,895.22",Ace Cars,
Nottinghamshire County Council,1111/1001,Children and Young People,CYP,Transport Related,CCA,10/08/2018,05-13431,1611,Ace Cars,
Nottinghamshire County Council,1111/1001,Children and Young People,CYP,Transport Related,CCA,10/08/2018,05-13432,"2,581.15",Ace Cars,
Nottinghamshire County Council,1111/1001,Children and Young People,CYP,Transport Related,CCA,10/08/2018,05-13433,"2,331.00",Ace Cars,
Nottinghamshire County Council,1111/1001,Children and Young People,CYP,Transport Related,CCA,10/08/2018,05-13434,1121.25,Ace Cars,
Nottinghamshire County Council,1111/1001,Children and Young People,CYP,Transport Related,CCA,10/08/2018,05-13436,"1,706.74",Ace Cars,
Nottinghamshire County Council,1111/1001,Children and Young People,CYP,Transport Related,CCA,10/08/2018,05-13437,"2,114.00",Ace Cars,
Nottinghamshire County Council,1111/1001,Children and Young People,CYP,Transport Related,CCA,10/08/2018,05-13438,2031.5,Ace Cars,
Nottinghamshire County Council,1111/1001,Children and Young People,CYP,Transport Related,CCA,10/08/2018,05-13439,805.50,Ace Cars,
Nottinghamshire County Council,1111/1001,Children and Young People,CYP,Transport Related,CCA,10/08/2018,05-13440,648.15,Ace Cars,
Nottinghamshire County Council,1111/1001,Children and Young People,CYP,Transport Related,CCA,10/08/2018,05-13442,1800,Ace Cars,
Nottinghamshire County Council,1111/1001,Children and Young People,CYP,Transport Related,CCA,10/08/2018,05-13443,1323,Ace Cars,
Nottinghamshire County Council,1111/1001,Children and Young People,CYP,Transport Related,CCA,10/08/2018,05-13445,2323.9,L A Travel,
Nottinghamshire County Council,1111/1001,Children and Young People,CYP,Transport Related,CCA,10/08/2018,05-13447,"2,060.40",Broadsword Cars,
Nottinghamshire County Council,1111/1001,Children and Young People,CYP,Transport Related,CCA,10/08/2018,05-13448,1802.85,Travel Liner,
Nottinghamshire County Council,1111/1001,Children and Young People,CYP,Transport Related,CCA,10/08/2018,05-13449,"1,712.35",Nottingham Coaches,
Nottinghamshire County Council,1111/1001,Children and Young People,CYP,Transport Related,CCA,10/08/2018,05-13450,2366.63,Nottingham Coaches,
Nottinghamshire County Council,1111/1001,Children and Young People,CYP,Transport Related,CCA,10/08/2018,05-13451,2771.02,Nottingham Coaches,
Nottinghamshire County Council,1111/1001,Children and Young People,CYP,Transport Related,CCA,10/08/2018,05-13452,"6,844.30",Nottingham Coaches,
Nottinghamshire County Council,1111/1001,Children and Young People,CYP,Transport Related,CCA,10/08/2018,05-13455,"1,783.50",Eurocab 2000 Ltd,
Nottinghamshire County Council,1111/1001,Children and Young People,CYP,Transport Related,CCA,10/08/2018,05-13456,1453.65,Eurocab 2000 Ltd,
Nottinghamshire County Council,1111/1001,Children and Young People,CYP,Transport Related,CCA,10/08/2018,05-13457,699.93,Eurocab 2000 Ltd,
Nottinghamshire County Council,1111/1001,Children and Young People,CYP,Transport Related,CCA,10/08/2018,05-13459,"1,350.00",Eurocab 2000 Ltd,
Nottinghamshire County Council,1111/1001,Children and Young People,CYP,Transport Related,CCA,10/08/2018,05-13461,"1,530.15",Trevor Bailey t/a Trevor Bailey Tra,
Nottinghamshire County Council,1111/1001,Children and Young People,CYP,Transport Related,CCA,10/08/2018,05-13463,"1,212.00",Eastwood Cars (UK) Ltd,
Nottinghamshire County Council,1111/1001,Children and Young People,CYP,Transport Related,CCA,10/08/2018,05-13464,800.00,Eastwood Cars (UK) Ltd,
Nottinghamshire County Council,1111/1001,Children and Young People,CYP,Transport Related,CCA,10/08/2018,05-13465,"2,640.00",Target Taxis,
Nottinghamshire County Council,1111/1001,Children and Young People,CYP,Transport Related,CCA,10/08/2018,05-13466,1386.18,A2B Licensed Taxis,
Nottinghamshire County Council,1111/1001,Children and Young People,CYP,Transport Related,CCA,10/08/2018,05-13467,750,A2B Licensed Taxis,
Nottinghamshire County Council,1111/1001,Children and Young People,CYP,Transport Related,CCA,10/08/2018,05-13468,"1,087.50",Sean's Taxi Services,
Nottinghamshire County Council,1111/1001,Children and Young People,CYP,Transport Related,CCA,10/08/2018,05-13470,545.4,Nottingham Cars Ltd,
Nottinghamshire County Council,1111/1001,Children and Young People,CYP,Transport Related,CCA,10/08/2018,05-13472,2072.52,Cocktail Travel T/A Unity Coaches L,
Nottinghamshire County Council,1111/1001,Children and Young People,CYP,Transport Related,CCA,10/08/2018,05-13473,1818,Cocktail Travel T/A Unity Coaches L,
Nottinghamshire County Council,1111/1001,Children and Young People,CYP,Transport Related,CCA,10/08/2018,05-13474,1399.86,Cocktail Travel T/A Unity Coaches L,
Nottinghamshire County Council,1111/1001,Children and Young People,CYP,Transport Related,CCA,10/08/2018,05-13475,593.88,Shiny Sky Ltd T/A A2b Cars,
Nottinghamshire County Council,1111/1001,Children and Young People,CYP,Transport Related,CCA,10/08/2018,05-13476,2108.88,Shiny Sky Ltd T/A A2b Cars,
Nottinghamshire County Council,1111/1001,Children and Young People,CYP,Transport Related,CCA,10/08/2018,05-13478,689.36,Shiny Sky Ltd T/A A2b Cars,
Nottinghamshire County Council,1111/1001,Children and Young People,CYP,Transport Related,CCA,10/08/2018,05-13480,600.00,Shiny Sky Ltd T/A A2b Cars,
Nottinghamshire County Council,1111/1001,Children and Young People,CYP,Transport Related,CCA,10/08/2018,05-13481,533.4,Shiny Sky Ltd T/A A2b Cars,
Nottinghamshire County Council,1111/1001,Children and Young People,CYP,Transport Related,CCA,10/08/2018,05-13483,687,Ideal Cars (Private Hire) Ltd,
Nottinghamshire County Council,1111/1001,Children and Young People,CYP,Transport Related,CCA,10/08/2018,05-13484,"2,272.50",A Travel,
Nottinghamshire County Council,1111/1001,Children and Young People,CYP,Transport Related,CCA,10/08/2018,05-13485,619.60,Nunns Taxis Ltd,
Nottinghamshire County Council,1111/1001,Children and Young People,CYP,Transport Related,CCA,10/08/2018,05-13486,751.44,Nunns Taxis Ltd,
Nottinghamshire County Council,1111/1001,Children and Young People,CYP,Transport Related,CCA,10/08/2018,05-13487,1111.57,Nunns Taxis Ltd,
Nottinghamshire County Council,1111/1001,Children and Young People,CYP,Transport Related,CCA,10/08/2018,05-13488,601.5,Nunns Taxis Ltd,
Nottinghamshire County Council,1111/1001,Children and Young People,CYP,Transport Related,CCA,10/08/2018,05-13489,630.00,ADF Cars Ltd,
Nottinghamshire County Council,1111/1001,Children and Young People,CYP,Transport Related,CCA,10/08/2018,05-13490,760.00,ADF Cars Ltd,
Nottinghamshire County Council,1111/1001,Children and Young People,CYP,Transport Related,CCA,10/08/2018,05-13491,990.00,Abacus Taxi & Courier Services,
Nottinghamshire County Council,1111/1001,Children and Young People,CYP,Transport Related,CCA,10/08/2018,05-13493,"1,000.00",Reliable Cars Ltd,
Nottinghamshire County Council,1111/1001,Children and Young People,CYP,Transport Related,CCA,10/08/2018,05-13494,714.00,Reliable Cars Ltd,
Nottinghamshire County Council,1111/1001,Children and Young People,CYP,Transport Related,CCA,10/08/2018,05-13495,756,Reliable Cars Ltd,
Nottinghamshire County Council,1111/1001,Children and Young People,CYP,Transport Related,CCA,10/08/2018,05-13496,880,Reliable Cars Ltd,
Nottinghamshire County Council,1111/1001,Children and Young People,CYP,Transport Related,CCA,10/08/2018,05-13499,"1,651.35",Forest Cars,
Nottinghamshire County Council,1111/1001,Children and Young People,CYP,Transport Related,CCA,10/08/2018,05-13500,799.92,Forest Cars,
Nottinghamshire County Council,1111/1001,Children and Young People,CYP,Transport Related,CCA,10/08/2018,05-13501,2436.12,Forest Cars,
Nottinghamshire County Council,1111/1001,Children and Young People,CYP,Transport Related,CCA,10/08/2018,05-13502,799.92,Forest Cars,
Nottinghamshire County Council,1111/1001,Children and Young People,CYP,Transport Related,CCA,10/08/2018,05-13504,"1,363.50",Forest Cars,
Nottinghamshire County Council,1111/1001,Children and Young People,CYP,Transport Related,CCA,10/08/2018,05-13505,1682.66,Forest Cars,
Nottinghamshire County Council,1111/1001,Children and Young People,CYP,Transport Related,CCA,10/08/2018,05-13506,"1,708.92",Forest Cars,
Nottinghamshire County Council,1111/1001,Children and Young People,CYP,Transport Related,CCA,10/08/2018,05-13507,"1,683.00",Forest Cars,
Nottinghamshire County Council,1111/1001,Children and Young People,CYP,Transport Related,CCA,10/08/2018,05-13508,593.88,Forest Cars,
Nottinghamshire County Council,1111/1001,Children and Young People,CYP,Transport Related,CCA,10/08/2018,05-13509,1139.28,Forest Cars,
Nottinghamshire County Council,1111/1001,Children and Young People,CYP,Transport Related,CCA,10/08/2018,05-13510,958.50,Forest Cars,
Nottinghamshire County Council,1111/1001,Children and Young People,CYP,Transport Related,CCA,10/08/2018,05-13511,"1,781.64",Forest Cars,
Nottinghamshire County Council,1111/1001,Children and Young People,CYP,Transport Related,CCA,10/08/2018,05-13512,436.32,Forest Cars,
Nottinghamshire County Council,1111/1001,Children and Young People,CYP,Transport Related,CCA,10/08/2018,05-13514,774.00,Forest Cars,
Nottinghamshire County Council,1111/1001,Children and Young People,CYP,Transport Related,CCA,10/08/2018,05-13515,"1,340.00",Forest Cars,
Nottinghamshire County Council,1111/1001,Children and Young People,CYP,Transport Related,CCA,10/08/2018,05-13516,560.55,Forest Cars,
Nottinghamshire County Council,1111/1001,Children and Young People,CYP,Transport Related,CCA,10/08/2018,05-13518,2278,Forest Cars,
Nottinghamshire County Council,1111/1001,Children and Young People,CYP,Transport Related,CCA,10/08/2018,05-13519,1170,Forest Cars,
Nottinghamshire County Council,1111/1001,Children and Young People,CYP,Transport Related,CCA,10/08/2018,05-13520,936,Forest Cars,
Nottinghamshire County Council,1111/1001,Children and Young People,CYP,Transport Related,CCA,10/08/2018,05-13521,1206,Forest Cars,
Nottinghamshire County Council,1111/1001,Children and Young People,CYP,Transport Related,CCA,10/08/2018,05-13523,890.82,Forest Cars,
Nottinghamshire County Council,1111/1001,Children and Young People,CYP,Transport Related,CCA,13/08/2018,05-13551,433.43,Southside Cars,
Nottinghamshire County Council,1111/1001,Children and Young People,CYP,Transport Related,CCA,13/08/2018,05-13553,502.5,Southside Cars,
Nottinghamshire County Council,1111/1001,Children and Young People,CYP,Transport Related,CCA,13/08/2018,05-13554,2295.18,Central Cars Nottm Ltd,
Nottinghamshire County Council,1111/1001,Children and Young People,CYP,Transport Related,CCA,13/08/2018,05-13555,1620,Central Cars Nottm Ltd,
Nottinghamshire County Council,1111/1001,Children and Young People,CYP,Transport Related,CCA,13/08/2018,05-13557,2382.12,F4Control Ltd (t/a First4care),
Nottinghamshire County Council,1111/1001,Children and Young People,CYP,Transport Related,CCA,13/08/2018,05-13559,2788.56,F4Control Ltd (t/a First4care),
Nottinghamshire County Council,1111/1001,Children and Young People,CYP,Transport Related,CCA,13/08/2018,05-13560,2213.85,F4Control Ltd (t/a First4care),
Nottinghamshire County Council,1111/1001,Children and Young People,CYP,Transport Related,CCA,13/08/2018,05-13561,4399.36,Glenn Ryder Coaches,
Nottinghamshire County Council,1111/1001,Children and Young People,CYP,Transport Related,CCA,13/08/2018,05-13564,2427.77,Bridges Transport Ltd,
Nottinghamshire County Council,1111/1001,Children and Young People,CYP,Transport Related,CCA,13/08/2018,05-13565,1242.3,Bridges Transport Ltd,
Nottinghamshire County Council,1111/1001,Children and Young People,CYP,Transport Related,CCA,13/08/2018,05-13566,"2,398.00",Galaxy Cabs Ltd,
Nottinghamshire County Council,1111/1001,Children and Young People,CYP,Transport Related,CCA,13/08/2018,05-13567,"2,618.00",Horizon Travel,
Nottinghamshire County Council,1111/1001,Children and Young People,CYP,Transport Related,CCA,13/08/2018,05-13568,"2,999.70",Ja Travel Ltd,
Nottinghamshire County Council,1111/1001,Children and Young People,CYP,Transport Related,CCA,13/08/2018,05-13569,1549.21,Ja Travel Ltd,
Nottinghamshire County Council,1111/1001,Children and Young People,CYP,Transport Related,CCA,13/08/2018,05-13571,"2,138.36",F4Control Ltd (t/a First4care),
Nottinghamshire County Council,1111/1001,Children and Young People,CYP,Transport Related,CCA,13/08/2018,05-13572,"1,692.30",F4Control Ltd (t/a First4care),
Nottinghamshire County Council,1111/1001,Children and Young People,CYP,Transport Related,CCA,13/08/2018,05-13573,"1,809.17",F4Control Ltd (t/a First4care),
Nottinghamshire County Council,1111/1001,Children and Young People,CYP,Transport Related,CCA,13/08/2018,05-13574,1358.67,F4Control Ltd (t/a First4care),
Nottinghamshire County Council,1111/1001,Children and Young People,CYP,Transport Related,CCA,13/08/2018,05-13576,930.61,F4Control Ltd (t/a First4care),
Nottinghamshire County Council,1111/1001,Children and Young People,CYP,Transport Related,CCA,13/08/2018,05-13578,1278.03,F4Control Ltd (t/a First4care),
Nottinghamshire County Council,1111/1001,Children and Young People,CYP,Transport Related,CCA,13/08/2018,05-13580,"1,112.90",F4Control Ltd (t/a First4care),
Nottinghamshire County Council,1111/1001,Children and Young People,CYP,Transport Related,CCA,13/08/2018,05-13582,1788,F4Control Ltd (t/a First4care),
Nottinghamshire County Council,1111/1001,Children and Young People,CYP,Transport Related,CCA,13/08/2018,05-13583,2402.64,F4Control Ltd (t/a First4care),
Nottinghamshire County Council,1111/1001,Children and Young People,CYP,Transport Related,CCA,13/08/2018,05-13584,"1,223.20",F4Control Ltd (t/a First4care),
Nottinghamshire County Council,1111/1001,Children and Young People,CYP,Transport Related,CCA,13/08/2018,05-13586,"2,013.82",BN Gibson Ltd,
Nottinghamshire County Council,1111/1001,Children and Young People,CYP,Transport Related,CCA,13/08/2018,05-13587,2110.76,BN Gibson Ltd,
Nottinghamshire County Council,1111/1001,Children and Young People,CYP,Transport Related,CCA,13/08/2018,05-13597,551.01,Abacus Cars,
Nottinghamshire County Council,1111/1001,Children and Young People,CYP,Transport Related,CCA,13/08/2018,05-13600,304,Abacus Cars,
Nottinghamshire County Council,1111/1001,Children and Young People,CYP,Transport Related,CCA,13/08/2018,05-13605,273.11,Abacus Cars,
Nottinghamshire County Council,1111/1001,Children and Young People,CYP,Transport Related,CCA,13/08/2018,05-13608,1360,Abacus Cars,
Nottinghamshire County Council,1111/1001,Children and Young People,CYP,Transport Related,CCA,13/08/2018,05-13609,1615,Abacus Cars,
Nottinghamshire County Council,1111/1001,Children and Young People,CYP,Transport Related,CCA,13/08/2018,05-13610,606.00,Abacus Cars,
Nottinghamshire County Council,1111/1001,Children and Young People,CYP,Transport Related,CCA,13/08/2018,05-13611,1375.5,Abacus Cars,
Nottinghamshire County Council,1111/1001,Children and Young People,CYP,Transport Related,CCA,13/08/2018,05-13612,1818,Abacus Cars,
Nottinghamshire County Council,1111/1001,Children and Young People,CYP,Transport Related,CCA,13/08/2018,05-13613,1584,Abacus Cars,
Nottinghamshire County Council,1111/1001,Children and Young People,CYP,Transport Related,CCA,13/08/2018,05-13614,"1,081.80",Abacus Cars,
Nottinghamshire County Council,1111/1001,Children and Young People,CYP,Transport Related,CCA,13/08/2018,05-13615,"1,300.00",Abacus Cars,
Nottinghamshire County Council,1111/1001,Children and Young People,CYP,Transport Related,CCA,13/08/2018,05-13616,2100,Abacus Cars,
Nottinghamshire County Council,1111/1001,Children and Young People,CYP,Transport Related,CCA,13/08/2018,05-13622,2393.05,Gem Mini Travel Ltd,
Nottinghamshire County Council,1111/1001,Children and Young People,CYP,Transport Related,CCA,13/08/2018,05-13623,"2,548.25",Gem Mini Travel Ltd,
Nottinghamshire County Council,1111/1001,Children and Young People,CYP,Transport Related,CCA,13/08/2018,05-13624,1607.7,Marshalls Of Sutton On Trent Ltd,
Nottinghamshire County Council,1111/1001,Children and Young People,CYP,Transport Related,CCA,13/08/2018,05-13628,2637.45,Marshalls Of Sutton On Trent Ltd,
Nottinghamshire County Council,1111/1001,Children and Young People,CYP,Transport Related,CCA,13/08/2018,05-13630,2575.5,Marshalls Of Sutton On Trent Ltd,
Nottinghamshire County Council,1111/1001,Children and Young People,CYP,Transport Related,CCA,13/08/2018,05-13631,2772.45,Marshalls Of Sutton On Trent Ltd,
Nottinghamshire County Council,1111/1001,Children and Young People,CYP,Transport Related,CCA,13/08/2018,05-13639,2837.52,Nottingham Minibuses & Coaches,
Nottinghamshire County Council,1111/1001,Children and Young People,CYP,Transport Related,CCA,13/08/2018,05-13642,"1,795.32",Nottingham Minibuses & Coaches,
Nottinghamshire County Council,1111/1001,Children and Young People,CYP,Transport Related,CCA,13/08/2018,05-13644,5846.25,Stagecoach Services Ltd,
Nottinghamshire County Council,1111/1001,Children and Young People,CYP,Transport Related,CCA,13/08/2018,05-13646,"4,690.34",Stagecoach Services Ltd,
Nottinghamshire County Council,1111/1001,Children and Young People,CYP,Transport Related,CCA,13/08/2018,05-13653,4226.22,Stagecoach Services Ltd,
Nottinghamshire County Council,1111/1001,Children and Young People,CYP,Transport Related,CCA,13/08/2018,05-13661,4198.86,Stagecoach Services Ltd,
Nottinghamshire County Council,1111/1001,Children and Young People,CYP,Transport Related,CCA,13/08/2018,05-13662,"2,753.67",Stagecoach Services Ltd,
Nottinghamshire County Council,1111/1001,Children and Young People,CYP,Transport Related,CCA,13/08/2018,05-13664,"5,086.10",Stagecoach Services Ltd,
Nottinghamshire County Council,1111/1001,Children and Young People,CYP,Transport Related,CCA,13/08/2018,05-13665,4310.1,Stagecoach Services Ltd,
Nottinghamshire County Council,1111/1001,Children and Young People,CYP,Transport Related,CCA,13/08/2018,05-13666,"5,228.77",Stagecoach Services Ltd,
Nottinghamshire County Council,1111/1001,Children and Young People,CYP,Transport Related,CCA,13/08/2018,05-13671,"3,254.22",Stagecoach Services Ltd,
Nottinghamshire County Council,1111/1001,Children and Young People,CYP,Transport Related,CCA,13/08/2018,05-13672,3436.02,Stagecoach Services Ltd,
Nottinghamshire County Council,1111/1001,Children and Young People,CYP,Transport Related,CCA,13/08/2018,05-13673,"3,254.22",Stagecoach Services Ltd,
Nottinghamshire County Council,1111/1001,Children and Young People,CYP,Transport Related,CCA,13/08/2018,05-13674,"1,445.40",Stagecoach Services Ltd,
Nottinghamshire County Council,1111/1001,Children and Young People,CYP,Transport Related,CCA,13/08/2018,05-13675,2580.3,Stagecoach Services Ltd,
Nottinghamshire County Council,1111/1001,Children and Young People,CYP,Transport Related,CCA,13/08/2018,05-13680,"4,839.42",Stagecoach Services Ltd,
Nottinghamshire County Council,1111/1001,Children and Young People,CYP,Transport Related,CCA,13/08/2018,05-13681,1445.4,Stagecoach Services Ltd,
Nottinghamshire County Council,1111/1001,Children and Young People,CYP,Transport Related,CCA,13/08/2018,05-13686,12032.09,Tiger European Uk Ltd,
Nottinghamshire County Council,1111/1001,Children and Young People,CYP,Transport Related,CCA,13/08/2018,05-13687,3545.1,Tiger European Uk Ltd,
Nottinghamshire County Council,1111/1001,Children and Young People,CYP,Transport Related,CCA,13/08/2018,05-13688,2627.01,Tiger European Uk Ltd,
Nottinghamshire County Council,1111/1001,Children and Young People,CYP,Transport Related,CCA,13/08/2018,05-13689,"3,259.80",Tiger European Uk Ltd,
Nottinghamshire County Council,1111/1001,Children and Young People,CYP,Transport Related,CCA,13/08/2018,05-13692,3284.65,Tiger European Uk Ltd,
Nottinghamshire County Council,1111/1001,Children and Young People,CYP,Transport Related,CCA,13/08/2018,05-13693,"3,121.56",K Matthews Travel,
Nottinghamshire County Council,1111/1001,Children and Young People,CYP,Transport Related,CCA,13/08/2018,05-13694,2937.96,K Matthews Travel,
Nottinghamshire County Council,1111/1001,Children and Young People,CYP,Transport Related,CCA,13/08/2018,05-13696,3581.85,Isle Coaches,
Nottinghamshire County Council,1111/1001,Children and Young People,CYP,Transport Related,CCA,13/08/2018,05-13697,"2,196.54",Nottingham Coaches,
Nottinghamshire County Council,1111/1001,Children and Young People,CYP,Transport Related,CCA,13/08/2018,05-13698,"1,772.10",Community Transport for Town & Coun,
Nottinghamshire County Council,1111/1001,Children and Young People,CYP,Transport Related,CCA,13/08/2018,05-13701,2331,Rushcliffe Travel Ltd,
Nottinghamshire County Council,1111/1001,Children and Young People,CYP,Transport Related,CCA,13/08/2018,05-13702,1121.1,Forest Cars,
Nottinghamshire County Council,1111/1001,Children and Young People,CYP,Transport Related,CCA,13/08/2018,05-13703,"1,358.82",Forest Cars,
Nottinghamshire County Council,1111/1001,Children and Young People,CYP,Transport Related,CCA,13/08/2018,05-13704,"1,228.80",East Midlands Care Matters (Head Of,
Nottinghamshire County Council,1111/1001,Children and Young People,CYP,Transport Related,CCA,15/08/2018,05-14479,667.00,Southside Cars,
Nottinghamshire County Council,1111/1001,Children and Young People,CYP,Transport Related,CCA,15/08/2018,05-14480,767.00,Southside Cars,
Nottinghamshire County Council,1111/1001,Children and Young People,CYP,Transport Related,CCA,15/08/2018,05-14481,"1,495.60",Southside Cars,
Nottinghamshire County Council,1111/1001,Children and Young People,CYP,Transport Related,CCA,15/08/2018,05-14482,5720.4,Butler Brothers Ltd,
Nottinghamshire County Council,1111/1001,Children and Young People,CYP,Transport Related,CCA,15/08/2018,05-14483,2482,Fozcabs Newark Taxis,
Nottinghamshire County Council,1111/1001,Children and Young People,CYP,Transport Related,CCA,15/08/2018,05-14485,880.00,Galaxy Cabs Ltd,
Nottinghamshire County Council,1111/1001,Children and Young People,CYP,Transport Related,CCA,15/08/2018,05-14486,1090.8,Shelleys Taxis Ltd,
Nottinghamshire County Council,1111/1001,Children and Young People,CYP,Transport Related,CCA,15/08/2018,05-14487,1651.2,Shelleys Taxis Ltd,
Nottinghamshire County Council,1111/1001,Children and Young People,CYP,Transport Related,CCA,15/08/2018,05-14489,2647.11,BN Gibson Ltd,
Nottinghamshire County Council,1111/1001,Children and Young People,CYP,Transport Related,CCA,15/08/2018,05-14492,252,D G Private Hire Ltd,
Nottinghamshire County Council,1111/1001,Children and Young People,CYP,Transport Related,CCA,15/08/2018,05-14494,1312.5,D G Private Hire Ltd,
Nottinghamshire County Council,1111/1001,Children and Young People,CYP,Transport Related,CCA,15/08/2018,05-14496,969,D G Private Hire Ltd,
Nottinghamshire County Council,1111/1001,Children and Young People,CYP,Transport Related,CCA,15/08/2018,05-14498,652.8,Abacus Cars,
Nottinghamshire County Council,1111/1001,Children and Young People,CYP,Transport Related,CCA,15/08/2018,05-14500,"2,708.25",Gem Mini Travel Ltd,
Nottinghamshire County Council,1111/1001,Children and Young People,CYP,Transport Related,CCA,15/08/2018,05-14501,660,Town Cars (UK) Ltd,
Nottinghamshire County Council,1111/1001,Children and Young People,CYP,Transport Related,CCA,15/08/2018,05-14502,2172.6,Ace Cars,
Nottinghamshire County Council,1111/1001,Children and Young People,CYP,Transport Related,CCA,15/08/2018,05-14504,2081.7,Ace Cars,
Nottinghamshire County Council,1111/1001,Children and Young People,CYP,Transport Related,CCA,15/08/2018,05-14505,"1,627.20",Ace Cars,
Nottinghamshire County Council,1111/1001,Children and Young People,CYP,Transport Related,CCA,15/08/2018,05-14506,"2,097.00",Ace Cars,
Nottinghamshire County Council,1111/1001,Children and Young People,CYP,Transport Related,CCA,15/08/2018,05-14507,"2,691.00",Ace Cars,
Nottinghamshire County Council,1111/1001,Children and Young People,CYP,Transport Related,CCA,15/08/2018,05-14508,1701,Ace Cars,
Nottinghamshire County Council,1111/1001,Children and Young People,CYP,Transport Related,CCA,15/08/2018,05-14509,2114,Ace Cars,
Nottinghamshire County Council,1111/1001,Children and Young People,CYP,Transport Related,CCA,15/08/2018,05-14512,799.92,D G Private Hire Ltd,
Nottinghamshire County Council,1111/1001,Children and Young People,CYP,Transport Related,CCA,15/08/2018,05-14513,884,Reliable Cars Ltd,
Nottinghamshire County Council,1111/1001,Children and Young People,CYP,Transport Related,CCA,17/08/2018,05-18170,579.1,Exclusive,
Nottinghamshire County Council,1111/1001,Children and Young People,CYP,Transport Related,CCA,20/08/2018,05-14626,"1,249.30",Alert Cars Ltd,
Nottinghamshire County Council,1111/1001,Children and Young People,CYP,Transport Related,CCA,20/08/2018,05-14627,806.00,Shelleys Taxis Ltd,
Nottinghamshire County Council,1111/1001,Children and Young People,CYP,Transport Related,CCA,20/08/2018,05-14628,"2,362.31",Silverdale Tours Nottm Ltd,
Nottinghamshire County Council,1111/1001,Children and Young People,CYP,Transport Related,CCA,20/08/2018,05-14629,2931.76,Silverdale Tours Nottm Ltd,
Nottinghamshire County Council,1111/1001,Children and Young People,CYP,Transport Related,CCA,20/08/2018,05-14630,2548.06,Silverdale Tours Nottm Ltd,
Nottinghamshire County Council,1111/1001,Children and Young People,CYP,Transport Related,CCA,20/08/2018,05-14631,"2,544.12",Silverdale Tours Nottm Ltd,
Nottinghamshire County Council,1111/1001,Children and Young People,CYP,Transport Related,CCA,20/08/2018,05-14632,"2,889.12",Silverdale Tours Nottm Ltd,
Nottinghamshire County Council,1111/1001,Children and Young People,CYP,Transport Related,CCA,20/08/2018,05-14633,2775.14,Silverdale Tours Nottm Ltd,
Nottinghamshire County Council,1111/1001,Children and Young People,CYP,Transport Related,CCA,20/08/2018,05-14634,"2,375.70",Silverdale Tours Nottm Ltd,
Nottinghamshire County Council,1111/1001,Children and Young People,CYP,Transport Related,CCA,20/08/2018,05-14636,2700,Silverdale Tours Nottm Ltd,
Nottinghamshire County Council,1111/1001,Children and Young People,CYP,Transport Related,CCA,20/08/2018,05-14637,10312.1,Tiger European Uk Ltd,
Nottinghamshire County Council,1111/1001,Children and Young People,CYP,Transport Related,CCA,20/08/2018,05-14638,541.35,Bassetlaw Action Centre,
Nottinghamshire County Council,1111/1001,Children and Young People,CYP,Transport Related,CCA,20/08/2018,05-14639,1481.1,Bassetlaw Action Centre,
Nottinghamshire County Council,1111/1001,Children and Young People,CYP,Transport Related,CCA,20/08/2018,05-14640,780.00,Bassetlaw Action Centre,
Nottinghamshire County Council,1111/1001,Children and Young People,CYP,Transport Related,CCA,24/08/2018,05-15874,2105.88,Johnson Bros Tours Ltd,
Nottinghamshire County Council,1111/1001,Children and Young People,CYP,Transport Related,CCA,24/08/2018,05-15883,1261.57,Bridges Transport Ltd,
Nottinghamshire County Council,1111/1001,Children and Young People,CYP,Transport Related,CCA,24/08/2018,05-15884,2726.82,Bridges Transport Ltd,
Nottinghamshire County Council,1111/1001,Children and Young People,CYP,Transport Related,CCA,24/08/2018,05-15885,"4,946.44",Butler Brothers Ltd,
Nottinghamshire County Council,1111/1001,Children and Young People,CYP,Transport Related,CCA,24/08/2018,05-15897,"1,377.50",Sprays Transport Ltd,
Nottinghamshire County Council,1111/1001,Children and Young People,CYP,Transport Related,CCA,24/08/2018,05-15901,5234.3,Gem Mini Travel Ltd,
Nottinghamshire County Council,1111/1001,Children and Young People,CYP,Transport Related,CCA,24/08/2018,05-15902,3038.85,Marshalls Of Sutton On Trent Ltd,
Nottinghamshire County Council,1111/1001,Children and Young People,CYP,Transport Related,CCA,24/08/2018,05-15904,1661.95,Silverdale Tours Nottm Ltd,
Nottinghamshire County Council,1111/1001,Children and Young People,CYP,Transport Related,CCA,24/08/2018,05-15905,1301.49,Travel Wright Ltd,
Nottinghamshire County Council,1111/1001,Children and Young People,CYP,Transport Related,CCA,24/08/2018,05-15906,650.7,Travel Wright Ltd,
Nottinghamshire County Council,1111/1001,Children and Young People,CYP,Transport Related,CCA,24/08/2018,05-15911,2587.24,Freeway Coaches Ltd,
Nottinghamshire County Council,1111/1001,Children and Young People,CYP,Transport Related,CCA,24/08/2018,05-15912,"2,432.94",Freeway Coaches Ltd,
Nottinghamshire County Council,1111/1001,Children and Young People,CYP,Transport Related,CCA,24/08/2018,05-15913,721.8,Bassetlaw Action Centre,
Nottinghamshire County Council,1111/1001,Children and Young People,CYP,Transport Related,CCA,24/08/2018,05-15914,"1,974.80",Bassetlaw Action Centre,
Nottinghamshire County Council,1111/1001,Children and Young People,CYP,Transport Related,CCA,24/08/2018,05-15915,1040,Bassetlaw Action Centre,
Nottinghamshire County Council,1111/1001,Children and Young People,CYP,Transport Related,CCA,24/08/2018,05-15916,936,Bassetlaw Action Centre,
Nottinghamshire County Council,1111/1001,Children and Young People,CYP,Transport Related,CCA,24/08/2018,05-15920,1510.11,Wallis Coachways,
Nottinghamshire County Council,1111/1001,Children and Young People,CYP,Transport Related,CCA,24/08/2018,05-15921,"1,613.52",Wallis Coachways,
Nottinghamshire County Council,1111/1001,Children and Young People,CYP,Transport Related,CCA,24/08/2018,05-15922,"2,809.44",Wallis Coachways,
Nottinghamshire County Council,1111/1001,Children and Young People,CYP,Transport Related,CCA,24/08/2018,05-15926,688.56,Nottingham Coaches,
Nottinghamshire County Council,1111/1001,Children and Young People,CYP,Transport Related,CCA,24/08/2018,05-15931,2585.6,Shiny Sky Ltd T/A A2b Cars,
Nottinghamshire County Council,1111/1001,Children and Young People,CYP,Transport Related,CDA,10/08/2018,05-13103,1425,Johnson Bros Tours Ltd,
Nottinghamshire County Council,1111/1001,Children and Young People,CYP,Transport Related,CDA,10/08/2018,05-13104,"3,360.00",Johnson Bros Tours Ltd,
Nottinghamshire County Council,1111/1001,Children and Young People,CYP,Transport Related,CDA,10/08/2018,05-13105,"1,722.00",Johnson Bros Tours Ltd,
Nottinghamshire County Council,1111/1001,Children and Young People,CYP,Transport Related,CDA,10/08/2018,05-13133,504.27,Arrow Specialised Transport Ltd,
Nottinghamshire County Council,1111/1001,Children and Young People,CYP,Transport Related,CDA,10/08/2018,05-13184,63.04,Arrow Specialised Transport Ltd,
Nottinghamshire County Council,1111/1001,Children and Young People,CYP,Transport Related,CDA,10/08/2018,05-13245,765,Ng11 Cars,
Nottinghamshire County Council,1111/1001,Children and Young People,CYP,Transport Related,CDA,10/08/2018,05-13272,2733.24,Sprays Transport Ltd,
Nottinghamshire County Council,1111/1001,Children and Young People,CYP,Transport Related,CDA,10/08/2018,05-13282,572.67,F4Control Ltd (t/a First4care),
Nottinghamshire County Council,1111/1001,Children and Young People,CYP,Transport Related,CDA,10/08/2018,05-13299,647.61,BN Gibson Ltd,
Nottinghamshire County Council,1111/1001,Children and Young People,CYP,Transport Related,CDA,10/08/2018,05-13358,3247.2,AOT Coaches,
Nottinghamshire County Council,1111/1001,Children and Young People,CYP,Transport Related,CDA,10/08/2018,05-13393,"1,381.68",P & P Taxis,
Nottinghamshire County Council,1111/1001,Children and Young People,CYP,Transport Related,CDA,10/08/2018,05-13410,"5,136.00",Paul S Winson Coaches,
Nottinghamshire County Council,1111/1001,Children and Young People,CYP,Transport Related,CDA,10/08/2018,05-13413,"3,150.00",C W Moxon Ltd,
Nottinghamshire County Council,1111/1001,Children and Young People,CYP,Transport Related,CDA,10/08/2018,05-13415,"2,520.00",C W Moxon Ltd,
Nottinghamshire County Council,1111/1001,Children and Young People,CYP,Transport Related,CDA,10/08/2018,05-13416,"8,652.00",C W Moxon Ltd,
Nottinghamshire County Council,1111/1001,Children and Young People,CYP,Transport Related,CDA,10/08/2018,05-13419,742.5,Rio Cabs,
Nottinghamshire County Council,1111/1001,Children and Young People,CYP,Transport Related,CDA,10/08/2018,05-13423,455.00,Cable Cars Taxis Nottm Ltd,
Nottinghamshire County Council,1111/1001,Children and Young People,CYP,Transport Related,CDA,10/08/2018,05-13428,189.77,Ace Cars,
Nottinghamshire County Council,1111/1001,Children and Young People,CYP,Transport Related,CDA,10/08/2018,05-13440,96.85,Ace Cars,
Nottinghamshire County Council,1111/1001,Children and Young People,CYP,Transport Related,CDA,10/08/2018,05-13460,1770,Eurocab 2000 Ltd,
Nottinghamshire County Council,1111/1001,Children and Young People,CYP,Transport Related,CDA,10/08/2018,05-13468,"1,087.50",Sean's Taxi Services,
Nottinghamshire County Council,1111/1001,Children and Young People,CYP,Transport Related,CDA,10/08/2018,05-13497,705.00,Fastlane Cabs,
Nottinghamshire County Council,1111/1001,Children and Young People,CYP,Transport Related,CDA,10/08/2018,05-13502,799.92,Forest Cars,
Nottinghamshire County Council,1111/1001,Children and Young People,CYP,Transport Related,CDA,10/08/2018,05-13512,436.32,Forest Cars,
Nottinghamshire County Council,1111/1001,Children and Young People,CYP,Transport Related,CDA,10/08/2018,05-13516,560.55,Forest Cars,
Nottinghamshire County Council,1111/1001,Children and Young People,CYP,Transport Related,CDA,10/08/2018,05-13521,1206,Forest Cars,
Nottinghamshire County Council,1111/1001,Children and Young People,CYP,Transport Related,CDA,13/08/2018,05-13551,866.57,Southside Cars,
Nottinghamshire County Council,1111/1001,Children and Young People,CYP,Transport Related,CDA,13/08/2018,05-13593,919.10,Abacus Cars,
Nottinghamshire County Council,1111/1001,Children and Young People,CYP,Transport Related,CDA,13/08/2018,05-13597,551.01,Abacus Cars,
Nottinghamshire County Council,1111/1001,Children and Young People,CYP,Transport Related,CDA,13/08/2018,05-13599,1925,Abacus Cars,
Nottinghamshire County Council,1111/1001,Children and Young People,CYP,Transport Related,CDA,13/08/2018,05-13600,304,Abacus Cars,
Nottinghamshire County Council,1111/1001,Children and Young People,CYP,Transport Related,CDA,13/08/2018,05-13618,"1,760.00",AOT Coaches,
Nottinghamshire County Council,1111/1001,Children and Young People,CYP,Transport Related,CDA,13/08/2018,05-13632,4368,Marshalls Of Sutton On Trent Ltd,
Nottinghamshire County Council,1111/1001,Children and Young People,CYP,Transport Related,CDA,13/08/2018,05-13634,"2,380.00",Nottingham Minibuses & Coaches,
Nottinghamshire County Council,1111/1001,Children and Young People,CYP,Transport Related,CDA,13/08/2018,05-13635,2340,Nottingham Minibuses & Coaches,
Nottinghamshire County Council,1111/1001,Children and Young People,CYP,Transport Related,CDA,13/08/2018,05-13636,2139,Nottingham Minibuses & Coaches,
Nottinghamshire County Council,1111/1001,Children and Young People,CYP,Transport Related,CDA,13/08/2018,05-13637,"1,425.00",Nottingham Minibuses & Coaches,
Nottinghamshire County Council,1111/1001,Children and Young People,CYP,Transport Related,CDA,13/08/2018,05-13638,"1,875.00",Nottingham Minibuses & Coaches,
Nottinghamshire County Council,1111/1001,Children and Young People,CYP,Transport Related,CDA,13/08/2018,05-13640,2403.8,Nottingham Minibuses & Coaches,
Nottinghamshire County Council,1111/1001,Children and Young People,CYP,Transport Related,CDA,13/08/2018,05-13641,"2,210.00",Nottingham Minibuses & Coaches,
Nottinghamshire County Council,1111/1001,Children and Young People,CYP,Transport Related,CDA,13/08/2018,05-13643,8367.4,Nottingham Minibuses & Coaches,
Nottinghamshire County Council,1111/1001,Children and Young People,CYP,Transport Related,CDA,13/08/2018,05-13690,"1,593.00",Tiger European Uk Ltd,
Nottinghamshire County Council,1111/1001,Children and Young People,CYP,Transport Related,CDA,13/08/2018,05-13691,1386,Tiger European Uk Ltd,
Nottinghamshire County Council,1111/1001,Children and Young People,CYP,Transport Related,CDA,15/08/2018,05-14487,550.40,Shelleys Taxis Ltd,
Nottinghamshire County Council,1111/1001,Children and Young People,CYP,Transport Related,CDA,15/08/2018,05-14489,378.15,BN Gibson Ltd,
Nottinghamshire County Council,1111/1001,Children and Young People,CYP,Transport Related,CDA,15/08/2018,05-14492,252,D G Private Hire Ltd,
Nottinghamshire County Council,1111/1001,Children and Young People,CYP,Transport Related,CDA,20/08/2018,05-14635,"10,980.00",Silverdale Tours Nottm Ltd,
Nottinghamshire County Council,1111/1001,Children and Young People,CYP,Transport Related,CDA,24/08/2018,05-15894,"1,205.34",Shelleys Taxis Ltd,
Nottinghamshire County Council,1111/1001,Children and Young People,CYP,Transport Related,CDA,24/08/2018,05-15899,"1,343.00",Abacus Cars,
Nottinghamshire County Council,1111/1001,Children and Young People,CYP,Transport Related,CDA,28/08/2018,05-15960,"4,154.75",Stagecoach Services Ltd,
Nottinghamshire County Council,1111/1001,Children and Young People,CYP,Transport Related,CDA,28/08/2018,05-15961,116831.6,Stagecoach Services Ltd,
Nottinghamshire County Council,1111/1001,Children and Young People,CYP,Transport Related,CEA,03/08/2018,05-10029,"3,770.05",Reed Employment Plc,
Nottinghamshire County Council,1111/1001,Children and Young People,CYP,Transport Related,CEA,17/08/2018,05-13545,2458.23,Reed Employment Plc,
Nottinghamshire County Council,1111/1001,Children and Young People,CYP,Transport Related,CEA,24/08/2018,05-14469,"2,133.51",Reed Employment Plc,
Nottinghamshire County Council,1111/1001,Children and Young People,CYP,Transport Related,CEA,31/08/2018,05-14652,3209.4,Reed Employment Plc,
Nottinghamshire County Council,1111/1001,Children and Young People,CYP,Supplies & Services,DAA,20/08/2018,05-14624,2428.99,Butlers Hill Infant & Nursery Schoo,
Nottinghamshire County Council,1111/1001,Children and Young People,CYP,Supplies & Services,DEA,01/08/2018,05-18063,"5,440.00",[Redacted],
Nottinghamshire County Council,1111/1001,Children and Young People,CYP,Supplies & Services,DEA,02/08/2018,05-18053,15447.64,Nottingham Trent University,
Nottinghamshire County Council,1111/1001,Children and Young People,CYP,Supplies & Services,DEA,02/08/2018,05-18095,924.89,TSS Services,
Nottinghamshire County Council,1111/1001,Children and Young People,CYP,Supplies & Services,DEA,03/08/2018,05-18087,1000,Tarragon Training,
Nottinghamshire County Council,1111/1001,Children and Young People,CYP,Supplies & Services,DEA,15/08/2018,05-18159,745,Anna Pinkerton Ltd,
Nottinghamshire County Council,1111/1001,Children and Young People,CYP,Supplies & Services,DEA,23/08/2018,05-18190,882.40,[Redacted],
Nottinghamshire County Council,1111/1001,Children and Young People,CYP,Supplies & Services,DEA,24/08/2018,05-18215,780,Purple House Ltd,
Nottinghamshire County Council,1111/1001,Children and Young People,CYP,Supplies & Services,DEA,29/08/2018,05-18220,780,Purple House Ltd,
Nottinghamshire County Council,1111/1001,Children and Young People,CYP,Supplies & Services,DEA,30/08/2018,05-18141,540,Shortland Psychology Associates Ltd,
Nottinghamshire County Council,1111/1001,Children and Young People,CYP,Supplies & Services,DEA,30/08/2018,05-18226,792,Global Mediation Ltd,
Nottinghamshire County Council,1111/1001,Children and Young People,CYP,Supplies & Services,DEA,30/08/2018,05-18229,4591.5,[Redacted],
Nottinghamshire County Council,1111/1001,Children and Young People,CYP,Supplies & Services,DEA,31/08/2018,05-18237,"1,478.50",Childrens Sensory Therapy Ltd,
Nottinghamshire County Council,1111/1001,Children and Young People,CYP,Supplies & Services,DFA,06/08/2018,05-11092,681.5,Lantec Services Ltd,
Nottinghamshire County Council,1111/1001,Children and Young People,CYP,Supplies & Services,DFA,17/08/2018,05-14520,361.2,Adept Telecom,
Nottinghamshire County Council,1111/1001,Children and Young People,CYP,Supplies & Services,DKA,03/08/2018,05-10058,100,Via East Midlands Ltd,
Nottinghamshire County Council,1111/1001,Children and Young People,CYP,Supplies & Services,DKA,21/08/2018,05-14651,"1,620.00",David Blount Ltd,
Nottinghamshire County Council,1111/1001,Children and Young People,CYP,Supplies & Services,DKA,28/08/2018,05-15962,840.00,One Time Vendor,
Nottinghamshire County Council,1111/1001,Children and Young People,CYP,Third Party Payments,EBA,01/08/2018,05-18060,"8,989.32",Derbyshire County Council,
Nottinghamshire County Council,1111/1001,Children and Young People,CYP,Third Party Payments,EBA,24/08/2018,05-13020,1802.9,Transform Schools,
Nottinghamshire County Council,1111/1001,Children and Young People,CYP,Third Party Payments,EBA,24/08/2018,05-13021,1115,Transform Schools,
Nottinghamshire County Council,1111/1001,Children and Young People,CYP,Third Party Payments,EBA,24/08/2018,05-13022,1149.05,Transform Schools,
Nottinghamshire County Council,1111/1001,Children and Young People,CYP,Third Party Payments,EBA,24/08/2018,05-13023,5556.28,Transform Schools,
Nottinghamshire County Council,1111/1001,Children and Young People,CYP,Third Party Payments,EBA,24/08/2018,05-13024,5699.66,Transform Schools,
Nottinghamshire County Council,1111/1001,Children and Young People,CYP,Third Party Payments,EBA,24/08/2018,05-13025,"17,741.25",Transform Schools,
Nottinghamshire County Council,1111/1001,Children and Young People,CYP,Third Party Payments,EBA,24/08/2018,05-13026,"35,713.99",Transform Schools,
Nottinghamshire County Council,1111/1001,Children and Young People,CYP,Third Party Payments,EBA,29/08/2018,05-14517,"1,497,839.48",Transform Schools,
Nottinghamshire County Council,1111/1001,Children and Young People,CYP,Third Party Payments,EBA,29/08/2018,05-15736,20000.82,East Leake Schools Ltd,
Nottinghamshire County Council,1111/1001,Children and Young People,CYP,Third Party Payments,EBA,29/08/2018,05-15968,233774.41,East Leake Schools Ltd,
Nottinghamshire County Council,1111/1001,Children and Young People,CYP,Third Party Payments,EDA,01/08/2018,05-18091,"4,703.18",Wales High School,
Nottinghamshire County Council,1111/1001,Children and Young People,CYP,Third Party Payments,EDA,01/08/2018,05-18092,"6,584.46",Wales High School,
Nottinghamshire County Council,1111/1001,Children and Young People,CYP,Third Party Payments,EDA,02/08/2018,05-18054,2776.11,St John Houghton Academy,
Nottinghamshire County Council,1111/1001,Children and Young People,CYP,Third Party Payments,EDA,02/08/2018,05-18089,"8,785.00",Abbey School,
Nottinghamshire County Council,1111/1001,Children and Young People,CYP,Third Party Payments,EDA,03/08/2018,05-10082,15200.64,Robert Mellors Primary & Nursery Ac,
Nottinghamshire County Council,1111/1001,Children and Young People,CYP,Third Party Payments,EDA,03/08/2018,05-10083,4962.75,Robert Mellors Primary & Nursery Ac,
Nottinghamshire County Council,1111/1001,Children and Young People,CYP,Third Party Payments,EDA,03/08/2018,05-10084,"9,104.55",Sir Donald Bailey Academy,
Nottinghamshire County Council,1111/1001,Children and Young People,CYP,Third Party Payments,EDA,03/08/2018,05-10085,3182.63,St Peters Cross Keys Academy,
Nottinghamshire County Council,1111/1001,Children and Young People,CYP,Third Party Payments,EDA,03/08/2018,05-10086,"25,334.40",KImberely Primary & Nursery School,
Nottinghamshire County Council,1111/1001,Children and Young People,CYP,Third Party Payments,EDA,03/08/2018,05-10087,12857.21,Greenwood Primary & Nursery School,
Nottinghamshire County Council,1111/1001,Children and Young People,CYP,Third Party Payments,EDA,03/08/2018,05-10088,9262.89,West Park Academy,
Nottinghamshire County Council,1111/1001,Children and Young People,CYP,Third Party Payments,EDA,03/08/2018,05-10089,26284.44,Barnby Road Academy Prim & Nursery,
Nottinghamshire County Council,1111/1001,Children and Young People,CYP,Third Party Payments,EDA,03/08/2018,05-10090,"6,168.13",Keyworth Primary & Nursery School,
Nottinghamshire County Council,1111/1001,Children and Young People,CYP,Third Party Payments,EDA,03/08/2018,05-10091,"16,229.85",Sparken Hill Academy,
Nottinghamshire County Council,1111/1001,Children and Young People,CYP,Third Party Payments,EDA,03/08/2018,05-10092,6476.11,Flying High Trust Bilsthorpe High A,
Nottinghamshire County Council,1111/1001,Children and Young People,CYP,Third Party Payments,EDA,03/08/2018,05-10093,6887.79,Flying High Trust Beeston Fields Pr,
Nottinghamshire County Council,1111/1001,Children and Young People,CYP,Third Party Payments,EDA,03/08/2018,05-10094,3958.5,The Bramble Academy,
Nottinghamshire County Council,1111/1001,Children and Young People,CYP,Third Party Payments,EDA,03/08/2018,05-10095,775.87,St Peters C of E Academy,
Nottinghamshire County Council,1111/1001,Children and Young People,CYP,Third Party Payments,EDA,03/08/2018,05-10096,7996.17,Haddon Primary School (Academy),
Nottinghamshire County Council,1111/1001,Children and Young People,CYP,Third Party Payments,EDA,03/08/2018,05-10097,10371.27,Central Infant Academy,
Nottinghamshire County Council,1111/1001,Children and Young People,CYP,Third Party Payments,EDA,03/08/2018,05-10098,"9,262.89",Sunnyside Spencer Academy,
Nottinghamshire County Council,1111/1001,Children and Young People,CYP,Third Party Payments,EDA,03/08/2018,05-10099,5146.05,Thrumpton Primary Academy,
Nottinghamshire County Council,1111/1001,Children and Young People,CYP,Third Party Payments,EDA,03/08/2018,05-10100,"3,087.63",Bracken Lane Primary Academy,
Nottinghamshire County Council,1111/1001,Children and Young People,CYP,Third Party Payments,EDA,03/08/2018,05-10101,1108.38,Bishop Alexander LEAD Academy,
Nottinghamshire County Council,1111/1001,Children and Young People,CYP,Third Party Payments,EDA,03/08/2018,05-10102,9262.89,Heymann Primary School,
Nottinghamshire County Council,1111/1001,Children and Young People,CYP,Third Party Payments,EDA,03/08/2018,05-10103,10292.1,Samuel Barlow Primary Academy,
Nottinghamshire County Council,1111/1001,Children and Young People,CYP,Third Party Payments,EDA,03/08/2018,05-10104,"12,825.54",The Parkgate Academy,
Nottinghamshire County Council,1111/1001,Children and Young People,CYP,Third Party Payments,EDA,03/08/2018,05-10105,"14,409.73",Tuxford Primary Academy,
Nottinghamshire County Council,1111/1001,Children and Young People,CYP,Third Party Payments,EDA,03/08/2018,05-10106,1446.9,Wainwright Primary Academy,
Nottinghamshire County Council,1111/1001,Children and Young People,CYP,Third Party Payments,EDA,03/08/2018,05-10107,5621.07,William Gladstone C of E Primary Ac,
Nottinghamshire County Council,1111/1001,Children and Young People,CYP,Third Party Payments,EDA,03/08/2018,05-10108,4908.54,Mansfield Primary Academy,
Nottinghamshire County Council,1111/1001,Children and Young People,CYP,Third Party Payments,EDA,03/08/2018,05-10109,"11,495.48",Wainwright Primary Academy,
Nottinghamshire County Council,1111/1001,Children and Young People,CYP,Third Party Payments,EDA,03/08/2018,05-10110,"1,425.06",Kingston Park Academy,
Nottinghamshire County Council,1111/1001,Children and Young People,CYP,Third Party Payments,EDA,03/08/2018,05-10111,15818.17,Kirkby Woodhouse Academy School,
Nottinghamshire County Council,1111/1001,Children and Young People,CYP,Third Party Payments,EDA,03/08/2018,05-10112,"6,571.11",Mapplewells Primary & Nursery Acada,
Nottinghamshire County Council,1111/1001,Children and Young People,CYP,Third Party Payments,EDA,03/08/2018,05-10113,7283.64,Leamington Primary & Nursery Academ,
Nottinghamshire County Council,1111/1001,Children and Young People,CYP,Third Party Payments,EDA,03/08/2018,05-10114,7521.15,Birklands Primary (Academy),
Nottinghamshire County Council,1111/1001,Children and Young People,CYP,Third Party Payments,EDA,03/08/2018,05-10115,516.75,St Philip Neri with St Bede Vol Aca,
Nottinghamshire County Council,1111/1001,Children and Young People,CYP,Third Party Payments,EDA,03/08/2018,05-10116,620.10,St Swithuns C of E Primary Academy,
Nottinghamshire County Council,1111/1001,Children and Young People,CYP,Third Party Payments,EDA,03/08/2018,05-10117,806.13,Sunnyside Spencer Academy,
Nottinghamshire County Council,1111/1001,Children and Young People,CYP,Third Party Payments,EDA,03/08/2018,05-10118,"1,240.20",The Bramble Academy,
Nottinghamshire County Council,1111/1001,Children and Young People,CYP,Third Party Payments,EDA,03/08/2018,05-10119,881.92,Candleby Lane School,
Nottinghamshire County Council,1111/1001,Children and Young People,CYP,Third Party Payments,EDA,03/08/2018,05-10120,"1,915.95",Sir Donald Bailey Academy,
Nottinghamshire County Council,1111/1001,Children and Young People,CYP,Third Party Payments,EDA,03/08/2018,05-10121,930.15,West Park Academy,
Nottinghamshire County Council,1111/1001,Children and Young People,CYP,Third Party Payments,EDA,03/08/2018,05-10122,"1,240.20",William Gladstone C of E Primary Ac,
Nottinghamshire County Council,1111/1001,Children and Young People,CYP,Third Party Payments,EDA,03/08/2018,05-10123,723.45,Worksop Priory CE Primary Academy,
Nottinghamshire County Council,1111/1001,Children and Young People,CYP,Third Party Payments,EDA,03/08/2018,05-10124,930.15,Robert Mellors Primary & Nursery Ac,
Nottinghamshire County Council,1111/1001,Children and Young People,CYP,Third Party Payments,EDA,03/08/2018,05-10125,1033.5,Samuel Barlow Primary Academy,
Nottinghamshire County Council,1111/1001,Children and Young People,CYP,Third Party Payments,EDA,03/08/2018,05-10126,"1,136.85",Serlby Park Academy,
Nottinghamshire County Council,1111/1001,Children and Young People,CYP,Third Party Payments,EDA,03/08/2018,05-10127,1550.25,Sparken Hill Academy,
Nottinghamshire County Council,1111/1001,Children and Young People,CYP,Third Party Payments,EDA,03/08/2018,05-10128,516.75,St Joseph's RC Primary Academy,
Nottinghamshire County Council,1111/1001,Children and Young People,CYP,Third Party Payments,EDA,03/08/2018,05-10129,"1,136.85",St Josephs Catholic Primary Sch Aca,
Nottinghamshire County Council,1111/1001,Children and Young People,CYP,Third Party Payments,EDA,03/08/2018,05-10130,1033.5,Kirkby Woodhouse Academy School,
Nottinghamshire County Council,1111/1001,Children and Young People,CYP,Third Party Payments,EDA,03/08/2018,05-10131,1653.6,Leamington Primary & Nursery Academ,
Nottinghamshire County Council,1111/1001,Children and Young People,CYP,Third Party Payments,EDA,03/08/2018,05-10132,1756.95,Mansfield Primary Academy,
Nottinghamshire County Council,1111/1001,Children and Young People,CYP,Third Party Payments,EDA,03/08/2018,05-10133,723.45,Mapplewells Primary & Nursery Acada,
Nottinghamshire County Council,1111/1001,Children and Young People,CYP,Third Party Payments,EDA,03/08/2018,05-10134,3100.5,Netherfield Primary School (Academy,
Nottinghamshire County Council,1111/1001,Children and Young People,CYP,Third Party Payments,EDA,03/08/2018,05-10135,826.80,Norbridge Academy Trust,
Nottinghamshire County Council,1111/1001,Children and Young People,CYP,Third Party Payments,EDA,03/08/2018,05-10136,"1,550.25",The Parkgate Academy,
Nottinghamshire County Council,1111/1001,Children and Young People,CYP,Third Party Payments,EDA,03/08/2018,05-10137,516.75,Bishop Alexander LEAD Academy,
Nottinghamshire County Council,1111/1001,Children and Young People,CYP,Third Party Payments,EDA,03/08/2018,05-10138,930.15,Central Infant Academy,
Nottinghamshire County Council,1111/1001,Children and Young People,CYP,Third Party Payments,EDA,03/08/2018,05-10139,"1,178.19",The Flying High Academy,
Nottinghamshire County Council,1111/1001,Children and Young People,CYP,Third Party Payments,EDA,03/08/2018,05-10140,2067,Greenwood Primary & Nursery School,
Nottinghamshire County Council,1111/1001,Children and Young People,CYP,Third Party Payments,EDA,03/08/2018,05-10141,723.45,Hillside Academy,
Nottinghamshire County Council,1111/1001,Children and Young People,CYP,Third Party Payments,EDA,03/08/2018,05-10142,5541.9,Thrumpton Primary Academy,
Nottinghamshire County Council,1111/1001,Children and Young People,CYP,Third Party Payments,EDA,03/08/2018,05-10143,7441.98,Tuxford Primary Academy,
Nottinghamshire County Council,1111/1001,Children and Young People,CYP,Third Party Payments,EDA,03/08/2018,05-10144,"5,541.90",Wainwright Primary Academy,
Nottinghamshire County Council,1111/1001,Children and Young People,CYP,Third Party Payments,EDA,03/08/2018,05-10145,930.15,Arnbrook Primary Academy,
Nottinghamshire County Council,1111/1001,Children and Young People,CYP,Third Party Payments,EDA,03/08/2018,05-10146,516.75,Awsworth Primary & Nursery Sch (Aca,
Nottinghamshire County Council,1111/1001,Children and Young People,CYP,Third Party Payments,EDA,03/08/2018,05-10147,"1,446.90",Barnby Road Academy Prim & Nursery,
Nottinghamshire County Council,1111/1001,Children and Young People,CYP,Third Party Payments,EDA,03/08/2018,05-10148,1240.2,Flying High Trust Beeston Fields Pr,
Nottinghamshire County Council,1111/1001,Children and Young People,CYP,Third Party Payments,EDA,03/08/2018,05-10149,516.75,Flying High Trust Bilsthorpe High A,
Nottinghamshire County Council,1111/1001,Children and Young People,CYP,Third Party Payments,EDA,03/08/2018,05-10150,1017.6,Birklands Primary (Academy),
Nottinghamshire County Council,1111/1001,Children and Young People,CYP,Third Party Payments,EDA,03/08/2018,05-10151,"26,126.10",Norbridge Academy Trust,
Nottinghamshire County Council,1111/1001,Children and Young People,CYP,Third Party Payments,EDA,03/08/2018,05-10152,8708.7,Worksop Priory CE Primary Academy,
Nottinghamshire County Council,1111/1001,Children and Young People,CYP,Third Party Payments,EDA,03/08/2018,05-10153,10292.1,Sacred Heart Catholic Voluntary Aca,
Nottinghamshire County Council,1111/1001,Children and Young People,CYP,Third Party Payments,EDA,03/08/2018,05-10154,"7,125.30",Samuel Barlow Primary Academy,
Nottinghamshire County Council,1111/1001,Children and Young People,CYP,Third Party Payments,EDA,03/08/2018,05-10155,"13,458.90",Serlby Park Academy,
Nottinghamshire County Council,1111/1001,Children and Young People,CYP,Third Party Payments,EDA,03/08/2018,05-10156,"10,292.10",St Patricks Catholic Voluntary Acad,
Nottinghamshire County Council,1111/1001,Children and Young People,CYP,Third Party Payments,EDA,03/08/2018,05-10157,"5,700.24",Sunnyside Spencer Academy,
Nottinghamshire County Council,1111/1001,Children and Young People,CYP,Third Party Payments,EDA,03/08/2018,05-10158,12561.64,Candleby Lane School,
Nottinghamshire County Council,1111/1001,Children and Young People,CYP,Third Party Payments,EDA,03/08/2018,05-10159,"6,333.60",Sir Donald Bailey Academy,
Nottinghamshire County Council,1111/1001,Children and Young People,CYP,Third Party Payments,EDA,03/08/2018,05-10160,9869.86,West Park Academy,
Nottinghamshire County Council,1111/1001,Children and Young People,CYP,Third Party Payments,EDA,03/08/2018,05-10161,"9,658.74",Bracken Lane Primary Academy,
Nottinghamshire County Council,1111/1001,Children and Young People,CYP,Third Party Payments,EDA,03/08/2018,05-10162,6016.92,St Peters C of E Academy,
Nottinghamshire County Council,1111/1001,Children and Young People,CYP,Third Party Payments,EDA,03/08/2018,05-10163,13458.9,Greenwood Primary & Nursery School,
Nottinghamshire County Council,1111/1001,Children and Young People,CYP,Third Party Payments,EDA,03/08/2018,05-10164,"15,042.30",Heymann Primary School,
Nottinghamshire County Council,1111/1001,Children and Young People,CYP,Third Party Payments,EDA,03/08/2018,05-10165,20584.2,Hillside Academy,
Nottinghamshire County Council,1111/1001,Children and Young People,CYP,Third Party Payments,EDA,03/08/2018,05-10166,"3,958.50",Holy Trinity Catholic Voluntary Aca,
Nottinghamshire County Council,1111/1001,Children and Young People,CYP,Third Party Payments,EDA,03/08/2018,05-10167,6518.33,Keyworth Primary & Nursery School,
Nottinghamshire County Council,1111/1001,Children and Young People,CYP,Third Party Payments,EDA,03/08/2018,05-10168,13458.9,Netherfield Primary School (Academy,
Nottinghamshire County Council,1111/1001,Children and Young People,CYP,Third Party Payments,EDA,03/08/2018,05-10169,"7,125.30",The Parkgate Academy,
Nottinghamshire County Council,1111/1001,Children and Young People,CYP,Third Party Payments,EDA,03/08/2018,05-10170,14291.2,Peafield Lane Academy,
Nottinghamshire County Council,1111/1001,Children and Young People,CYP,Third Party Payments,EDA,03/08/2018,05-10171,8708.7,Flying High Trust Bilsthorpe High A,
Nottinghamshire County Council,1111/1001,Children and Young People,CYP,Third Party Payments,EDA,03/08/2018,05-10172,3958.5,Arnbrook Primary Academy,
Nottinghamshire County Council,1111/1001,Children and Young People,CYP,Third Party Payments,EDA,03/08/2018,05-10173,12192.18,Birklands Primary (Academy),
Nottinghamshire County Council,1111/1001,Children and Young People,CYP,Third Party Payments,EDA,03/08/2018,05-10174,540,Samuel Barlow Primary Academy,
Nottinghamshire County Council,1111/1001,Children and Young People,CYP,Third Party Payments,EDA,03/08/2018,05-10175,6550.83,Flying High Trust Bilsthorpe High A,
Nottinghamshire County Council,1111/1001,Children and Young People,CYP,Third Party Payments,EDA,03/08/2018,05-10176,992.55,Haddon Primary School (Academy),
Nottinghamshire County Council,1111/1001,Children and Young People,CYP,Third Party Payments,EDA,03/08/2018,05-10177,6550.83,Keyworth Primary & Nursery School,
Nottinghamshire County Council,1111/1001,Children and Young People,CYP,Third Party Payments,EDA,03/08/2018,05-10178,10918.05,Netherfield Primary School (Academy,
Nottinghamshire County Council,1111/1001,Children and Young People,CYP,Third Party Payments,EDA,03/08/2018,05-10179,2183.61,Tuxford Primary Academy,
Nottinghamshire County Council,1111/1001,Children and Young People,CYP,Third Party Payments,EDA,03/08/2018,05-10182,615,Greenwood Primary & Nursery School,
Nottinghamshire County Council,1111/1001,Children and Young People,CYP,Third Party Payments,EDA,03/08/2018,05-10183,615,Candleby Lane School,
Nottinghamshire County Council,1111/1001,Children and Young People,CYP,Third Party Payments,EDA,03/08/2018,05-18099,6662.67,Frederick Gent School,
Nottinghamshire County Council,1111/1001,Children and Young People,CYP,Third Party Payments,EDA,08/08/2018,05-10046,"8,379.00",National Church Of England Academy,
Nottinghamshire County Council,1111/1001,Children and Young People,CYP,Third Party Payments,EDA,14/08/2018,05-13707,27332,Parkdale Primary School,
Nottinghamshire County Council,1111/1001,Children and Young People,CYP,Third Party Payments,EDA,17/08/2018,05-10078,1198,Robert Mellors Primary & Nursery Ac,
Nottinghamshire County Council,1111/1001,Children and Young People,CYP,Third Party Payments,EDA,17/08/2018,05-10079,"40,196.00",Robert Mellors Primary & Nursery Ac,
Nottinghamshire County Council,1111/1001,Children and Young People,CYP,Third Party Payments,EDA,17/08/2018,05-10080,8269,Awsworth Primary & Nursery Sch (Aca,
Nottinghamshire County Council,1111/1001,Children and Young People,CYP,Third Party Payments,EDA,17/08/2018,05-10081,"35,048.00",Awsworth Primary & Nursery Sch (Aca,
Nottinghamshire County Council,1111/1001,Children and Young People,CYP,Third Party Payments,EDA,17/08/2018,05-10180,4570,Awsworth Primary & Nursery Sch (Aca,
Nottinghamshire County Council,1111/1001,Children and Young People,CYP,Third Party Payments,EDA,22/08/2018,05-10181,5038,KImberely Primary & Nursery School,
Nottinghamshire County Council,1111/1001,Children and Young People,CYP,Third Party Payments,EDA,29/08/2018,05-13706,14000,St Mary Magdalene C of E Primary,
Nottinghamshire County Council,1111/1001,Children and Young People,CYP,Third Party Payments,EDA,29/08/2018,05-13708,"45,632.00",Colonel Frank Seeley Academy,
Nottinghamshire County Council,1111/1001,Children and Young People,CYP,Third Party Payments,EDA,29/08/2018,05-13709,6250,Porchester Junior Academy -Flying H,
Nottinghamshire County Council,1111/1001,Children and Young People,CYP,Third Party Payments,EDA,29/08/2018,05-13710,3300,Haddon Primary School (Academy),
Nottinghamshire County Council,1111/1001,Children and Young People,CYP,Third Party Payments,EDA,29/08/2018,05-13711,4400,Carlton Junior Academy,
Nottinghamshire County Council,1111/1001,Children and Young People,CYP,Third Party Payments,EDA,29/08/2018,05-13712,"18,050.00",Central Infant Academy,
Nottinghamshire County Council,1111/1001,Children and Young People,CYP,Third Party Payments,EDA,29/08/2018,05-13713,13618,The Carlton Academy,
Nottinghamshire County Council,1111/1001,Children and Young People,CYP,Third Party Payments,EDA,29/08/2018,05-13714,28500,St Edmund Campion Voluntary Academy,
Nottinghamshire County Council,1111/1001,Children and Young People,CYP,Third Party Payments,EDA,29/08/2018,05-13715,50500,The Becket Catholic Voluntary Acade,
Nottinghamshire County Council,1111/1001,Children and Young People,CYP,Third Party Payments,EDA,29/08/2018,05-13716,21666,Arnbrook Primary Academy,
Nottinghamshire County Council,1111/1001,Children and Young People,CYP,Third Party Payments,EDA,29/08/2018,05-13717,"64,999.00",Arnold Hill Academy,
Nottinghamshire County Council,1111/1001,Children and Young People,CYP,Third Party Payments,EDA,29/08/2018,05-13718,"12,666.00",Ernehale Junior School Academy,
Nottinghamshire County Council,1111/1001,Children and Young People,CYP,Third Party Payments,EDA,29/08/2018,05-13719,4364,All Saints Catholic Voluntary Acade,
Nottinghamshire County Council,1111/1001,Children and Young People,CYP,Third Party Payments,EDA,29/08/2018,05-13720,20277,St Philip Neri with St Bede Vol Aca,
Nottinghamshire County Council,1111/1001,Children and Young People,CYP,Third Party Payments,EDA,29/08/2018,05-13721,"13,734.00",Holy Trinity Catholic Voluntary Aca,
Nottinghamshire County Council,1111/1001,Children and Young People,CYP,Third Party Payments,EDA,29/08/2018,05-13722,3909,St Josephs Catholic Primary Sch Aca,
Nottinghamshire County Council,1111/1001,Children and Young People,CYP,Third Party Payments,EDA,29/08/2018,05-13723,"9,723.00",St Patricks Catholic Voluntary Acad,
Nottinghamshire County Council,1111/1001,Children and Young People,CYP,Third Party Payments,EDA,29/08/2018,05-13724,8423,Sunnyside Spencer Academy,
Nottinghamshire County Council,1111/1001,Children and Young People,CYP,Third Party Payments,EDA,29/08/2018,05-13725,"18,656.00",Flying High Trust Beeston Fields Pr,
Nottinghamshire County Council,1111/1001,Children and Young People,CYP,Third Party Payments,EDA,29/08/2018,05-13726,16879,Alderman White School,
Nottinghamshire County Council,1111/1001,Children and Young People,CYP,Third Party Payments,EDA,29/08/2018,05-13727,9825,The Bramcote School,
Nottinghamshire County Council,1111/1001,Children and Young People,CYP,Third Party Payments,EFA,01/08/2018,05-18051,34340,Hardwick House School Ltd,
Nottinghamshire County Council,1111/1001,Children and Young People,CYP,Third Party Payments,EFA,01/08/2018,05-18055,10140,First Universal Enterprises Ltd,
Nottinghamshire County Council,1111/1001,Children and Young People,CYP,Third Party Payments,EFA,01/08/2018,05-18068,888.00,Crisp Vocational Provision Ltd,
Nottinghamshire County Council,1111/1001,Children and Young People,CYP,Third Party Payments,EFA,02/08/2018,05-18121,592.00,Crisp Vocational Provision Ltd,
Nottinghamshire County Council,1111/1001,Children and Young People,CYP,Third Party Payments,EFA,02/08/2018,05-18123,593.9,Crisp Vocational Provision Ltd,
Nottinghamshire County Council,1111/1001,Children and Young People,CYP,Third Party Payments,EFA,02/08/2018,05-18124,1512.3,Crisp Vocational Provision Ltd,
Nottinghamshire County Council,1111/1001,Children and Young People,CYP,Third Party Payments,EFA,03/08/2018,05-18065,3221.79,Mary Hare School,
Nottinghamshire County Council,1111/1001,Children and Young People,CYP,Third Party Payments,EFA,03/08/2018,05-18101,12350.34,Lammas School,
Nottinghamshire County Council,1111/1001,Children and Young People,CYP,Third Party Payments,EFA,03/08/2018,05-18102,"15,496.33",Lammas School,
Nottinghamshire County Council,1111/1001,Children and Young People,CYP,Third Party Payments,EFA,03/08/2018,05-18103,"5,038.66",Lammas School,
Nottinghamshire County Council,1111/1001,Children and Young People,CYP,Third Party Payments,EFA,03/08/2018,05-18104,"19,833.33",Lammas School,
Nottinghamshire County Council,1111/1001,Children and Young People,CYP,Third Party Payments,EFA,22/08/2018,05-18184,13457.5,Teaching Personnel Ltd,
Nottinghamshire County Council,1111/1001,Children and Young People,CYP,Third Party Payments,EFA,22/08/2018,05-18185,"10,317.50",Teaching Personnel Ltd,
Nottinghamshire County Council,1111/1001,Children and Young People,CYP,Third Party Payments,EFA,22/08/2018,05-18186,12647.5,Teaching Personnel Ltd,
Nottinghamshire County Council,1111/1001,Children and Young People,CYP,Third Party Payments,EFA,22/08/2018,05-18187,"7,640.00",Teaching Personnel Ltd,
Nottinghamshire County Council,1111/1001,Children and Young People,CYP,Third Party Payments,EGA,01/08/2018,05-10015,1628.64,Nottinghamshire Healthcare Nhs F Tr,
Nottinghamshire County Council,1111/1001,Children and Young People,CYP,Third Party Payments,EGA,01/08/2018,05-10016,2767.44,Sherwood East Childrens Centre (RNN,
Nottinghamshire County Council,1111/1001,Children and Young People,CYP,Third Party Payments,EGA,01/08/2018,05-10017,"13,640.73",Dragonflies Day Nursery ltd,
Nottinghamshire County Council,1111/1001,Children and Young People,CYP,Third Party Payments,EGA,01/08/2018,05-18086,"1,050.00",New Dawn Semi Independent Provider,
Nottinghamshire County Council,1111/1001,Children and Young People,CYP,Third Party Payments,EGA,01/08/2018,05-18108,"11,528.57",Sunrise Homes Services Ltd,
Nottinghamshire County Council,1111/1001,Children and Young People,CYP,Third Party Payments,EGA,01/08/2018,05-18122,"1,887.00",Carers Trust East Midlands,
Nottinghamshire County Council,1111/1001,Children and Young People,CYP,Third Party Payments,EGA,01/08/2018,05-18126,625.00,Nottingham Mencap,
Nottinghamshire County Council,1111/1001,Children and Young People,CYP,Third Party Payments,EGA,01/08/2018,05-18127,592.00,Nottingham Mencap,
Nottinghamshire County Council,1111/1001,Children and Young People,CYP,Third Party Payments,EGA,01/08/2018,05-18128,2952,Nottingham Mencap,
Nottinghamshire County Council,1111/1001,Children and Young People,CYP,Third Party Payments,EGA,01/08/2018,05-18129,812.5,Nottingham Mencap,
Nottinghamshire County Council,1111/1001,Children and Young People,CYP,Third Party Payments,EGA,03/08/2018,05-18112,"1,983.60",Framework Housing Association,
Nottinghamshire County Council,1111/1001,Children and Young People,CYP,Third Party Payments,EGA,03/08/2018,05-18113,936.04,Framework Housing Association,
Nottinghamshire County Council,1111/1001,Children and Young People,CYP,Third Party Payments,EGA,03/08/2018,05-18114,1889.5,Framework Housing Association,
Nottinghamshire County Council,1111/1001,Children and Young People,CYP,Third Party Payments,EGA,03/08/2018,05-18115,"1,116.08",Framework Housing Association,
Nottinghamshire County Council,1111/1001,Children and Young People,CYP,Third Party Payments,EGA,03/08/2018,05-18116,1806.56,Framework Housing Association,
Nottinghamshire County Council,1111/1001,Children and Young People,CYP,Third Party Payments,EGA,03/08/2018,05-18117,"1,074.36",Framework Housing Association,
Nottinghamshire County Council,1111/1001,Children and Young People,CYP,Third Party Payments,EGA,03/08/2018,05-18118,"3,388.10",Framework Housing Association,
Nottinghamshire County Council,1111/1001,Children and Young People,CYP,Third Party Payments,EGA,03/08/2018,05-18119,2016.3,Framework Housing Association,
Nottinghamshire County Council,1111/1001,Children and Young People,CYP,Third Party Payments,EGA,06/08/2018,05-11089,624,Bingham Day Nursery & Pre School,
Nottinghamshire County Council,1111/1001,Children and Young People,CYP,Third Party Payments,EGA,06/08/2018,05-18130,861741,Nottinghamshire Healthcare Nhs F Tr,
Nottinghamshire County Council,1111/1001,Children and Young People,CYP,Third Party Payments,EGA,13/08/2018,05-18157,23368.42,"Culture, Learning & Libraries (Midl",
Nottinghamshire County Council,1111/1001,Children and Young People,CYP,Third Party Payments,EGA,16/08/2018,05-18165,30307.42,Chrysalis Consortium Ltd,
Nottinghamshire County Council,1111/1001,Children and Young People,CYP,Third Party Payments,EGA,17/08/2018,05-14528,865.28,The Orchard Day Nursery,
Nottinghamshire County Council,1111/1001,Children and Young People,CYP,Third Party Payments,EGA,17/08/2018,05-14529,704.70,[Redacted],
Nottinghamshire County Council,1111/1001,Children and Young People,CYP,Third Party Payments,EGA,17/08/2018,05-14530,811.20,Rainbows Day Nursery,
Nottinghamshire County Council,1111/1001,Children and Young People,CYP,Third Party Payments,EGA,20/08/2018,05-14641,"5,900.66",Townrow Tiny Tots Day Nursery Ltd,
Nottinghamshire County Council,1111/1001,Children and Young People,CYP,Third Party Payments,EGA,20/08/2018,05-14642,7358.4,Townrow Tiny Tots Day Nursery Ltd,
Nottinghamshire County Council,1111/1001,Children and Young People,CYP,Third Party Payments,EGA,20/08/2018,05-14643,"3,946.32",Townrow Tiny Tots Day Nursery Ltd,
Nottinghamshire County Council,1111/1001,Children and Young People,CYP,Third Party Payments,EGA,21/08/2018,05-18179,"2,700.96",Royal School For The Deaf,
Nottinghamshire County Council,1111/1001,Children and Young People,CYP,Third Party Payments,EGA,22/08/2018,05-18181,43153.04,Pathway Care Solutions Ltd,
Nottinghamshire County Council,1111/1001,Children and Young People,CYP,Third Party Payments,EGA,22/08/2018,05-18182,119442.9,Pathway Care Solutions II Ltd,
Nottinghamshire County Council,1111/1001,Children and Young People,CYP,Third Party Payments,EGA,23/08/2018,05-18197,43074.26,Fostering Solutions Ltd,
Nottinghamshire County Council,1111/1001,Children and Young People,CYP,Third Party Payments,EGA,23/08/2018,05-18199,"43,153.04",Pathway Care Solutions Ltd,
Nottinghamshire County Council,1111/1001,Children and Young People,CYP,Third Party Payments,EGA,23/08/2018,05-18202,"3,444.10",Fostering People Ltd,
Nottinghamshire County Council,1111/1001,Children and Young People,CYP,Third Party Payments,EGA,24/08/2018,05-18209,"3,627.00",The Fostercarer Cooperative Ltd,
Nottinghamshire County Council,1111/1001,Children and Young People,CYP,Third Party Payments,EGA,24/08/2018,05-18212,519.75,PSLA Newstead Childcare (HO),
Nottinghamshire County Council,1111/1001,Children and Young People,CYP,Third Party Payments,EGA,24/08/2018,05-18213,519.75,PSLA Newstead Childcare (HO),
Nottinghamshire County Council,1111/1001,Children and Young People,CYP,Third Party Payments,EGA,24/08/2018,05-18214,519.75,PSLA Newstead Childcare (HO),
Nottinghamshire County Council,1111/1001,Children and Young People,CYP,Third Party Payments,EGA,28/08/2018,05-18216,"1,739.92",ANEW Young People Services Ltd,
Nottinghamshire County Council,1111/1001,Children and Young People,CYP,Third Party Payments,EGA,28/08/2018,05-18217,3391.09,Anglia Fostering Agency Ltd,
Nottinghamshire County Council,1111/1001,Children and Young People,CYP,Third Party Payments,EGA,28/08/2018,05-18218,3391.09,Anglia Fostering Agency Ltd,
Nottinghamshire County Council,1111/1001,Children and Young People,CYP,Third Party Payments,EGA,30/08/2018,05-18211,"19,100.65",Orange Grove Fostercare Ltd,
Nottinghamshire County Council,1111/1001,Children and Young People,CYP,Third Party Payments,EGA,31/08/2018,05-16132,1376.1,[Redacted],
Nottinghamshire County Council,1111/1001,Children and Young People,CYP,Third Party Payments,EGA,31/08/2018,05-18234,"27,900.23",East Midlands Care Matters (Head Of,
Nottinghamshire County Council,1111/1001,Children and Young People,CYP,Transfer Payments,GAA,20/08/2018,05-18174,3080,[Redacted],
Nottinghamshire County Council,1111/1001,Children and Young People,CYP,Support Services,HAA,10/08/2018,05-13453,"2,420.50",Nottingham Coaches,
Nottinghamshire County Council,1111/1001,Children and Young People,CYP,Support Services,HAA,10/08/2018,05-13454,1732,Nottingham Coaches,
Nottinghamshire County Council,1111/1001,Children and Young People,CYP,Support Services,HAA,13/08/2018,05-13593,919.10,Abacus Cars,
Nottinghamshire County Council,1111/1001,Children and Young People,CYP,Support Services,HAA,15/08/2018,05-14510,"1,124.55",Nunns Taxis Ltd,
Nottinghamshire County Council,1111/1001,Children and Young People,CYP,Support Services,HAA,24/08/2018,05-15903,700.00,Nottingham Minibuses & Coaches,
Nottinghamshire County Council,1111/1001,Adult Social Care and Health,ASCH,Premises Related,BAA,02/08/2018,05-10025,698,Crestra Ltd,
Nottinghamshire County Council,1111/1001,Adult Social Care and Health,ASCH,Premises Related,BAA,03/08/2018,05-10077,1171,Ball & Sons Ltd,
Nottinghamshire County Council,1111/1001,Adult Social Care and Health,ASCH,Premises Related,BAA,06/08/2018,05-11083,9300.54,ARC Property Services Partnership L,
Nottinghamshire County Council,1111/1001,Adult Social Care and Health,ASCH,Premises Related,BAA,07/08/2018,05-12670,871.50,Ball & Sons Ltd,
Nottinghamshire County Council,1111/1001,Adult Social Care and Health,ASCH,Premises Related,BAA,09/08/2018,05-13028,4938.73,ARC Property Services Partnership L,
Nottinghamshire County Council,1111/1001,Adult Social Care and Health,ASCH,Premises Related,BAA,13/08/2018,05-13549,531.00,[Redacted],
Nottinghamshire County Council,1111/1001,Adult Social Care and Health,ASCH,Premises Related,BAA,16/08/2018,05-14515,518,Alan Unwin Horticultural Services,
Nottinghamshire County Council,1111/1001,Adult Social Care and Health,ASCH,Premises Related,BAA,20/08/2018,05-14644,7210.72,ARC Property Services Partnership L,
Nottinghamshire County Council,1111/1001,Adult Social Care and Health,ASCH,Premises Related,BAA,22/08/2018,05-15734,521,Pgs Joinery Services Ltd,
Nottinghamshire County Council,1111/1001,Adult Social Care and Health,ASCH,Premises Related,BAA,23/08/2018,05-15862,9991.26,ARC Property Services Partnership L,
Nottinghamshire County Council,1111/1001,Adult Social Care and Health,ASCH,Premises Related,BAA,28/08/2018,05-15939,556.5,Ball & Sons Ltd,
Nottinghamshire County Council,1111/1001,Adult Social Care and Health,ASCH,Premises Related,BAA,28/08/2018,05-15940,647.5,Groundwork Creswell Ashf & Mansf,
Nottinghamshire County Council,1111/1001,Adult Social Care and Health,ASCH,Premises Related,BAA,28/08/2018,05-15941,1084.5,Ball & Sons Ltd,
Nottinghamshire County Council,1111/1001,Adult Social Care and Health,ASCH,Premises Related,BCA,02/08/2018,05-18106,1524.6,DJN UK Ltd,
Nottinghamshire County Council,1111/1001,Adult Social Care and Health,ASCH,Premises Related,BCA,30/08/2018,05-13524,285.00,Siemens Infra & Cities Mobility & L,
Nottinghamshire County Council,1111/1001,Adult Social Care and Health,ASCH,Premises Related,BCA,31/08/2018,05-18194,"1,034.23",DJN UK Ltd,
Nottinghamshire County Council,1111/1001,Adult Social Care and Health,ASCH,Premises Related,BEA,28/08/2018,05-15951,21714,Att Of Earn/Bus Rates Bassetlaw D C,
Nottinghamshire County Council,1111/1001,Adult Social Care and Health,ASCH,Premises Related,BFA,01/08/2018,05-10035,4659.44,Water Plus Ltd,
Nottinghamshire County Council,1111/1001,Adult Social Care and Health,ASCH,Premises Related,BFA,16/08/2018,05-13014,658.46,Anglian Water Business (National) L,
Nottinghamshire County Council,1111/1001,Adult Social Care and Health,ASCH,Transport Related,CAA,03/08/2018,05-10053,"5,062.31",Via East Midlands Ltd,
Nottinghamshire County Council,1111/1001,Adult Social Care and Health,ASCH,Transport Related,CBA,10/08/2018,05-13102,3448,Johnson Bros Tours Ltd,
Nottinghamshire County Council,1111/1001,Adult Social Care and Health,ASCH,Transport Related,CBA,10/08/2018,05-13279,3457.4,Vallances Coaches,
Nottinghamshire County Council,1111/1001,Adult Social Care and Health,ASCH,Transport Related,CBA,10/08/2018,05-13396,2403.8,Aj Travel,
Nottinghamshire County Council,1111/1001,Adult Social Care and Health,ASCH,Transport Related,CBA,13/08/2018,05-13699,2550.2,Community Transport for Town & Coun,
Nottinghamshire County Council,1111/1001,Adult Social Care and Health,ASCH,Transport Related,CBA,13/08/2018,05-13700,3060.4,Community Transport for Town & Coun,
Nottinghamshire County Council,1111/1001,Adult Social Care and Health,ASCH,Transport Related,CCA,03/08/2018,05-10058,2096.54,Via East Midlands Ltd,
Nottinghamshire County Council,1111/1001,Adult Social Care and Health,ASCH,Transport Related,CCA,10/08/2018,05-13182,2413.18,Arrow Specialised Transport Ltd,
Nottinghamshire County Council,1111/1001,Adult Social Care and Health,ASCH,Transport Related,CCA,13/08/2018,05-13605,483.63,Abacus Cars,
Nottinghamshire County Council,1111/1001,Adult Social Care and Health,ASCH,Transport Related,CDA,10/08/2018,05-13062,"2,444.20",Taxicover Uk Ltd,
Nottinghamshire County Council,1111/1001,Adult Social Care and Health,ASCH,Transport Related,CDA,10/08/2018,05-13082,"2,050.00",Southside Cars,
Nottinghamshire County Council,1111/1001,Adult Social Care and Health,ASCH,Transport Related,CDA,10/08/2018,05-13083,768,Southside Cars,
Nottinghamshire County Council,1111/1001,Adult Social Care and Health,ASCH,Transport Related,CDA,10/08/2018,05-13113,1056,200 Cars Ltd,
Nottinghamshire County Council,1111/1001,Adult Social Care and Health,ASCH,Transport Related,CDA,10/08/2018,05-13116,531.96,200 Cars Ltd,
Nottinghamshire County Council,1111/1001,Adult Social Care and Health,ASCH,Transport Related,CDA,10/08/2018,05-13121,"1,206.70",Acorn Contracts,
Nottinghamshire County Council,1111/1001,Adult Social Care and Health,ASCH,Transport Related,CDA,10/08/2018,05-13123,969.6,Acorn Contracts,
Nottinghamshire County Council,1111/1001,Adult Social Care and Health,ASCH,Transport Related,CDA,10/08/2018,05-13124,"2,464.69",Alpha Cars,
Nottinghamshire County Council,1111/1001,Adult Social Care and Health,ASCH,Transport Related,CDA,10/08/2018,05-13154,395.88,Arrow Specialised Transport Ltd,
Nottinghamshire County Council,1111/1001,Adult Social Care and Health,ASCH,Transport Related,CDA,10/08/2018,05-13194,291.21,Arrow Specialised Transport Ltd,
Nottinghamshire County Council,1111/1001,Adult Social Care and Health,ASCH,Transport Related,CDA,10/08/2018,05-13196,145.82,Arrow Specialised Transport Ltd,
Nottinghamshire County Council,1111/1001,Adult Social Care and Health,ASCH,Transport Related,CDA,10/08/2018,05-13202,"2,533.08",Arrow Specialised Transport Ltd,
Nottinghamshire County Council,1111/1001,Adult Social Care and Health,ASCH,Transport Related,CDA,10/08/2018,05-13212,"5,365.60",Bridges Transport Ltd,
Nottinghamshire County Council,1111/1001,Adult Social Care and Health,ASCH,Transport Related,CDA,10/08/2018,05-13213,850,Bridges Transport Ltd,
Nottinghamshire County Council,1111/1001,Adult Social Care and Health,ASCH,Transport Related,CDA,10/08/2018,05-13214,1387.1,Bridges Transport Ltd,
Nottinghamshire County Council,1111/1001,Adult Social Care and Health,ASCH,Transport Related,CDA,10/08/2018,05-13215,1176.96,Bridges Transport Ltd,
Nottinghamshire County Council,1111/1001,Adult Social Care and Health,ASCH,Transport Related,CDA,10/08/2018,05-13217,3352.36,Bridges Transport Ltd,
Nottinghamshire County Council,1111/1001,Adult Social Care and Health,ASCH,Transport Related,CDA,10/08/2018,05-13227,2296.8,Bridges Transport Ltd,
Nottinghamshire County Council,1111/1001,Adult Social Care and Health,ASCH,Transport Related,CDA,10/08/2018,05-13232,1346.62,Fozcabs Newark Taxis,
Nottinghamshire County Council,1111/1001,Adult Social Care and Health,ASCH,Transport Related,CDA,10/08/2018,05-13233,600,Galaxy Cabs Ltd,
Nottinghamshire County Council,1111/1001,Adult Social Care and Health,ASCH,Transport Related,CDA,10/08/2018,05-13238,"1,009.89",Galaxy Cabs Ltd,
Nottinghamshire County Council,1111/1001,Adult Social Care and Health,ASCH,Transport Related,CDA,10/08/2018,05-13240,"2,395.36",Hawkins Taxis & Transport,
Nottinghamshire County Council,1111/1001,Adult Social Care and Health,ASCH,Transport Related,CDA,10/08/2018,05-13243,585.8,Ng11 Cars,
Nottinghamshire County Council,1111/1001,Adult Social Care and Health,ASCH,Transport Related,CDA,10/08/2018,05-13251,1162.99,Shelleys Taxis Ltd,
Nottinghamshire County Council,1111/1001,Adult Social Care and Health,ASCH,Transport Related,CDA,10/08/2018,05-13276,"1,139.34",Carlton Cars Ltd T/A Trent Cars,
Nottinghamshire County Council,1111/1001,Adult Social Care and Health,ASCH,Transport Related,CDA,10/08/2018,05-13285,"2,593.80",F4Control Ltd (t/a First4care),
Nottinghamshire County Council,1111/1001,Adult Social Care and Health,ASCH,Transport Related,CDA,10/08/2018,05-13312,4080.12,BN Gibson Ltd,
Nottinghamshire County Council,1111/1001,Adult Social Care and Health,ASCH,Transport Related,CDA,10/08/2018,05-13335,"3,878.00",BN Gibson Ltd,
Nottinghamshire County Council,1111/1001,Adult Social Care and Health,ASCH,Transport Related,CDA,10/08/2018,05-13363,1860.67,Beechwood Taxis,
Nottinghamshire County Council,1111/1001,Adult Social Care and Health,ASCH,Transport Related,CDA,10/08/2018,05-13425,525.2,Cable Cars Taxis Nottm Ltd,
Nottinghamshire County Council,1111/1001,Adult Social Care and Health,ASCH,Transport Related,CDA,10/08/2018,05-13426,2386,AAA Cabs,
Nottinghamshire County Council,1111/1001,Adult Social Care and Health,ASCH,Transport Related,CDA,10/08/2018,05-13434,373.75,Ace Cars,
Nottinghamshire County Council,1111/1001,Adult Social Care and Health,ASCH,Transport Related,CDA,10/08/2018,05-13444,"1,250.02",In Taxis,
Nottinghamshire County Council,1111/1001,Adult Social Care and Health,ASCH,Transport Related,CDA,10/08/2018,05-13446,"2,311.98",[Redacted],
Nottinghamshire County Council,1111/1001,Adult Social Care and Health,ASCH,Transport Related,CDA,10/08/2018,05-13457,1421.07,Eurocab 2000 Ltd,
Nottinghamshire County Council,1111/1001,Adult Social Care and Health,ASCH,Transport Related,CDA,10/08/2018,05-13462,785.4,Eastwood Cars (UK) Ltd,
Nottinghamshire County Council,1111/1001,Adult Social Care and Health,ASCH,Transport Related,CDA,10/08/2018,05-13471,1881.9,Nottingham Cars Ltd,
Nottinghamshire County Council,1111/1001,Adult Social Care and Health,ASCH,Transport Related,CDA,10/08/2018,05-13477,927.52,Shiny Sky Ltd T/A A2b Cars,
Nottinghamshire County Council,1111/1001,Adult Social Care and Health,ASCH,Transport Related,CDA,10/08/2018,05-13479,540.36,Shiny Sky Ltd T/A A2b Cars,
Nottinghamshire County Council,1111/1001,Adult Social Care and Health,ASCH,Transport Related,CDA,10/08/2018,05-13482,766.59,Ideal Cars (Private Hire) Ltd,
Nottinghamshire County Council,1111/1001,Adult Social Care and Health,ASCH,Transport Related,CDA,13/08/2018,05-13556,1691,F4Control Ltd (t/a First4care),
Nottinghamshire County Council,1111/1001,Adult Social Care and Health,ASCH,Transport Related,CDA,13/08/2018,05-13558,"1,217.80",F4Control Ltd (t/a First4care),
Nottinghamshire County Council,1111/1001,Adult Social Care and Health,ASCH,Transport Related,CDA,13/08/2018,05-13562,760.00,Ace Of Mansfield Ltd,
Nottinghamshire County Council,1111/1001,Adult Social Care and Health,ASCH,Transport Related,CDA,13/08/2018,05-13563,"1,171.60",Alpha Cars,
Nottinghamshire County Council,1111/1001,Adult Social Care and Health,ASCH,Transport Related,CDA,13/08/2018,05-13570,1750.6,F4Control Ltd (t/a First4care),
Nottinghamshire County Council,1111/1001,Adult Social Care and Health,ASCH,Transport Related,CDA,13/08/2018,05-13574,679.23,F4Control Ltd (t/a First4care),
Nottinghamshire County Council,1111/1001,Adult Social Care and Health,ASCH,Transport Related,CDA,13/08/2018,05-13576,1233.59,F4Control Ltd (t/a First4care),
Nottinghamshire County Council,1111/1001,Adult Social Care and Health,ASCH,Transport Related,CDA,13/08/2018,05-13578,190.97,F4Control Ltd (t/a First4care),
Nottinghamshire County Council,1111/1001,Adult Social Care and Health,ASCH,Transport Related,CDA,13/08/2018,05-13581,3015.76,F4Control Ltd (t/a First4care),
Nottinghamshire County Council,1111/1001,Adult Social Care and Health,ASCH,Transport Related,CDA,13/08/2018,05-13584,204.10,F4Control Ltd (t/a First4care),
Nottinghamshire County Council,1111/1001,Adult Social Care and Health,ASCH,Transport Related,CDA,13/08/2018,05-13588,"1,500.00",Abacus Cars,
Nottinghamshire County Council,1111/1001,Adult Social Care and Health,ASCH,Transport Related,CDA,13/08/2018,05-13589,1292.8,Abacus Cars,
Nottinghamshire County Council,1111/1001,Adult Social Care and Health,ASCH,Transport Related,CDA,13/08/2018,05-13590,2222,Abacus Cars,
Nottinghamshire County Council,1111/1001,Adult Social Care and Health,ASCH,Transport Related,CDA,13/08/2018,05-13591,606.66,Abacus Cars,
Nottinghamshire County Council,1111/1001,Adult Social Care and Health,ASCH,Transport Related,CDA,13/08/2018,05-13592,"3,501.08",Abacus Cars,
Nottinghamshire County Council,1111/1001,Adult Social Care and Health,ASCH,Transport Related,CDA,13/08/2018,05-13595,"1,326.00",Abacus Cars,
Nottinghamshire County Council,1111/1001,Adult Social Care and Health,ASCH,Transport Related,CDA,13/08/2018,05-13596,675.36,Abacus Cars,
Nottinghamshire County Council,1111/1001,Adult Social Care and Health,ASCH,Transport Related,CDA,13/08/2018,05-13602,1682.46,Abacus Cars,
Nottinghamshire County Council,1111/1001,Adult Social Care and Health,ASCH,Transport Related,CDA,13/08/2018,05-13603,548.8,Abacus Cars,
Nottinghamshire County Council,1111/1001,Adult Social Care and Health,ASCH,Transport Related,CDA,13/08/2018,05-13604,704.70,Abacus Cars,
Nottinghamshire County Council,1111/1001,Adult Social Care and Health,ASCH,Transport Related,CDA,13/08/2018,05-13605,2543.26,Abacus Cars,
Nottinghamshire County Council,1111/1001,Adult Social Care and Health,ASCH,Transport Related,CDA,13/08/2018,05-13617,718.56,Abacus Cars,
Nottinghamshire County Council,1111/1001,Adult Social Care and Health,ASCH,Transport Related,CDA,15/08/2018,05-14484,1040,Fozcabs Newark Taxis,
Nottinghamshire County Council,1111/1001,Adult Social Care and Health,ASCH,Transport Related,CDA,15/08/2018,05-14491,840,D G Private Hire Ltd,
Nottinghamshire County Council,1111/1001,Adult Social Care and Health,ASCH,Transport Related,CDA,15/08/2018,05-14495,673.20,D G Private Hire Ltd,
Nottinghamshire County Council,1111/1001,Adult Social Care and Health,ASCH,Transport Related,CDA,15/08/2018,05-14497,"1,243.73",D G Private Hire Ltd,
Nottinghamshire County Council,1111/1001,Adult Social Care and Health,ASCH,Transport Related,CDA,15/08/2018,05-14499,711,Abacus Cars,
Nottinghamshire County Council,1111/1001,Adult Social Care and Health,ASCH,Transport Related,CDA,15/08/2018,05-14503,"3,150.62",Ace Cars,
Nottinghamshire County Council,1111/1001,Adult Social Care and Health,ASCH,Transport Related,CDA,15/08/2018,05-14511,681.92,D G Private Hire Ltd,
Nottinghamshire County Council,1111/1001,Adult Social Care and Health,ASCH,Transport Related,CDA,20/08/2018,05-14625,567.6,Alert Cars Ltd,
Nottinghamshire County Council,1111/1001,Adult Social Care and Health,ASCH,Transport Related,CDA,24/08/2018,05-15882,1284.75,Arrow Specialised Transport Ltd,
Nottinghamshire County Council,1111/1001,Adult Social Care and Health,ASCH,Transport Related,CDA,24/08/2018,05-15898,856.94,Abacus Cars,
Nottinghamshire County Council,1111/1001,Adult Social Care and Health,ASCH,Transport Related,CDA,24/08/2018,05-15900,"2,711.24",Abacus Cars,
Nottinghamshire County Council,1111/1001,Adult Social Care and Health,ASCH,Transport Related,CDA,24/08/2018,05-15907,2625.27,P & P Taxis,
Nottinghamshire County Council,1111/1001,Adult Social Care and Health,ASCH,Transport Related,CDA,31/08/2018,05-16135,1050.4,Shiny Sky Ltd T/A A2b Cars,
Nottinghamshire County Council,1111/1001,Adult Social Care and Health,ASCH,Transport Related,CEA,03/08/2018,05-10029,280.54,Reed Employment Plc,
Nottinghamshire County Council,1111/1001,Adult Social Care and Health,ASCH,Transport Related,CEA,17/08/2018,05-13545,211.17,Reed Employment Plc,
Nottinghamshire County Council,1111/1001,Adult Social Care and Health,ASCH,Transport Related,CEA,24/08/2018,05-14469,593.39,Reed Employment Plc,
Nottinghamshire County Council,1111/1001,Adult Social Care and Health,ASCH,Transport Related,CEA,31/08/2018,05-14652,121.5,Reed Employment Plc,
Nottinghamshire County Council,1111/1001,Adult Social Care and Health,ASCH,Supplies & Services,DAA,02/08/2018,05-18097,"2,972.50",Tabtime Ltd,
Nottinghamshire County Council,1111/1001,Adult Social Care and Health,ASCH,Supplies & Services,DAA,03/08/2018,05-18066,470,County Supplies (NCC),
Nottinghamshire County Council,1111/1001,Adult Social Care and Health,ASCH,Supplies & Services,DAA,21/08/2018,05-18180,"1,660.00",Prism Medical UK,
Nottinghamshire County Council,1111/1001,Adult Social Care and Health,ASCH,Supplies & Services,DAA,22/08/2018,05-18188,520.00,Nutri Pack Uk Ltd,
Nottinghamshire County Council,1111/1001,Adult Social Care and Health,ASCH,Supplies & Services,DAA,22/08/2018,05-18195,"4,018.85",Nutri Pack Uk Ltd,
Nottinghamshire County Council,1111/1001,Adult Social Care and Health,ASCH,Supplies & Services,DAA,22/08/2018,05-18196,1558.35,Nutri Pack Uk Ltd,
Nottinghamshire County Council,1111/1001,Adult Social Care and Health,ASCH,Supplies & Services,DAA,30/08/2018,05-18227,570.56,Smalley House & Garden Plants,
Nottinghamshire County Council,1111/1001,Adult Social Care and Health,ASCH,Supplies & Services,DBA,02/08/2018,05-18064,786.3,Nestle UK Ltd,
Nottinghamshire County Council,1111/1001,Adult Social Care and Health,ASCH,Supplies & Services,DBA,03/08/2018,05-10021,86.02,On A Roll Sandwich Company,
Nottinghamshire County Council,1111/1001,Adult Social Care and Health,ASCH,Supplies & Services,DBA,22/08/2018,05-18191,603.1,Mkg Food Products Ltd,
Nottinghamshire County Council,1111/1001,Adult Social Care and Health,ASCH,Supplies & Services,DBA,22/08/2018,05-18192,689.48,Mkg Food Products Ltd,
Nottinghamshire County Council,1111/1001,Adult Social Care and Health,ASCH,Supplies & Services,DBA,22/08/2018,05-18193,939.3,Mkg Food Products Ltd,
Nottinghamshire County Council,1111/1001,Adult Social Care and Health,ASCH,Supplies & Services,DBA,24/08/2018,05-10042,86.57,On A Roll Sandwich Company,
Nottinghamshire County Council,1111/1001,Adult Social Care and Health,ASCH,Supplies & Services,DCA,24/08/2018,05-18140,1256.35,Micronclean,
Nottinghamshire County Council,1111/1001,Adult Social Care and Health,ASCH,Supplies & Services,DCA,24/08/2018,05-18210,1256.35,Micronclean,
Nottinghamshire County Council,1111/1001,Adult Social Care and Health,ASCH,Supplies & Services,DDA,03/08/2018,05-18066,76,County Supplies (NCC),
Nottinghamshire County Council,1111/1001,Adult Social Care and Health,ASCH,Supplies & Services,DEA,03/08/2018,05-18062,"19,480.00",Action First Recruitment Ltd,
Nottinghamshire County Council,1111/1001,Adult Social Care and Health,ASCH,Supplies & Services,DEA,03/08/2018,05-18071,50650,Action First Recruitment Ltd,
Nottinghamshire County Council,1111/1001,Adult Social Care and Health,ASCH,Supplies & Services,DEA,03/08/2018,05-18072,60850,Action First Recruitment Ltd,
Nottinghamshire County Council,1111/1001,Adult Social Care and Health,ASCH,Supplies & Services,DEA,03/08/2018,05-18107,750,[Redacted],
Nottinghamshire County Council,1111/1001,Adult Social Care and Health,ASCH,Supplies & Services,DEA,20/08/2018,05-18175,4376.14,Mansfield & Ashfield CCG,
Nottinghamshire County Council,1111/1001,Adult Social Care and Health,ASCH,Supplies & Services,DEA,20/08/2018,05-18176,3316.88,Mansfield & Ashfield CCG,
Nottinghamshire County Council,1111/1001,Adult Social Care and Health,ASCH,Supplies & Services,DEA,20/08/2018,05-18177,"4,376.13",Mansfield & Ashfield CCG,
Nottinghamshire County Council,1111/1001,Adult Social Care and Health,ASCH,Supplies & Services,DEA,20/08/2018,05-18178,3378.83,Mansfield & Ashfield CCG,
Nottinghamshire County Council,1111/1001,Adult Social Care and Health,ASCH,Supplies & Services,DEA,24/08/2018,05-18133,"2,221.67",Nottm University Hospitals Nhs Trus,
Nottinghamshire County Council,1111/1001,Adult Social Care and Health,ASCH,Supplies & Services,DEA,31/08/2018,05-18232,1527.75,JoCo Learning & Development Ltd,
Nottinghamshire County Council,1111/1001,Adult Social Care and Health,ASCH,Supplies & Services,DFA,17/08/2018,05-14520,247.68,Adept Telecom,
Nottinghamshire County Council,1111/1001,Adult Social Care and Health,ASCH,Supplies & Services,DFA,21/08/2018,05-14657,645.16,Adept Telecom,
Nottinghamshire County Council,1111/1001,Adult Social Care and Health,ASCH,Third Party Payments,EBA,03/08/2018,05-18082,40268.67,Metropolitan Housing Trust,
Nottinghamshire County Council,1111/1001,Adult Social Care and Health,ASCH,Third Party Payments,EBA,09/08/2018,05-13033,4986.6,Framework Housing Association,
Nottinghamshire County Council,1111/1001,Adult Social Care and Health,ASCH,Third Party Payments,EGA,01/08/2018,05-18120,1736.28,United Response,
Nottinghamshire County Council,1111/1001,Adult Social Care and Health,ASCH,Third Party Payments,EGA,03/08/2018,05-10018,3164,Codnor Park Nursing Home (Ashmere D,
Nottinghamshire County Council,1111/1001,Adult Social Care and Health,ASCH,Third Party Payments,EGA,03/08/2018,05-10023,1070,Broadlands Care Home,
Nottinghamshire County Council,1111/1001,Adult Social Care and Health,ASCH,Third Party Payments,EGA,03/08/2018,05-10024,1130,Broadlands Care Home,
Nottinghamshire County Council,1111/1001,Adult Social Care and Health,ASCH,Third Party Payments,EGA,03/08/2018,05-10026,"1,908.57",Ashley House Nursing Home,
Nottinghamshire County Council,1111/1001,Adult Social Care and Health,ASCH,Third Party Payments,EGA,03/08/2018,05-10027,548.00,Beech Court Care Home,
Nottinghamshire County Council,1111/1001,Adult Social Care and Health,ASCH,Third Party Payments,EGA,03/08/2018,05-10184,"2,672.00",Ashcroft Care Home,
Nottinghamshire County Council,1111/1001,Adult Social Care and Health,ASCH,Third Party Payments,EGA,03/08/2018,05-10185,"1,972.00",Adbolton Hall Nursing Home (MPS),
Nottinghamshire County Council,1111/1001,Adult Social Care and Health,ASCH,Third Party Payments,EGA,03/08/2018,05-10186,"2,732.00",Ashley House Nursing Home,
Nottinghamshire County Council,1111/1001,Adult Social Care and Health,ASCH,Third Party Payments,EGA,03/08/2018,05-10187,2516,Ashley House Nursing Home,
Nottinghamshire County Council,1111/1001,Adult Social Care and Health,ASCH,Third Party Payments,EGA,03/08/2018,05-10188,2571,Aslockton Hall Nursing Home,
Nottinghamshire County Council,1111/1001,Adult Social Care and Health,ASCH,Third Party Payments,EGA,03/08/2018,05-10189,"2,192.00",Aldercar Residential Home,
Nottinghamshire County Council,1111/1001,Adult Social Care and Health,ASCH,Third Party Payments,EGA,03/08/2018,05-10190,2222.04,Acacia Care Cent (HC One),
Nottinghamshire County Council,1111/1001,Adult Social Care and Health,ASCH,Third Party Payments,EGA,03/08/2018,05-10191,"2,192.00",Aldercar Residential Home,
Nottinghamshire County Council,1111/1001,Adult Social Care and Health,ASCH,Third Party Payments,EGA,03/08/2018,05-10192,9895.64,Whitegates (Sparken Hill),
Nottinghamshire County Council,1111/1001,Adult Social Care and Health,ASCH,Third Party Payments,EGA,03/08/2018,05-10193,"2,672.00",Ashley House Nursing Home,
Nottinghamshire County Council,1111/1001,Adult Social Care and Health,ASCH,Third Party Payments,EGA,03/08/2018,05-10194,6380.44,Ash Villa (MGB),
Nottinghamshire County Council,1111/1001,Adult Social Care and Health,ASCH,Third Party Payments,EGA,03/08/2018,05-10195,2256,Ashcroft Care Home,
Nottinghamshire County Council,1111/1001,Adult Social Care and Health,ASCH,Third Party Payments,EGA,03/08/2018,05-10196,"11,942.84",Fairview Care Home (Autism East Mid,
Nottinghamshire County Council,1111/1001,Adult Social Care and Health,ASCH,Third Party Payments,EGA,03/08/2018,05-10197,2672,Ashley House Nursing Home,
Nottinghamshire County Council,1111/1001,Adult Social Care and Health,ASCH,Third Party Payments,EGA,03/08/2018,05-10198,"2,856.00",Alder House,
Nottinghamshire County Council,1111/1001,Adult Social Care and Health,ASCH,Third Party Payments,EGA,03/08/2018,05-10199,"2,672.00",Ashcroft Care Home,
Nottinghamshire County Council,1111/1001,Adult Social Care and Health,ASCH,Third Party Payments,EGA,03/08/2018,05-10200,"8,116.00",Ashcombe Court (Accomplish),
Nottinghamshire County Council,1111/1001,Adult Social Care and Health,ASCH,Third Party Payments,EGA,03/08/2018,05-10201,2260,Alexandra House (Eastgate),
Nottinghamshire County Council,1111/1001,Adult Social Care and Health,ASCH,Third Party Payments,EGA,03/08/2018,05-10202,2496,Ashley House Nursing Home,
Nottinghamshire County Council,1111/1001,Adult Social Care and Health,ASCH,Third Party Payments,EGA,03/08/2018,05-10203,2672,Ashley House Nursing Home,
Nottinghamshire County Council,1111/1001,Adult Social Care and Health,ASCH,Third Party Payments,EGA,03/08/2018,05-10204,2196,Albemarle Hall Nursing Home,
Nottinghamshire County Council,1111/1001,Adult Social Care and Health,ASCH,Third Party Payments,EGA,03/08/2018,05-10205,2640.44,Ashcroft Care Home,
Nottinghamshire County Council,1111/1001,Adult Social Care and Health,ASCH,Third Party Payments,EGA,03/08/2018,05-10206,"2,792.00",Ashcroft Care Home,
Nottinghamshire County Council,1111/1001,Adult Social Care and Health,ASCH,Third Party Payments,EGA,03/08/2018,05-10207,10427.8,Fairview Care Home (Autism East Mid,
Nottinghamshire County Council,1111/1001,Adult Social Care and Health,ASCH,Third Party Payments,EGA,03/08/2018,05-10208,"1,972.00",Adbolton Hall Nursing Home (MPS),
Nottinghamshire County Council,1111/1001,Adult Social Care and Health,ASCH,Third Party Payments,EGA,03/08/2018,05-10209,2496,Albemarle Court,
Nottinghamshire County Council,1111/1001,Adult Social Care and Health,ASCH,Third Party Payments,EGA,03/08/2018,05-10210,"2,496.00",Ashcroft Care Home,
Nottinghamshire County Council,1111/1001,Adult Social Care and Health,ASCH,Third Party Payments,EGA,03/08/2018,05-10211,2260,Alexandra House (Eastgate),
Nottinghamshire County Council,1111/1001,Adult Social Care and Health,ASCH,Third Party Payments,EGA,03/08/2018,05-10212,2172,Adbolton Hall Nursing Home (MPS),
Nottinghamshire County Council,1111/1001,Adult Social Care and Health,ASCH,Third Party Payments,EGA,03/08/2018,05-10213,3388,Aslockton Hall Nursing Home,
Nottinghamshire County Council,1111/1001,Adult Social Care and Health,ASCH,Third Party Payments,EGA,03/08/2018,05-10214,1742.64,Alexandra Residential Home (Logini,
Nottinghamshire County Council,1111/1001,Adult Social Care and Health,ASCH,Third Party Payments,EGA,03/08/2018,05-10215,2533.32,Ashfields Residential Home,
Nottinghamshire County Council,1111/1001,Adult Social Care and Health,ASCH,Third Party Payments,EGA,03/08/2018,05-10216,2672,Ashcroft Care Home,
Nottinghamshire County Council,1111/1001,Adult Social Care and Health,ASCH,Third Party Payments,EGA,03/08/2018,05-10217,2672,Ashcroft Care Home,
Nottinghamshire County Council,1111/1001,Adult Social Care and Health,ASCH,Third Party Payments,EGA,03/08/2018,05-10218,2192,Aldercar Residential Home,
Nottinghamshire County Council,1111/1001,Adult Social Care and Health,ASCH,Third Party Payments,EGA,03/08/2018,05-10219,3232,Ashcroft Care Home,
Nottinghamshire County Council,1111/1001,Adult Social Care and Health,ASCH,Third Party Payments,EGA,03/08/2018,05-10220,1096,Aldercar Residential Home,
Nottinghamshire County Council,1111/1001,Adult Social Care and Health,ASCH,Third Party Payments,EGA,03/08/2018,05-10221,11667,Ash Villa (MGB),
Nottinghamshire County Council,1111/1001,Adult Social Care and Health,ASCH,Third Party Payments,EGA,03/08/2018,05-10222,"16,898.64",Ancaladh House (Kisimul),
Nottinghamshire County Council,1111/1001,Adult Social Care and Health,ASCH,Third Party Payments,EGA,03/08/2018,05-10223,"6,662.00",Adams House,
Nottinghamshire County Council,1111/1001,Adult Social Care and Health,ASCH,Third Party Payments,EGA,03/08/2018,05-10224,"2,672.00",Ashley House Nursing Home,
Nottinghamshire County Council,1111/1001,Adult Social Care and Health,ASCH,Third Party Payments,EGA,03/08/2018,05-10225,"2,496.00",Albemarle Court,
Nottinghamshire County Council,1111/1001,Adult Social Care and Health,ASCH,Third Party Payments,EGA,03/08/2018,05-10226,2712,Ashley House Nursing Home,
Nottinghamshire County Council,1111/1001,Adult Social Care and Health,ASCH,Third Party Payments,EGA,03/08/2018,05-10227,2192,Aldercar Residential Home,
Nottinghamshire County Council,1111/1001,Adult Social Care and Health,ASCH,Third Party Payments,EGA,03/08/2018,05-10228,2496,Albemarle Court,
Nottinghamshire County Council,1111/1001,Adult Social Care and Health,ASCH,Third Party Payments,EGA,03/08/2018,05-10229,2256,Ashcroft Care Home,
Nottinghamshire County Council,1111/1001,Adult Social Care and Health,ASCH,Third Party Payments,EGA,03/08/2018,05-10230,"2,335.21",Aslockton Hall Nursing Home,
Nottinghamshire County Council,1111/1001,Adult Social Care and Health,ASCH,Third Party Payments,EGA,03/08/2018,05-10231,5169.6,Whitegates (Sparken Hill),
Nottinghamshire County Council,1111/1001,Adult Social Care and Health,ASCH,Third Party Payments,EGA,03/08/2018,05-10232,"12,990.84",Ancaladh House (Kisimul),
Nottinghamshire County Council,1111/1001,Adult Social Care and Health,ASCH,Third Party Payments,EGA,03/08/2018,05-10233,"2,752.00",Ashley House Nursing Home,
Nottinghamshire County Council,1111/1001,Adult Social Care and Health,ASCH,Third Party Payments,EGA,03/08/2018,05-10234,"2,672.00",Ashley House Nursing Home,
Nottinghamshire County Council,1111/1001,Adult Social Care and Health,ASCH,Third Party Payments,EGA,03/08/2018,05-10235,2628,Albemarle Court,
Nottinghamshire County Council,1111/1001,Adult Social Care and Health,ASCH,Third Party Payments,EGA,03/08/2018,05-10236,2672,Ashley House Nursing Home,
Nottinghamshire County Council,1111/1001,Adult Social Care and Health,ASCH,Third Party Payments,EGA,03/08/2018,05-10237,2222.04,Acacia Care Cent (HC One),
Nottinghamshire County Council,1111/1001,Adult Social Care and Health,ASCH,Third Party Payments,EGA,03/08/2018,05-10238,1972,Adbolton Hall Nursing Home (MPS),
Nottinghamshire County Council,1111/1001,Adult Social Care and Health,ASCH,Third Party Payments,EGA,03/08/2018,05-10239,"7,780.00",Adams House,
Nottinghamshire County Council,1111/1001,Adult Social Care and Health,ASCH,Third Party Payments,EGA,03/08/2018,05-10240,2736,Alder House,
Nottinghamshire County Council,1111/1001,Adult Social Care and Health,ASCH,Third Party Payments,EGA,03/08/2018,05-10241,12680,Adams House,
Nottinghamshire County Council,1111/1001,Adult Social Care and Health,ASCH,Third Party Payments,EGA,03/08/2018,05-10242,"2,260.00",Alexandra House (Eastgate),
Nottinghamshire County Council,1111/1001,Adult Social Care and Health,ASCH,Third Party Payments,EGA,03/08/2018,05-10243,"2,672.00",Ashley House Nursing Home,
Nottinghamshire County Council,1111/1001,Adult Social Care and Health,ASCH,Third Party Payments,EGA,03/08/2018,05-10244,"2,496.00",Ashley House Nursing Home,
Nottinghamshire County Council,1111/1001,Adult Social Care and Health,ASCH,Third Party Payments,EGA,03/08/2018,05-10245,2384,Ashton Court,
Nottinghamshire County Council,1111/1001,Adult Social Care and Health,ASCH,Third Party Payments,EGA,03/08/2018,05-10246,"2,192.00",Aldercar Residential Home,
Nottinghamshire County Council,1111/1001,Adult Social Care and Health,ASCH,Third Party Payments,EGA,03/08/2018,05-10247,10587.56,Ancaladh House (Kisimul),
Nottinghamshire County Council,1111/1001,Adult Social Care and Health,ASCH,Third Party Payments,EGA,03/08/2018,05-10248,"4,385.92",Ashcroft Care Home (Derbyshire),
Nottinghamshire County Council,1111/1001,Adult Social Care and Health,ASCH,Third Party Payments,EGA,03/08/2018,05-10249,"1,972.00",Adbolton Hall Nursing Home (MPS),
Nottinghamshire County Council,1111/1001,Adult Social Care and Health,ASCH,Third Party Payments,EGA,03/08/2018,05-10250,"2,256.00",Albemarle Court,
Nottinghamshire County Council,1111/1001,Adult Social Care and Health,ASCH,Third Party Payments,EGA,03/08/2018,05-10251,"2,384.00",Ashton Court,
Nottinghamshire County Council,1111/1001,Adult Social Care and Health,ASCH,Third Party Payments,EGA,03/08/2018,05-10252,"2,260.00",Alexandra House (Eastgate),
Nottinghamshire County Council,1111/1001,Adult Social Care and Health,ASCH,Third Party Payments,EGA,03/08/2018,05-10253,2671.8,Ashcroft Care Home,
Nottinghamshire County Council,1111/1001,Adult Social Care and Health,ASCH,Third Party Payments,EGA,03/08/2018,05-10254,2672,Ashcroft Care Home,
Nottinghamshire County Council,1111/1001,Adult Social Care and Health,ASCH,Third Party Payments,EGA,03/08/2018,05-10255,2736,Alder House,
Nottinghamshire County Council,1111/1001,Adult Social Care and Health,ASCH,Third Party Payments,EGA,03/08/2018,05-10256,"2,076.00",Ashdown Care Ltd,
Nottinghamshire County Council,1111/1001,Adult Social Care and Health,ASCH,Third Party Payments,EGA,03/08/2018,05-10257,"2,260.00",Alexandra House (Eastgate),
Nottinghamshire County Council,1111/1001,Adult Social Care and Health,ASCH,Third Party Payments,EGA,03/08/2018,05-10258,"2,576.00",Ashdale Care Home (Isys),
Nottinghamshire County Council,1111/1001,Adult Social Care and Health,ASCH,Third Party Payments,EGA,03/08/2018,05-10259,2222.04,Acacia Care Cent (HC One),
Nottinghamshire County Council,1111/1001,Adult Social Care and Health,ASCH,Third Party Payments,EGA,03/08/2018,05-10260,2222.04,Acacia Care Cent (HC One),
Nottinghamshire County Council,1111/1001,Adult Social Care and Health,ASCH,Third Party Payments,EGA,03/08/2018,05-10261,2456,Ashcroft Care Home,
Nottinghamshire County Council,1111/1001,Adult Social Care and Health,ASCH,Third Party Payments,EGA,03/08/2018,05-10262,2380,Alexandra House (Eastgate),
Nottinghamshire County Council,1111/1001,Adult Social Care and Health,ASCH,Third Party Payments,EGA,03/08/2018,05-10263,1972,Adbolton Hall Nursing Home (MPS),
Nottinghamshire County Council,1111/1001,Adult Social Care and Health,ASCH,Third Party Payments,EGA,03/08/2018,05-10264,2672,Ashcroft Care Home,
Nottinghamshire County Council,1111/1001,Adult Social Care and Health,ASCH,Third Party Payments,EGA,03/08/2018,05-10265,1816,Adbolton Hall Nursing Home (MPS),
Nottinghamshire County Council,1111/1001,Adult Social Care and Health,ASCH,Third Party Payments,EGA,03/08/2018,05-10266,2672,Ashcroft Care Home,
Nottinghamshire County Council,1111/1001,Adult Social Care and Health,ASCH,Third Party Payments,EGA,03/08/2018,05-10267,2384,Ashton Court,
Nottinghamshire County Council,1111/1001,Adult Social Care and Health,ASCH,Third Party Payments,EGA,03/08/2018,05-10268,2496,Ashcroft Care Home,
Nottinghamshire County Council,1111/1001,Adult Social Care and Health,ASCH,Third Party Payments,EGA,03/08/2018,05-10269,2672,Ashcroft Care Home,
Nottinghamshire County Council,1111/1001,Adult Social Care and Health,ASCH,Third Party Payments,EGA,03/08/2018,05-10270,6480.64,Adams House,
Nottinghamshire County Council,1111/1001,Adult Social Care and Health,ASCH,Third Party Payments,EGA,03/08/2018,05-10271,2712,Ashley House Nursing Home,
Nottinghamshire County Council,1111/1001,Adult Social Care and Health,ASCH,Third Party Payments,EGA,03/08/2018,05-10272,2792,Ashcroft Care Home,
Nottinghamshire County Council,1111/1001,Adult Social Care and Health,ASCH,Third Party Payments,EGA,03/08/2018,05-10273,2192,Ashton Court,
Nottinghamshire County Council,1111/1001,Adult Social Care and Health,ASCH,Third Party Payments,EGA,03/08/2018,05-10274,2496,Albemarle Court,
Nottinghamshire County Council,1111/1001,Adult Social Care and Health,ASCH,Third Party Payments,EGA,03/08/2018,05-10275,"6,787.76",Adams House,
Nottinghamshire County Council,1111/1001,Adult Social Care and Health,ASCH,Third Party Payments,EGA,03/08/2018,05-10276,5043.4,Beechwood Nursing Home (NORSACA),
Nottinghamshire County Council,1111/1001,Adult Social Care and Health,ASCH,Third Party Payments,EGA,03/08/2018,05-10277,1972,Adbolton Hall Nursing Home (MPS),
Nottinghamshire County Council,1111/1001,Adult Social Care and Health,ASCH,Third Party Payments,EGA,03/08/2018,05-10278,2496,Ashcroft Care Home,
Nottinghamshire County Council,1111/1001,Adult Social Care and Health,ASCH,Third Party Payments,EGA,03/08/2018,05-10279,2456,Ashley House Nursing Home,
Nottinghamshire County Council,1111/1001,Adult Social Care and Health,ASCH,Third Party Payments,EGA,03/08/2018,05-10280,2576,Ashcroft Care Home,
Nottinghamshire County Council,1111/1001,Adult Social Care and Health,ASCH,Third Party Payments,EGA,03/08/2018,05-10281,"2,672.00",Ashcroft Care Home,
Nottinghamshire County Council,1111/1001,Adult Social Care and Health,ASCH,Third Party Payments,EGA,03/08/2018,05-10282,2384,Ashton Court,
Nottinghamshire County Council,1111/1001,Adult Social Care and Health,ASCH,Third Party Payments,EGA,03/08/2018,05-10283,"2,260.00",Albemarle Hall Nursing Home,
Nottinghamshire County Council,1111/1001,Adult Social Care and Health,ASCH,Third Party Payments,EGA,03/08/2018,05-10284,1972,Adbolton Hall Nursing Home (MPS),
Nottinghamshire County Council,1111/1001,Adult Social Care and Health,ASCH,Third Party Payments,EGA,03/08/2018,05-10285,2496,Ashcroft Care Home,
Nottinghamshire County Council,1111/1001,Adult Social Care and Health,ASCH,Third Party Payments,EGA,03/08/2018,05-10286,2192,Ashton Court,
Nottinghamshire County Council,1111/1001,Adult Social Care and Health,ASCH,Third Party Payments,EGA,03/08/2018,05-10287,2632,Ashdale Care Home (Isys),
Nottinghamshire County Council,1111/1001,Adult Social Care and Health,ASCH,Third Party Payments,EGA,03/08/2018,05-10288,5682.16,Adams House,
Nottinghamshire County Council,1111/1001,Adult Social Care and Health,ASCH,Third Party Payments,EGA,03/08/2018,05-10289,2736,Alder House,
Nottinghamshire County Council,1111/1001,Adult Social Care and Health,ASCH,Third Party Payments,EGA,03/08/2018,05-10290,1816,Adbolton Hall Nursing Home (MPS),
Nottinghamshire County Council,1111/1001,Adult Social Care and Health,ASCH,Third Party Payments,EGA,03/08/2018,05-10291,2384,Ashton Court,
Nottinghamshire County Council,1111/1001,Adult Social Care and Health,ASCH,Third Party Payments,EGA,03/08/2018,05-10292,2456,Ashcroft Care Home,
Nottinghamshire County Council,1111/1001,Adult Social Care and Health,ASCH,Third Party Payments,EGA,03/08/2018,05-10293,"1,972.00",Adbolton Hall Nursing Home (MPS),
Nottinghamshire County Council,1111/1001,Adult Social Care and Health,ASCH,Third Party Payments,EGA,03/08/2018,05-10294,"5,043.40",Beechwood Nursing Home (NORSACA),
Nottinghamshire County Council,1111/1001,Adult Social Care and Health,ASCH,Third Party Payments,EGA,03/08/2018,05-10295,"2,260.00",Alexandra House (Eastgate),
Nottinghamshire County Council,1111/1001,Adult Social Care and Health,ASCH,Third Party Payments,EGA,03/08/2018,05-10296,"2,222.04",Acacia Care Cent (HC One),
Nottinghamshire County Council,1111/1001,Adult Social Care and Health,ASCH,Third Party Payments,EGA,03/08/2018,05-10297,"1,816.00",Adbolton Hall Nursing Home (MPS),
Nottinghamshire County Council,1111/1001,Adult Social Care and Health,ASCH,Third Party Payments,EGA,03/08/2018,05-10298,2672,Ashley House Nursing Home,
Nottinghamshire County Council,1111/1001,Adult Social Care and Health,ASCH,Third Party Payments,EGA,03/08/2018,05-10299,6183.36,Adams House,
Nottinghamshire County Council,1111/1001,Adult Social Care and Health,ASCH,Third Party Payments,EGA,03/08/2018,05-10300,"2,260.00",Albemarle Hall Nursing Home,
Nottinghamshire County Council,1111/1001,Adult Social Care and Health,ASCH,Third Party Payments,EGA,03/08/2018,05-10301,2338.28,Ashley House Nursing Home,
Nottinghamshire County Council,1111/1001,Adult Social Care and Health,ASCH,Third Party Payments,EGA,03/08/2018,05-10302,"5,221.68",Fairview Care Home (Autism East Mid,
Nottinghamshire County Council,1111/1001,Adult Social Care and Health,ASCH,Third Party Payments,EGA,03/08/2018,05-10303,2672,Ashcroft Care Home,
Nottinghamshire County Council,1111/1001,Adult Social Care and Health,ASCH,Third Party Payments,EGA,03/08/2018,05-10304,"4,969.72",Ash Villa (MGB),
Nottinghamshire County Council,1111/1001,Adult Social Care and Health,ASCH,Third Party Payments,EGA,03/08/2018,05-10305,2672,Ashley House Nursing Home,
Nottinghamshire County Council,1111/1001,Adult Social Care and Health,ASCH,Third Party Payments,EGA,03/08/2018,05-10306,2856,Alder House,
Nottinghamshire County Council,1111/1001,Adult Social Care and Health,ASCH,Third Party Payments,EGA,03/08/2018,05-10307,"2,496.00",Ashdale Care Home (Isys),
Nottinghamshire County Council,1111/1001,Adult Social Care and Health,ASCH,Third Party Payments,EGA,03/08/2018,05-10308,2260,Albemarle Hall Nursing Home,
Nottinghamshire County Council,1111/1001,Adult Social Care and Health,ASCH,Third Party Payments,EGA,03/08/2018,05-10309,"2,732.00",Ashley House Nursing Home,
Nottinghamshire County Council,1111/1001,Adult Social Care and Health,ASCH,Third Party Payments,EGA,03/08/2018,05-10310,"2,576.00",Ashcroft Care Home,
Nottinghamshire County Council,1111/1001,Adult Social Care and Health,ASCH,Third Party Payments,EGA,03/08/2018,05-10311,"2,859.04",Ashley Court Care Home,
Nottinghamshire County Council,1111/1001,Adult Social Care and Health,ASCH,Third Party Payments,EGA,03/08/2018,05-10312,681.13,Ashton Court,
Nottinghamshire County Council,1111/1001,Adult Social Care and Health,ASCH,Third Party Payments,EGA,03/08/2018,05-10313,2456,Ashcroft Care Home,
Nottinghamshire County Council,1111/1001,Adult Social Care and Health,ASCH,Third Party Payments,EGA,03/08/2018,05-10314,5616,Ashcroft Care Home,
Nottinghamshire County Council,1111/1001,Adult Social Care and Health,ASCH,Third Party Payments,EGA,03/08/2018,05-10315,2260,Alexandra House (Eastgate),
Nottinghamshire County Council,1111/1001,Adult Social Care and Health,ASCH,Third Party Payments,EGA,03/08/2018,05-10316,2672,Ashley House Nursing Home,
Nottinghamshire County Council,1111/1001,Adult Social Care and Health,ASCH,Third Party Payments,EGA,03/08/2018,05-10317,"2,412.00",Albemarle Hall Nursing Home,
Nottinghamshire County Council,1111/1001,Adult Social Care and Health,ASCH,Third Party Payments,EGA,03/08/2018,05-10318,2632,Ashdale Care Home (Isys),
Nottinghamshire County Council,1111/1001,Adult Social Care and Health,ASCH,Third Party Payments,EGA,03/08/2018,05-10319,"9,611.43",Aslockton Hall Nursing Home,
Nottinghamshire County Council,1111/1001,Adult Social Care and Health,ASCH,Third Party Payments,EGA,03/08/2018,05-10320,2256,Ashcroft Care Home,
Nottinghamshire County Council,1111/1001,Adult Social Care and Health,ASCH,Third Party Payments,EGA,03/08/2018,05-10321,"1,972.00",Adbolton Hall Nursing Home (MPS),
Nottinghamshire County Council,1111/1001,Adult Social Care and Health,ASCH,Third Party Payments,EGA,03/08/2018,05-10322,6787.76,Adams House,
Nottinghamshire County Council,1111/1001,Adult Social Care and Health,ASCH,Third Party Payments,EGA,03/08/2018,05-10323,2496,Ashley House Nursing Home,
Nottinghamshire County Council,1111/1001,Adult Social Care and Health,ASCH,Third Party Payments,EGA,03/08/2018,05-10324,2384,Ashton Court,
Nottinghamshire County Council,1111/1001,Adult Social Care and Health,ASCH,Third Party Payments,EGA,03/08/2018,05-10325,1816,Adbolton Hall Nursing Home (MPS),
Nottinghamshire County Council,1111/1001,Adult Social Care and Health,ASCH,Third Party Payments,EGA,03/08/2018,05-10326,2260,Alexandra House (Eastgate),
Nottinghamshire County Council,1111/1001,Adult Social Care and Health,ASCH,Third Party Payments,EGA,03/08/2018,05-10327,2668,Acorn House,
Nottinghamshire County Council,1111/1001,Adult Social Care and Health,ASCH,Third Party Payments,EGA,03/08/2018,05-10328,2192,Aldercar Residential Home,
Nottinghamshire County Council,1111/1001,Adult Social Care and Health,ASCH,Third Party Payments,EGA,03/08/2018,05-10329,2222.04,Acorn House,
Nottinghamshire County Council,1111/1001,Adult Social Care and Health,ASCH,Third Party Payments,EGA,03/08/2018,05-10330,2672,Ashley House Nursing Home,
Nottinghamshire County Council,1111/1001,Adult Social Care and Health,ASCH,Third Party Payments,EGA,03/08/2018,05-10331,2224,Aslockton Hall Nursing Home,
Nottinghamshire County Council,1111/1001,Adult Social Care and Health,ASCH,Third Party Payments,EGA,03/08/2018,05-10332,2672,Ashley House Nursing Home,
Nottinghamshire County Council,1111/1001,Adult Social Care and Health,ASCH,Third Party Payments,EGA,03/08/2018,05-10333,"2,456.00",Ashcroft Care Home,
Nottinghamshire County Council,1111/1001,Adult Social Care and Health,ASCH,Third Party Payments,EGA,03/08/2018,05-10334,"2,672.00",Ashley House Nursing Home,
Nottinghamshire County Council,1111/1001,Adult Social Care and Health,ASCH,Third Party Payments,EGA,03/08/2018,05-10335,"2,016.00",Alexandra House (Eastgate),
Nottinghamshire County Council,1111/1001,Adult Social Care and Health,ASCH,Third Party Payments,EGA,03/08/2018,05-10336,"2,672.00",Ashcroft Care Home,
Nottinghamshire County Council,1111/1001,Adult Social Care and Health,ASCH,Third Party Payments,EGA,03/08/2018,05-10337,2260,Alexandra House (Eastgate),
Nottinghamshire County Council,1111/1001,Adult Social Care and Health,ASCH,Third Party Payments,EGA,03/08/2018,05-10338,2260,Albemarle Hall Nursing Home,
Nottinghamshire County Council,1111/1001,Adult Social Care and Health,ASCH,Third Party Payments,EGA,03/08/2018,05-10339,2456,Ashcroft Care Home,
Nottinghamshire County Council,1111/1001,Adult Social Care and Health,ASCH,Third Party Payments,EGA,03/08/2018,05-10340,2374.24,Adbolton Hall Nursing Home (MPS),
Nottinghamshire County Council,1111/1001,Adult Social Care and Health,ASCH,Third Party Payments,EGA,03/08/2018,05-10341,"6,468.76",Ash Villa (MGB),
Nottinghamshire County Council,1111/1001,Adult Social Care and Health,ASCH,Third Party Payments,EGA,03/08/2018,05-10342,2496,Albemarle Court,
Nottinghamshire County Council,1111/1001,Adult Social Care and Health,ASCH,Third Party Payments,EGA,03/08/2018,05-10343,"2,672.00",Ashcroft Care Home,
Nottinghamshire County Council,1111/1001,Adult Social Care and Health,ASCH,Third Party Payments,EGA,03/08/2018,05-10344,"2,692.00",Ashley House Nursing Home,
Nottinghamshire County Council,1111/1001,Adult Social Care and Health,ASCH,Third Party Payments,EGA,03/08/2018,05-10345,"2,752.00",Ashley House Nursing Home,
Nottinghamshire County Council,1111/1001,Adult Social Care and Health,ASCH,Third Party Payments,EGA,03/08/2018,05-10346,2260,Alexandra House (Eastgate),
Nottinghamshire County Council,1111/1001,Adult Social Care and Health,ASCH,Third Party Payments,EGA,03/08/2018,05-10347,2283.96,Ashford Lodge Nursing Home,
Nottinghamshire County Council,1111/1001,Adult Social Care and Health,ASCH,Third Party Payments,EGA,03/08/2018,05-10348,2256,Ashcroft Care Home,
Nottinghamshire County Council,1111/1001,Adult Social Care and Health,ASCH,Third Party Payments,EGA,03/08/2018,05-10349,2384,Ashton Court,
Nottinghamshire County Council,1111/1001,Adult Social Care and Health,ASCH,Third Party Payments,EGA,03/08/2018,05-10350,"2,672.00",Ashley House Nursing Home,
Nottinghamshire County Council,1111/1001,Adult Social Care and Health,ASCH,Third Party Payments,EGA,03/08/2018,05-10351,2496,Ashdale Care Home (Isys),
Nottinghamshire County Council,1111/1001,Adult Social Care and Health,ASCH,Third Party Payments,EGA,03/08/2018,05-10352,2222.04,Acacia Care Cent (HC One),
Nottinghamshire County Council,1111/1001,Adult Social Care and Health,ASCH,Third Party Payments,EGA,03/08/2018,05-10353,"2,456.00",Alder House,
Nottinghamshire County Council,1111/1001,Adult Social Care and Health,ASCH,Third Party Payments,EGA,03/08/2018,05-10354,"1,972.00",Adbolton Hall Nursing Home (MPS),
Nottinghamshire County Council,1111/1001,Adult Social Care and Health,ASCH,Third Party Payments,EGA,03/08/2018,05-10355,"2,732.00",Ashley House Nursing Home,
Nottinghamshire County Council,1111/1001,Adult Social Care and Health,ASCH,Third Party Payments,EGA,03/08/2018,05-10356,1957.14,Aldercar Residential Home,
Nottinghamshire County Council,1111/1001,Adult Social Care and Health,ASCH,Third Party Payments,EGA,03/08/2018,05-10357,"2,672.00",Ashley House Nursing Home,
Nottinghamshire County Council,1111/1001,Adult Social Care and Health,ASCH,Third Party Payments,EGA,03/08/2018,05-10358,4186.04,Alfred Minto House Residential Home,
Nottinghamshire County Council,1111/1001,Adult Social Care and Health,ASCH,Third Party Payments,EGA,03/08/2018,05-10359,"2,260.00",Alexandra House (Eastgate),
Nottinghamshire County Council,1111/1001,Adult Social Care and Health,ASCH,Third Party Payments,EGA,03/08/2018,05-10360,"4,186.04",Alfred Minto House Residential Home,
Nottinghamshire County Council,1111/1001,Adult Social Care and Health,ASCH,Third Party Payments,EGA,03/08/2018,05-10361,"2,222.04",Acacia Care Cent (HC One),
Nottinghamshire County Council,1111/1001,Adult Social Care and Health,ASCH,Third Party Payments,EGA,03/08/2018,05-10362,"1,008.00",Alexandra House (Eastgate),
Nottinghamshire County Council,1111/1001,Adult Social Care and Health,ASCH,Third Party Payments,EGA,03/08/2018,05-10363,997.88,[Redacted],
Nottinghamshire County Council,1111/1001,Adult Social Care and Health,ASCH,Third Party Payments,EGA,03/08/2018,05-10364,1219.88,[Redacted],
Nottinghamshire County Council,1111/1001,Adult Social Care and Health,ASCH,Third Party Payments,EGA,03/08/2018,05-10365,501.76,[Redacted],
Nottinghamshire County Council,1111/1001,Adult Social Care and Health,ASCH,Third Party Payments,EGA,03/08/2018,05-10366,1837.08,[Redacted],
Nottinghamshire County Council,1111/1001,Adult Social Care and Health,ASCH,Third Party Payments,EGA,03/08/2018,05-10367,"1,137.80",[Redacted],
Nottinghamshire County Council,1111/1001,Adult Social Care and Health,ASCH,Third Party Payments,EGA,03/08/2018,05-10368,"1,332.24",[Redacted],
Nottinghamshire County Council,1111/1001,Adult Social Care and Health,ASCH,Third Party Payments,EGA,03/08/2018,05-10369,964.12,[Redacted],
Nottinghamshire County Council,1111/1001,Adult Social Care and Health,ASCH,Third Party Payments,EGA,03/08/2018,05-10370,1936.88,[Redacted],
Nottinghamshire County Council,1111/1001,Adult Social Care and Health,ASCH,Third Party Payments,EGA,03/08/2018,05-10371,1851.6,[Redacted],
Nottinghamshire County Council,1111/1001,Adult Social Care and Health,ASCH,Third Party Payments,EGA,03/08/2018,05-10372,2479.76,[Redacted],
Nottinghamshire County Council,1111/1001,Adult Social Care and Health,ASCH,Third Party Payments,EGA,03/08/2018,05-10373,1097.16,[Redacted],
Nottinghamshire County Council,1111/1001,Adult Social Care and Health,ASCH,Third Party Payments,EGA,03/08/2018,05-10374,1182.2,[Redacted],
Nottinghamshire County Council,1111/1001,Adult Social Care and Health,ASCH,Third Party Payments,EGA,03/08/2018,05-10375,1561.6,[Redacted],
Nottinghamshire County Council,1111/1001,Adult Social Care and Health,ASCH,Third Party Payments,EGA,03/08/2018,05-10376,1415.6,[Redacted],
Nottinghamshire County Council,1111/1001,Adult Social Care and Health,ASCH,Third Party Payments,EGA,03/08/2018,05-10377,1059.04,[Redacted],
Nottinghamshire County Council,1111/1001,Adult Social Care and Health,ASCH,Third Party Payments,EGA,03/08/2018,05-10378,1305.72,[Redacted],
Nottinghamshire County Council,1111/1001,Adult Social Care and Health,ASCH,Third Party Payments,EGA,03/08/2018,05-10379,2256,Braywood Gardens (Runwood),
Nottinghamshire County Council,1111/1001,Adult Social Care and Health,ASCH,Third Party Payments,EGA,03/08/2018,05-10380,2380,Berry Hill Park(HC One),
Nottinghamshire County Council,1111/1001,Adult Social Care and Health,ASCH,Third Party Payments,EGA,03/08/2018,05-10381,2256,Bramwell,
Nottinghamshire County Council,1111/1001,Adult Social Care and Health,ASCH,Third Party Payments,EGA,03/08/2018,05-10382,2456,Braywood Gardens (Runwood),
Nottinghamshire County Council,1111/1001,Adult Social Care and Health,ASCH,Third Party Payments,EGA,03/08/2018,05-10383,"2,256.00",Bramwell,
Nottinghamshire County Council,1111/1001,Adult Social Care and Health,ASCH,Third Party Payments,EGA,03/08/2018,05-10384,"2,380.00",Beech Court Care Home,
Nottinghamshire County Council,1111/1001,Adult Social Care and Health,ASCH,Third Party Payments,EGA,03/08/2018,05-10385,2192,Blyth Country House Care Home,
Nottinghamshire County Council,1111/1001,Adult Social Care and Health,ASCH,Third Party Payments,EGA,03/08/2018,05-10386,"2,256.00",Bramwell,
Nottinghamshire County Council,1111/1001,Adult Social Care and Health,ASCH,Third Party Payments,EGA,03/08/2018,05-10387,"2,380.00",Berry Hill Park(HC One),
Nottinghamshire County Council,1111/1001,Adult Social Care and Health,ASCH,Third Party Payments,EGA,03/08/2018,05-10388,"3,264.00",Bramwell,
Nottinghamshire County Council,1111/1001,Adult Social Care and Health,ASCH,Third Party Payments,EGA,03/08/2018,05-10389,2380,Berry Hill Park(HC One),
Nottinghamshire County Council,1111/1001,Adult Social Care and Health,ASCH,Third Party Payments,EGA,03/08/2018,05-10390,"1,972.00",Beeston Lodge Nursing Home,
Nottinghamshire County Council,1111/1001,Adult Social Care and Health,ASCH,Third Party Payments,EGA,03/08/2018,05-10391,2456,Beech House Residential Home,
Nottinghamshire County Council,1111/1001,Adult Social Care and Health,ASCH,Third Party Payments,EGA,03/08/2018,05-10392,2380,Berry Hill Park(HC One),
Nottinghamshire County Council,1111/1001,Adult Social Care and Health,ASCH,Third Party Payments,EGA,03/08/2018,05-10393,"2,283.96",Blackwell Care Centre,
Nottinghamshire County Council,1111/1001,Adult Social Care and Health,ASCH,Third Party Payments,EGA,03/08/2018,05-10394,"2,456.00",Braywood Gardens (Runwood),
Nottinghamshire County Council,1111/1001,Adult Social Care and Health,ASCH,Third Party Payments,EGA,03/08/2018,05-10395,2152,Beechdale Manor Care Home,
Nottinghamshire County Council,1111/1001,Adult Social Care and Health,ASCH,Third Party Payments,EGA,03/08/2018,05-10396,"2,696.00",Bramcote Hills Care Home,
Nottinghamshire County Council,1111/1001,Adult Social Care and Health,ASCH,Third Party Payments,EGA,03/08/2018,05-10397,2256,Bramwell,
Nottinghamshire County Council,1111/1001,Adult Social Care and Health,ASCH,Third Party Payments,EGA,03/08/2018,05-10398,1972,Beeston Lodge Nursing Home,
Nottinghamshire County Council,1111/1001,Adult Social Care and Health,ASCH,Third Party Payments,EGA,03/08/2018,05-10399,4034.86,Braywood Gardens (Runwood),
Nottinghamshire County Council,1111/1001,Adult Social Care and Health,ASCH,Third Party Payments,EGA,03/08/2018,05-10400,"2,256.00",Braywood Gardens (Runwood),
Nottinghamshire County Council,1111/1001,Adult Social Care and Health,ASCH,Third Party Payments,EGA,03/08/2018,05-10401,"1,816.00",Bowbridge Court (Ideal),
Nottinghamshire County Council,1111/1001,Adult Social Care and Health,ASCH,Third Party Payments,EGA,03/08/2018,05-10402,2192,Bluebell Lodge,
Nottinghamshire County Council,1111/1001,Adult Social Care and Health,ASCH,Third Party Payments,EGA,03/08/2018,05-10403,2496,Bramcote Hills Care Home,
Nottinghamshire County Council,1111/1001,Adult Social Care and Health,ASCH,Third Party Payments,EGA,03/08/2018,05-10404,"6,280.00",Norwood Schools Ltd,
Nottinghamshire County Council,1111/1001,Adult Social Care and Health,ASCH,Third Party Payments,EGA,03/08/2018,05-10405,2140,Broadgate Nursing Home,
Nottinghamshire County Council,1111/1001,Adult Social Care and Health,ASCH,Third Party Payments,EGA,03/08/2018,05-10406,2428,Blyth Country House Care Home,
Nottinghamshire County Council,1111/1001,Adult Social Care and Health,ASCH,Third Party Payments,EGA,03/08/2018,05-10407,"2,428.00",Blyth Country House Care Home,
Nottinghamshire County Council,1111/1001,Adult Social Care and Health,ASCH,Third Party Payments,EGA,03/08/2018,05-10408,4300,Byars Nursing Home,
Nottinghamshire County Council,1111/1001,Adult Social Care and Health,ASCH,Third Party Payments,EGA,03/08/2018,05-10409,2140,Broadgate Nursing Home,
Nottinghamshire County Council,1111/1001,Adult Social Care and Health,ASCH,Third Party Payments,EGA,03/08/2018,05-10410,2456,Braywood Gardens (Runwood),
Nottinghamshire County Council,1111/1001,Adult Social Care and Health,ASCH,Third Party Payments,EGA,03/08/2018,05-10411,2256,Bramwell,
Nottinghamshire County Council,1111/1001,Adult Social Care and Health,ASCH,Third Party Payments,EGA,03/08/2018,05-10412,"2,456.00",Braywood Gardens (Runwood),
Nottinghamshire County Council,1111/1001,Adult Social Care and Health,ASCH,Third Party Payments,EGA,03/08/2018,05-10413,2456,Baily House,
Nottinghamshire County Council,1111/1001,Adult Social Care and Health,ASCH,Third Party Payments,EGA,03/08/2018,05-10414,"2,256.00",Bramwell,
Nottinghamshire County Council,1111/1001,Adult Social Care and Health,ASCH,Third Party Payments,EGA,03/08/2018,05-10415,2222.04,Belle Vue (Eastgate),
Nottinghamshire County Council,1111/1001,Adult Social Care and Health,ASCH,Third Party Payments,EGA,03/08/2018,05-10416,14449.43,Beeston Lodge Nursing Home,
Nottinghamshire County Council,1111/1001,Adult Social Care and Health,ASCH,Third Party Payments,EGA,03/08/2018,05-10417,2376,Baily House,
Nottinghamshire County Council,1111/1001,Adult Social Care and Health,ASCH,Third Party Payments,EGA,03/08/2018,05-10418,"2,192.00",Bluebell Lodge,
Nottinghamshire County Council,1111/1001,Adult Social Care and Health,ASCH,Third Party Payments,EGA,03/08/2018,05-10419,4080.72,Norwood Schools Ltd,
Nottinghamshire County Council,1111/1001,Adult Social Care and Health,ASCH,Third Party Payments,EGA,03/08/2018,05-10420,2140,Broadlands Care Home,
Nottinghamshire County Council,1111/1001,Adult Social Care and Health,ASCH,Third Party Payments,EGA,03/08/2018,05-10421,"2,256.00",Baily House,
Nottinghamshire County Council,1111/1001,Adult Social Care and Health,ASCH,Third Party Payments,EGA,03/08/2018,05-10422,"2,568.00",Beauvale N H (HC One),
Nottinghamshire County Council,1111/1001,Adult Social Care and Health,ASCH,Third Party Payments,EGA,03/08/2018,05-10423,2428,Blyth Country House Care Home,
Nottinghamshire County Council,1111/1001,Adult Social Care and Health,ASCH,Third Party Payments,EGA,03/08/2018,05-10424,2519.8,Boughton Manor Nursing Homes (Craeg,
Nottinghamshire County Council,1111/1001,Adult Social Care and Health,ASCH,Third Party Payments,EGA,03/08/2018,05-10425,"6,352.04",Beech Tree Hall,
Nottinghamshire County Council,1111/1001,Adult Social Care and Health,ASCH,Third Party Payments,EGA,03/08/2018,05-10426,"2,428.00",Beeches N H (HC One),
Nottinghamshire County Council,1111/1001,Adult Social Care and Health,ASCH,Third Party Payments,EGA,03/08/2018,05-10427,1864,Beechdene Residential Home,
Nottinghamshire County Council,1111/1001,Adult Social Care and Health,ASCH,Third Party Payments,EGA,03/08/2018,05-10428,2192,Bluebell Lodge,
Nottinghamshire County Council,1111/1001,Adult Social Care and Health,ASCH,Third Party Payments,EGA,03/08/2018,05-10429,"2,456.00",Beech House Residential Home,
Nottinghamshire County Council,1111/1001,Adult Social Care and Health,ASCH,Third Party Payments,EGA,03/08/2018,05-10430,2456,Braywood Gardens (Runwood),
Nottinghamshire County Council,1111/1001,Adult Social Care and Health,ASCH,Third Party Payments,EGA,03/08/2018,05-10431,2192,Bluebell Lodge,
Nottinghamshire County Council,1111/1001,Adult Social Care and Health,ASCH,Third Party Payments,EGA,03/08/2018,05-10432,"3,200.00",Boughton Manor Nursing Homes (Craeg,
Nottinghamshire County Council,1111/1001,Adult Social Care and Health,ASCH,Third Party Payments,EGA,03/08/2018,05-10433,"2,380.00",Broadgate Nursing Home,
Nottinghamshire County Council,1111/1001,Adult Social Care and Health,ASCH,Third Party Payments,EGA,03/08/2018,05-10434,2192,Beauvale N H (HC One),
Nottinghamshire County Council,1111/1001,Adult Social Care and Health,ASCH,Third Party Payments,EGA,03/08/2018,05-10435,2456,Bramcote Hills Care Home,
Nottinghamshire County Council,1111/1001,Adult Social Care and Health,ASCH,Third Party Payments,EGA,03/08/2018,05-10436,"2,384.00",Bluebell Lodge,
Nottinghamshire County Council,1111/1001,Adult Social Care and Health,ASCH,Third Party Payments,EGA,03/08/2018,05-10437,2356,Bramcote Hills Care Home,
Nottinghamshire County Council,1111/1001,Adult Social Care and Health,ASCH,Third Party Payments,EGA,03/08/2018,05-10438,2999.8,Belle Vue (Eastgate),
Nottinghamshire County Council,1111/1001,Adult Social Care and Health,ASCH,Third Party Payments,EGA,03/08/2018,05-10439,"2,412.00",Blyth Country House Care Home,
Nottinghamshire County Council,1111/1001,Adult Social Care and Health,ASCH,Third Party Payments,EGA,03/08/2018,05-10440,"2,456.00",Braywood Gardens (Runwood),
Nottinghamshire County Council,1111/1001,Adult Social Care and Health,ASCH,Third Party Payments,EGA,03/08/2018,05-10441,3232,Byars Nursing Home,
Nottinghamshire County Council,1111/1001,Adult Social Care and Health,ASCH,Third Party Payments,EGA,03/08/2018,05-10442,2240,Berry Hill Park(HC One),
Nottinghamshire County Council,1111/1001,Adult Social Care and Health,ASCH,Third Party Payments,EGA,03/08/2018,05-10443,2336,Branthwaite Res Home (FBC),
Nottinghamshire County Council,1111/1001,Adult Social Care and Health,ASCH,Third Party Payments,EGA,03/08/2018,05-10444,"2,608.00",Beauvale N H (HC One),
Nottinghamshire County Council,1111/1001,Adult Social Care and Health,ASCH,Third Party Payments,EGA,03/08/2018,05-10445,2192,Bluebell Lodge,
Nottinghamshire County Council,1111/1001,Adult Social Care and Health,ASCH,Third Party Payments,EGA,03/08/2018,05-10446,2140,Berry Hill Park(HC One),
Nottinghamshire County Council,1111/1001,Adult Social Care and Health,ASCH,Third Party Payments,EGA,03/08/2018,05-10447,2222.04,Belle Vue (Eastgate),
Nottinghamshire County Council,1111/1001,Adult Social Care and Health,ASCH,Third Party Payments,EGA,03/08/2018,05-10448,1791.28,Beechdene Residential Home,
Nottinghamshire County Council,1111/1001,Adult Social Care and Health,ASCH,Third Party Payments,EGA,03/08/2018,05-10449,2456,Braywood Gardens (Runwood),
Nottinghamshire County Council,1111/1001,Adult Social Care and Health,ASCH,Third Party Payments,EGA,03/08/2018,05-10450,2044,Bowbridge Court (Ideal),
Nottinghamshire County Council,1111/1001,Adult Social Care and Health,ASCH,Third Party Payments,EGA,03/08/2018,05-10451,2222.04,Belle Vue (Eastgate),
Nottinghamshire County Council,1111/1001,Adult Social Care and Health,ASCH,Third Party Payments,EGA,03/08/2018,05-10452,"2,496.00",Bramcote Hills Care Home,
Nottinghamshire County Council,1111/1001,Adult Social Care and Health,ASCH,Third Party Payments,EGA,03/08/2018,05-10453,"2,192.00",Bluebell Lodge,
Nottinghamshire County Council,1111/1001,Adult Social Care and Health,ASCH,Third Party Payments,EGA,03/08/2018,05-10454,2392,Barnby Court C H (HC One),
Nottinghamshire County Council,1111/1001,Adult Social Care and Health,ASCH,Third Party Payments,EGA,03/08/2018,05-10455,2336,Baily House,
Nottinghamshire County Council,1111/1001,Adult Social Care and Health,ASCH,Third Party Payments,EGA,03/08/2018,05-10456,"2,380.00",Broadgate Nursing Home,
Nottinghamshire County Council,1111/1001,Adult Social Care and Health,ASCH,Third Party Payments,EGA,03/08/2018,05-10457,"2,256.00",Bramwell,
Nottinghamshire County Council,1111/1001,Adult Social Care and Health,ASCH,Third Party Payments,EGA,03/08/2018,05-10458,2428,Beeches N H (HC One),
Nottinghamshire County Council,1111/1001,Adult Social Care and Health,ASCH,Third Party Payments,EGA,03/08/2018,05-10459,2140,Brailsford House Care Home,
Nottinghamshire County Council,1111/1001,Adult Social Care and Health,ASCH,Third Party Payments,EGA,03/08/2018,05-10460,1816,Bowbridge Court (Ideal),
Nottinghamshire County Council,1111/1001,Adult Social Care and Health,ASCH,Third Party Payments,EGA,03/08/2018,05-10461,1972,Beeston Lodge Nursing Home,
Nottinghamshire County Council,1111/1001,Adult Social Care and Health,ASCH,Third Party Payments,EGA,03/08/2018,05-10462,2256,Branthwaite Res Home (FBC),
Nottinghamshire County Council,1111/1001,Adult Social Care and Health,ASCH,Third Party Payments,EGA,03/08/2018,05-10463,2140,The Beeches (Just Care Homes Ltd),
Nottinghamshire County Council,1111/1001,Adult Social Care and Health,ASCH,Third Party Payments,EGA,03/08/2018,05-10464,2192,Beeches N H (HC One),
Nottinghamshire County Council,1111/1001,Adult Social Care and Health,ASCH,Third Party Payments,EGA,03/08/2018,05-10465,"2,140.00",Berry Hill Park(HC One),
Nottinghamshire County Council,1111/1001,Adult Social Care and Health,ASCH,Third Party Payments,EGA,03/08/2018,05-10466,2256,Baily House,
Nottinghamshire County Council,1111/1001,Adult Social Care and Health,ASCH,Third Party Payments,EGA,03/08/2018,05-10467,"2,140.00",Broadlands Care Home,
Nottinghamshire County Council,1111/1001,Adult Social Care and Health,ASCH,Third Party Payments,EGA,03/08/2018,05-10468,"2,456.00",Beech House Residential Home,
Nottinghamshire County Council,1111/1001,Adult Social Care and Health,ASCH,Third Party Payments,EGA,03/08/2018,05-10469,"2,140.00",The Beeches (Just Care Homes Ltd),
Nottinghamshire County Council,1111/1001,Adult Social Care and Health,ASCH,Third Party Payments,EGA,03/08/2018,05-10470,"2,256.00",Baily House,
Nottinghamshire County Council,1111/1001,Adult Social Care and Health,ASCH,Third Party Payments,EGA,03/08/2018,05-10471,2192,Bluebell Lodge,
Nottinghamshire County Council,1111/1001,Adult Social Care and Health,ASCH,Third Party Payments,EGA,03/08/2018,05-10472,"2,297.36",Baily House,
Nottinghamshire County Council,1111/1001,Adult Social Care and Health,ASCH,Third Party Payments,EGA,03/08/2018,05-10473,2124,Bassingham Nursing Home,
Nottinghamshire County Council,1111/1001,Adult Social Care and Health,ASCH,Third Party Payments,EGA,03/08/2018,05-10474,"2,192.00",Bluebell Lodge,
Nottinghamshire County Council,1111/1001,Adult Social Care and Health,ASCH,Third Party Payments,EGA,03/08/2018,05-10475,3779.8,Belle Vue (Eastgate),
Nottinghamshire County Council,1111/1001,Adult Social Care and Health,ASCH,Third Party Payments,EGA,03/08/2018,05-10476,2140,Broadgate Nursing Home,
Nottinghamshire County Council,1111/1001,Adult Social Care and Health,ASCH,Third Party Payments,EGA,03/08/2018,05-10477,"2,222.04",Belle Vue (Eastgate),
Nottinghamshire County Council,1111/1001,Adult Social Care and Health,ASCH,Third Party Payments,EGA,03/08/2018,05-10478,2192,Barnby Court C H (HC One),
Nottinghamshire County Council,1111/1001,Adult Social Care and Health,ASCH,Third Party Payments,EGA,03/08/2018,05-10479,2456,Braywood Gardens (Runwood),
Nottinghamshire County Council,1111/1001,Adult Social Care and Health,ASCH,Third Party Payments,EGA,03/08/2018,05-10480,1816,Bowbridge Court (Ideal),
Nottinghamshire County Council,1111/1001,Adult Social Care and Health,ASCH,Third Party Payments,EGA,03/08/2018,05-10481,"2,055.48",Beechdene Residential Home,
Nottinghamshire County Council,1111/1001,Adult Social Care and Health,ASCH,Third Party Payments,EGA,03/08/2018,05-10482,"2,192.00",Bluebell Lodge,
Nottinghamshire County Council,1111/1001,Adult Social Care and Health,ASCH,Third Party Payments,EGA,03/08/2018,05-10483,2256,Bramwell,
Nottinghamshire County Council,1111/1001,Adult Social Care and Health,ASCH,Third Party Payments,EGA,03/08/2018,05-10484,"2,140.00",The Beeches (Just Care Homes Ltd),
Nottinghamshire County Council,1111/1001,Adult Social Care and Health,ASCH,Third Party Payments,EGA,03/08/2018,05-10485,2124,Broad Oak Grange Care Home,
Nottinghamshire County Council,1111/1001,Adult Social Care and Health,ASCH,Third Party Payments,EGA,03/08/2018,05-10486,2256,Braywood Gardens (Runwood),
Nottinghamshire County Council,1111/1001,Adult Social Care and Health,ASCH,Third Party Payments,EGA,03/08/2018,05-10487,2456,Branthwaite Res Home (FBC),
Nottinghamshire County Council,1111/1001,Adult Social Care and Health,ASCH,Third Party Payments,EGA,03/08/2018,05-10488,"7,350.92",Beech Tree Hall,
Nottinghamshire County Council,1111/1001,Adult Social Care and Health,ASCH,Third Party Payments,EGA,03/08/2018,05-10489,2140,The Beeches (Just Care Homes Ltd),
Nottinghamshire County Council,1111/1001,Adult Social Care and Health,ASCH,Third Party Payments,EGA,03/08/2018,05-10490,"2,256.00",Baily House,
Nottinghamshire County Council,1111/1001,Adult Social Care and Health,ASCH,Third Party Payments,EGA,03/08/2018,05-10491,"2,140.00",The Beeches (Just Care Homes Ltd),
Nottinghamshire County Council,1111/1001,Adult Social Care and Health,ASCH,Third Party Payments,EGA,03/08/2018,05-10492,3983.48,Boughton Manor Nursing Homes (Craeg,
Nottinghamshire County Council,1111/1001,Adult Social Care and Health,ASCH,Third Party Payments,EGA,03/08/2018,05-10493,"2,256.00",Bramwell,
Nottinghamshire County Council,1111/1001,Adult Social Care and Health,ASCH,Third Party Payments,EGA,03/08/2018,05-10494,1900.88,Beechdene Residential Home,
Nottinghamshire County Council,1111/1001,Adult Social Care and Health,ASCH,Third Party Payments,EGA,03/08/2018,05-10495,2496,Boughton Manor Nursing Homes (Craeg,
Nottinghamshire County Council,1111/1001,Adult Social Care and Health,ASCH,Third Party Payments,EGA,03/08/2018,05-10496,"5,861.40",Broadoak Park Residential Home,
Nottinghamshire County Council,1111/1001,Adult Social Care and Health,ASCH,Third Party Payments,EGA,03/08/2018,05-10497,2536,Branthwaite Res Home (FBC),
Nottinghamshire County Council,1111/1001,Adult Social Care and Health,ASCH,Third Party Payments,EGA,03/08/2018,05-10498,"2,380.00",Berry Hill Park(HC One),
Nottinghamshire County Council,1111/1001,Adult Social Care and Health,ASCH,Third Party Payments,EGA,03/08/2018,05-10499,"2,376.00",Baily House,
Nottinghamshire County Council,1111/1001,Adult Social Care and Health,ASCH,Third Party Payments,EGA,03/08/2018,05-10500,2256,Bramcote Hills Care Home,
Nottinghamshire County Council,1111/1001,Adult Social Care and Health,ASCH,Third Party Payments,EGA,03/08/2018,05-10501,"2,192.00",Bluebell Lodge,
Nottinghamshire County Council,1111/1001,Adult Social Care and Health,ASCH,Third Party Payments,EGA,03/08/2018,05-10502,2428,Beauvale N H (HC One),
Nottinghamshire County Council,1111/1001,Adult Social Care and Health,ASCH,Third Party Payments,EGA,03/08/2018,05-10503,"1,816.00",Bowbridge Court (Ideal),
Nottinghamshire County Council,1111/1001,Adult Social Care and Health,ASCH,Third Party Payments,EGA,03/08/2018,05-10504,2256,Bramwell,
Nottinghamshire County Council,1111/1001,Adult Social Care and Health,ASCH,Third Party Payments,EGA,03/08/2018,05-10505,2428,Blyth Country House Care Home,
Nottinghamshire County Council,1111/1001,Adult Social Care and Health,ASCH,Third Party Payments,EGA,03/08/2018,05-10506,2536,Branthwaite Res Home (FBC),
Nottinghamshire County Council,1111/1001,Adult Social Care and Health,ASCH,Third Party Payments,EGA,03/08/2018,05-10507,"2,140.00",The Beeches (Just Care Homes Ltd),
Nottinghamshire County Council,1111/1001,Adult Social Care and Health,ASCH,Third Party Payments,EGA,03/08/2018,05-10508,2376,Baily House,
Nottinghamshire County Council,1111/1001,Adult Social Care and Health,ASCH,Third Party Payments,EGA,03/08/2018,05-10509,2112,Beeston Lodge Nursing Home,
Nottinghamshire County Council,1111/1001,Adult Social Care and Health,ASCH,Third Party Payments,EGA,03/08/2018,05-10510,"2,256.00",Bramwell,
Nottinghamshire County Council,1111/1001,Adult Social Care and Health,ASCH,Third Party Payments,EGA,03/08/2018,05-10511,2256,Braywood Gardens (Runwood),
Nottinghamshire County Council,1111/1001,Adult Social Care and Health,ASCH,Third Party Payments,EGA,03/08/2018,05-10512,"2,380.00",Berry Hill Park(HC One),
Nottinghamshire County Council,1111/1001,Adult Social Care and Health,ASCH,Third Party Payments,EGA,03/08/2018,05-10513,"2,536.00",Branthwaite Res Home (FBC),
Nottinghamshire County Council,1111/1001,Adult Social Care and Health,ASCH,Third Party Payments,EGA,03/08/2018,05-10514,2380,Berry Hill Park(HC One),
Nottinghamshire County Council,1111/1001,Adult Social Care and Health,ASCH,Third Party Payments,EGA,03/08/2018,05-10515,"2,456.00",Beech House Residential Home,
Nottinghamshire County Council,1111/1001,Adult Social Care and Health,ASCH,Third Party Payments,EGA,03/08/2018,05-10516,2426.28,Beauvale N H (HC One),
Nottinghamshire County Council,1111/1001,Adult Social Care and Health,ASCH,Third Party Payments,EGA,03/08/2018,05-10517,2192,Barnby Court C H (HC One),
Nottinghamshire County Council,1111/1001,Adult Social Care and Health,ASCH,Third Party Payments,EGA,03/08/2018,05-10518,2256,Bramwell,
Nottinghamshire County Council,1111/1001,Adult Social Care and Health,ASCH,Third Party Payments,EGA,03/08/2018,05-10519,1972,Beeston Lodge Nursing Home,
Nottinghamshire County Council,1111/1001,Adult Social Care and Health,ASCH,Third Party Payments,EGA,03/08/2018,05-10520,2256,Bramwell,
Nottinghamshire County Council,1111/1001,Adult Social Care and Health,ASCH,Third Party Payments,EGA,03/08/2018,05-10521,"2,222.04",Belle Vue (Eastgate),
Nottinghamshire County Council,1111/1001,Adult Social Care and Health,ASCH,Third Party Payments,EGA,03/08/2018,05-10522,"2,016.00",Balmore Country House (My Care Ltd),
